Publisher Label,Publisher URI,"Supplier","Net Amount (£)","Organisational Unit","Merchant Category Code","Purpose","Payment Date"
"Wolverhampton City Council","http://opendatacommunities.org/id/metropolitan-district-council/wolverhampton","HALFORDS 0549","16.67","Towers Outdoor Education Centre","5940","Equipment - Purchase","31/01/2018"
"Wolverhampton City Council","http://opendatacommunities.org/id/metropolitan-district-council/wolverhampton","TESCO STORES 5194","4.25","Towers Outdoor Education Centre","5411","Provisions (Not for resale)","31/01/2018"
"Wolverhampton City Council","http://opendatacommunities.org/id/metropolitan-district-council/wolverhampton","TESCO STORES 5194","136.39","Towers Outdoor Education Centre","5411","Provisions (Not for resale)","31/01/2018"
"Wolverhampton City Council","http://opendatacommunities.org/id/metropolitan-district-council/wolverhampton","Amazon UK Marketplace","25.88","Research & Development","5942","Books","31/01/2018"
"Wolverhampton City Council","http://opendatacommunities.org/id/metropolitan-district-council/wolverhampton","Virgin Trains","248.00","EIP Locality 8","4112","Public Transport","31/01/2018"
"Wolverhampton City Council","http://opendatacommunities.org/id/metropolitan-district-council/wolverhampton","ARGOS RETAIL GROUP","76.43","EIP Locality 2","5310","Equipment - Purchase","31/01/2018"
"Wolverhampton City Council","http://opendatacommunities.org/id/metropolitan-district-council/wolverhampton","ROYAL BK OF SCOTLAND","250.00","CIN/CP Social Work Unit - Area 6","6011","Financial Assistance In Exceptional Circ","31/01/2018"
"Wolverhampton City Council","http://opendatacommunities.org/id/metropolitan-district-council/wolverhampton","Virgintrains.co.uk","-7.50","Delivery & OCE Development","4112","Public Transport","31/01/2018"
"Wolverhampton City Council","http://opendatacommunities.org/id/metropolitan-district-council/wolverhampton","WOLVERHAMPTON TROPHY C","225.00","Headstart - Learning Technologies Team","5999","Equipment - Purchase","31/01/2018"
"Wolverhampton City Council","http://opendatacommunities.org/id/metropolitan-district-council/wolverhampton","WOLVERHAMPTON TROPHY C","225.00","Headstart - Learning Technologies Team","5999","Equipment - Purchase","31/01/2018"
"Wolverhampton City Council","http://opendatacommunities.org/id/metropolitan-district-council/wolverhampton","POST OFFICE COUNTER","16.90","Headstart - Young People Engagement","9402","Comms - Postage","31/01/2018"
"Wolverhampton City Council","http://opendatacommunities.org/id/metropolitan-district-council/wolverhampton","WWW.DOMINOS.CO.UK","46.62","B-Safe","5812","Subsistence","31/01/2018"
"Wolverhampton City Council","http://opendatacommunities.org/id/metropolitan-district-council/wolverhampton","Amazon UK Marketplace","6.82","Headstart - Young People Engagement","5942","Stationery","31/01/2018"
"Wolverhampton City Council","http://opendatacommunities.org/id/metropolitan-district-council/wolverhampton","Amazon UK Marketplace","3.32","Headstart - Young People Engagement","5942","Stationery","31/01/2018"
"Wolverhampton City Council","http://opendatacommunities.org/id/metropolitan-district-council/wolverhampton","Amazon UK Marketplace","2.12","Headstart - Young People Engagement","5942","Stationery","31/01/2018"
"Wolverhampton City Council","http://opendatacommunities.org/id/metropolitan-district-council/wolverhampton","Amazon UK Marketplace","5.82","Headstart - Young People Engagement","5942","Materials","31/01/2018"
"Wolverhampton City Council","http://opendatacommunities.org/id/metropolitan-district-council/wolverhampton","Amazon UK Marketplace","2.27","Headstart - Young People Engagement","5942","Stationery","31/01/2018"
"Wolverhampton City Council","http://opendatacommunities.org/id/metropolitan-district-council/wolverhampton","WOLVERHAMPTON CC","8.33","IMPACT","7523","Car Allowances","31/01/2018"
"Wolverhampton City Council","http://opendatacommunities.org/id/metropolitan-district-council/wolverhampton","SPORTSDIRECT 118","20.00","Bert Williams Leisure Centre","5941","Equipment - Purchase","31/01/2018"
"Wolverhampton City Council","http://opendatacommunities.org/id/metropolitan-district-council/wolverhampton","WWW.CONCEPT2.CO.UK","28.50","Bert Williams Leisure Centre","5941","Equipment - Purchase","31/01/2018"
"Wolverhampton City Council","http://opendatacommunities.org/id/metropolitan-district-council/wolverhampton","Trainline","34.15","AES Staff Development","4112","Public Transport","31/01/2018"
"Wolverhampton City Council","http://opendatacommunities.org/id/metropolitan-district-council/wolverhampton","SAFETYSUPPL","23.35","Central Baths","5311","Equipment - Purchase","31/01/2018"
"Wolverhampton City Council","http://opendatacommunities.org/id/metropolitan-district-council/wolverhampton","TANKSDIRECTCOUK","97.50","Central Baths","5399","Equipment - Purchase","31/01/2018"
"Wolverhampton City Council","http://opendatacommunities.org/id/metropolitan-district-council/wolverhampton","SAINSBURYS PFS (1340)","1.67","Mayoral Expenses","5541","Vehicle Maintenance - Repairs","31/01/2018"
"Wolverhampton City Council","http://opendatacommunities.org/id/metropolitan-district-council/wolverhampton","E01353600000000","100.00","Childrens with Disabilities Team","6011","No Recourse to Public Funds","31/01/2018"
"Wolverhampton City Council","http://opendatacommunities.org/id/metropolitan-district-council/wolverhampton","E01353600000000","100.00","Childrens with Disabilities Team","6011","No Recourse to Public Funds","31/01/2018"
"Wolverhampton City Council","http://opendatacommunities.org/id/metropolitan-district-council/wolverhampton","WWW.ELECTRONICWORLDTV.","266.66","LAC Transitions Team","5722","Client Allowances","31/01/2018"
"Wolverhampton City Council","http://opendatacommunities.org/id/metropolitan-district-council/wolverhampton","Virgin Trains","194.00","Intensive Family Support Team","4112","Public Transport","31/01/2018"
"Wolverhampton City Council","http://opendatacommunities.org/id/metropolitan-district-council/wolverhampton","ASDA HOME SHOPPING","-0.80","Upper Pendeford Farm Childrens Home","5411","Provisions (Not for resale)","31/01/2018"
"Wolverhampton City Council","http://opendatacommunities.org/id/metropolitan-district-council/wolverhampton","ASDA HOME SHOPPING","157.36","Upper Pendeford Farm Childrens Home","5411","Provisions (Not for resale)","31/01/2018"
"Wolverhampton City Council","http://opendatacommunities.org/id/metropolitan-district-council/wolverhampton","SWIFT SAVE UK LTD","3.33","Ernest Bold Court","5200","Equipment - R & M","31/01/2018"
"Wolverhampton City Council","http://opendatacommunities.org/id/metropolitan-district-council/wolverhampton","INSTIT OF OCCPTNL SAFE","200.00","Direct Delivery Team ( L. & D.)","8699","Subscriptions","31/01/2018"
"Wolverhampton City Council","http://opendatacommunities.org/id/metropolitan-district-council/wolverhampton","Amazon UK Marketplace","80.14","Environmental Health - Pub Prot - Gen","5942","Equipment - Purchase","31/01/2018"
"Wolverhampton City Council","http://opendatacommunities.org/id/metropolitan-district-council/wolverhampton","Virgin Trains","215.40","LAC Team","4112","Financial Assistance In Exceptional Circ","31/01/2018"
"Wolverhampton City Council","http://opendatacommunities.org/id/metropolitan-district-council/wolverhampton","W M MORRISONS.COM","82.15","Discretionary Fund","5411","Materials","31/01/2018"
"Wolverhampton City Council","http://opendatacommunities.org/id/metropolitan-district-council/wolverhampton","AMAZON EU AMAZON.CO.UK","121.04","EIP Locality 5","5999","Equipment - Purchase","31/01/2018"
"Wolverhampton City Council","http://opendatacommunities.org/id/metropolitan-district-council/wolverhampton","W'HAMPTON  CARPET","280.00","LAC Transitions Team","5713","Client Allowances","31/01/2018"
"Wolverhampton City Council","http://opendatacommunities.org/id/metropolitan-district-council/wolverhampton","WILKO RETAIL LIMIT","76.65","LAC Transitions Team","5722","Client Allowances","31/01/2018"
"Wolverhampton City Council","http://opendatacommunities.org/id/metropolitan-district-council/wolverhampton","THE RANGE","16.94","Duke Street Bungalows","5311","Equipment - R & M","31/01/2018"
"Wolverhampton City Council","http://opendatacommunities.org/id/metropolitan-district-council/wolverhampton","WWW.PROFESSIONALBOOKS.","59.65","Corporate Budgets","5942","Books","31/01/2018"
"Wolverhampton City Council","http://opendatacommunities.org/id/metropolitan-district-council/wolverhampton","MAX SPIELMANN LTD","30.05","Head of Strategic Commissioning � People","7221","Publications","31/01/2018"
"Wolverhampton City Council","http://opendatacommunities.org/id/metropolitan-district-council/wolverhampton","AMAZON SVCS EU-UK AMAZ","57.95","Technical Support","5942","Books","31/01/2018"
"Wolverhampton City Council","http://opendatacommunities.org/id/metropolitan-district-council/wolverhampton","WWW.PRIZMAGRAPHICS","35.85","Inclusion Support","5943","Stationery","31/01/2018"
"Wolverhampton City Council","http://opendatacommunities.org/id/metropolitan-district-council/wolverhampton","Amazon UK Marketplace","122.94","Environmental Health - Pub Prot - Gen","5942","Equipment - Purchase","31/01/2018"
"Wolverhampton City Council","http://opendatacommunities.org/id/metropolitan-district-council/wolverhampton","Amazon UK Marketplace","20.39","Environmental Health - Pub Prot - Gen","5942","Equipment - Purchase","31/01/2018"
"Wolverhampton City Council","http://opendatacommunities.org/id/metropolitan-district-council/wolverhampton","AMZ CooDeek","-20.89","Legal Services","5999","Stationery","31/01/2018"
"Wolverhampton City Council","http://opendatacommunities.org/id/metropolitan-district-council/wolverhampton","REGISTRARS OFFICE","20.00","Head of Service - CINCP","8299","Services - Professional Fees","31/01/2018"
"Wolverhampton City Council","http://opendatacommunities.org/id/metropolitan-district-council/wolverhampton","GRO HM PASSPORT OFFICE","9.25","Head of Service - CINCP","9399","Services - Professional Fees","31/01/2018"
"Wolverhampton City Council","http://opendatacommunities.org/id/metropolitan-district-council/wolverhampton","J VAN VLIET BIRMINGHAM","81.83","Creative Studies Delivery Area","5399","Materials for resale","31/01/2018"
"Wolverhampton City Council","http://opendatacommunities.org/id/metropolitan-district-council/wolverhampton","J VAN VLIET BIRMINGHAM","111.83","Creative Studies Delivery Area","5399","Materials for resale","31/01/2018"
"Wolverhampton City Council","http://opendatacommunities.org/id/metropolitan-district-council/wolverhampton","THE RANGE","102.85","Duke Street Bungalows","5311","Equipment - R & M","31/01/2018"
"Wolverhampton City Council","http://opendatacommunities.org/id/metropolitan-district-council/wolverhampton","Virgin Trains","177.00","Adoption and Residence Team & Allowances","4112","Public Transport","31/01/2018"
"Wolverhampton City Council","http://opendatacommunities.org/id/metropolitan-district-council/wolverhampton","ARGOS RETAIL GROUP","28.98","EIP Locality 2","5310","Equipment - Purchase","30/01/2018"
"Wolverhampton City Council","http://opendatacommunities.org/id/metropolitan-district-council/wolverhampton","ARGOS WOLVERHAMPTO","133.32","LAC Transitions Team","5310","Client Allowances","30/01/2018"
"Wolverhampton City Council","http://opendatacommunities.org/id/metropolitan-district-council/wolverhampton","ARGOS LTD","104.16","LAC Transitions Team","5310","Client Allowances","30/01/2018"
"Wolverhampton City Council","http://opendatacommunities.org/id/metropolitan-district-council/wolverhampton","ITUNES.COM/BILL","8.17","Headstart - Learning Technologies Team","5735","Computing - Purchase of Software","30/01/2018"
"Wolverhampton City Council","http://opendatacommunities.org/id/metropolitan-district-council/wolverhampton","PAYPAL  BRICKENGRAV","193.73","Headstart - Learning Technologies Team","7311","Marketing \ Non-staff advertising","30/01/2018"
"Wolverhampton City Council","http://opendatacommunities.org/id/metropolitan-district-council/wolverhampton","ASDA HOME SHOPPING","58.68","Ernest Bold Court","5411","Provisions (Not for resale)","30/01/2018"
"Wolverhampton City Council","http://opendatacommunities.org/id/metropolitan-district-council/wolverhampton","Trainline","195.50","Head of Service - LAC","4112","Public Transport","30/01/2018"
"Wolverhampton City Council","http://opendatacommunities.org/id/metropolitan-district-council/wolverhampton","SCREWFIX DIRECT","39.99","Car Parks Operational Staff","5211","Clothing / Uniforms","30/01/2018"
"Wolverhampton City Council","http://opendatacommunities.org/id/metropolitan-district-council/wolverhampton","Virgin Trains","189.00","Mayoral Expenses","4112","Public Transport","30/01/2018"
"Wolverhampton City Council","http://opendatacommunities.org/id/metropolitan-district-council/wolverhampton","WOLVES FC","184.92","Equalities","7997","Services - Professional Fees","30/01/2018"
"Wolverhampton City Council","http://opendatacommunities.org/id/metropolitan-district-council/wolverhampton","Virgin Trains","592.50","Digital Transformation Programme","4112","Public Transport","30/01/2018"
"Wolverhampton City Council","http://opendatacommunities.org/id/metropolitan-district-council/wolverhampton","ASDA SUPERSTORE","10.00","EIP Locality 5","5411","Grant Payments","30/01/2018"
"Wolverhampton City Council","http://opendatacommunities.org/id/metropolitan-district-council/wolverhampton","ASDA GEORGE COM LEEDS","10.00","EIP Locality 5","5411","Provisions (Not for resale)","30/01/2018"
"Wolverhampton City Council","http://opendatacommunities.org/id/metropolitan-district-council/wolverhampton","WOLVERHAMPTON CC","3.33","Headstart Phase 3","7523","Parking Fees","30/01/2018"
"Wolverhampton City Council","http://opendatacommunities.org/id/metropolitan-district-council/wolverhampton","Amazon UK Marketplace","13.50","Bilston Public Open Space (ERDF)","5942","Stationery","30/01/2018"
"Wolverhampton City Council","http://opendatacommunities.org/id/metropolitan-district-council/wolverhampton","CUMMINGS BROTHERS LOCK","58.50","Hickman Avenue Depot","7399","R&M - Departmental planned (external)","30/01/2018"
"Wolverhampton City Council","http://opendatacommunities.org/id/metropolitan-district-council/wolverhampton","WWW.HIGHFIELDABC.COM","336.00","School Meals Statutory Standards","7299","Training Expenses","30/01/2018"
"Wolverhampton City Council","http://opendatacommunities.org/id/metropolitan-district-council/wolverhampton","Amazon EU","228.69","Technical Support","5969","Equipment - Purchase","30/01/2018"
"Wolverhampton City Council","http://opendatacommunities.org/id/metropolitan-district-council/wolverhampton","Amazon EU","81.63","Technical Support","5969","Equipment - Purchase","30/01/2018"
"Wolverhampton City Council","http://opendatacommunities.org/id/metropolitan-district-council/wolverhampton","PAYPAL  123REGLIMIT","19.98","Technical Support","4816","Computing - Purchase of Software","30/01/2018"
"Wolverhampton City Council","http://opendatacommunities.org/id/metropolitan-district-council/wolverhampton","Amazon EU","19.99","Technical Support","5969","Equipment - Purchase","30/01/2018"
"Wolverhampton City Council","http://opendatacommunities.org/id/metropolitan-district-council/wolverhampton","ASDA HOME SHOPPING","-1.48","Ernest Bold Court","5411","Provisions (Not for resale)","30/01/2018"
"Wolverhampton City Council","http://opendatacommunities.org/id/metropolitan-district-council/wolverhampton","Trainline","583.50","Business Manager - Place","4112","Public Transport","30/01/2018"
"Wolverhampton City Council","http://opendatacommunities.org/id/metropolitan-district-council/wolverhampton","NOTEMACHINE","200.00","Headstart Phase 3","6011","Financial Assistance In Exceptional Circ","30/01/2018"
"Wolverhampton City Council","http://opendatacommunities.org/id/metropolitan-district-council/wolverhampton","RINBOW","255.00","Headstart Hubs","5943","Furniture","30/01/2018"
"Wolverhampton City Council","http://opendatacommunities.org/id/metropolitan-district-council/wolverhampton","AMAZON SVCS EU-UK AMAZ","67.78","Headstart Hubs","5942","Materials","30/01/2018"
"Wolverhampton City Council","http://opendatacommunities.org/id/metropolitan-district-council/wolverhampton","Amazon UK Marketplace","2.83","Headstart Phase 3","5942","Materials","30/01/2018"
"Wolverhampton City Council","http://opendatacommunities.org/id/metropolitan-district-council/wolverhampton","Amazon UK Marketplace","2.04","Headstart - Young People Engagement","5942","Materials","30/01/2018"
"Wolverhampton City Council","http://opendatacommunities.org/id/metropolitan-district-council/wolverhampton","Amazon UK Marketplace","1.54","Headstart - Young People Engagement","5942","Stationery","30/01/2018"
"Wolverhampton City Council","http://opendatacommunities.org/id/metropolitan-district-council/wolverhampton","WM MORRISONS","6.60","Aldersley Leisure Village","5411","Provisions (Not for resale)","30/01/2018"
"Wolverhampton City Council","http://opendatacommunities.org/id/metropolitan-district-council/wolverhampton","EB  NORTHERN POWERHOUS","75.00","Education Business Partnership","7399","Educ Trips, Holidays, Outings, Activity","30/01/2018"
"Wolverhampton City Council","http://opendatacommunities.org/id/metropolitan-district-council/wolverhampton","FACEBK 7EAATDJC22","4.26","Admin & Support","7311","Marketing \ Non-staff advertising","30/01/2018"
"Wolverhampton City Council","http://opendatacommunities.org/id/metropolitan-district-council/wolverhampton","GOOGLE  ADWS9680351324","5.39","Communications & Marketing - General","5968","Subscriptions","30/01/2018"
"Wolverhampton City Council","http://opendatacommunities.org/id/metropolitan-district-council/wolverhampton","Trainline","142.50","Business Manager - Place","4112","Public Transport","30/01/2018"
"Wolverhampton City Council","http://opendatacommunities.org/id/metropolitan-district-council/wolverhampton","DRI WWW SHAREIT INFO","1239.08","Strategic ICTS (ICT Serv Budget)","7372","Computing - Maint Agreements","29/01/2018"
"Wolverhampton City Council","http://opendatacommunities.org/id/metropolitan-district-council/wolverhampton","AMZ Rankie-Direct","-59.90","Strategic ICTS (ICT Serv Budget)","5999","Equipment - Purchase","29/01/2018"
"Wolverhampton City Council","http://opendatacommunities.org/id/metropolitan-district-council/wolverhampton","ITUNES.COM/BILL","0.79","Strategic ICTS (ICT Serv Budget)","5735","Computing - Purchase of Software","29/01/2018"
"Wolverhampton City Council","http://opendatacommunities.org/id/metropolitan-district-council/wolverhampton","EBUYER (UK) LTD","134.28","Strategic ICTS (ICT Serv Budget)","5722","Equipment - Purchase","29/01/2018"
"Wolverhampton City Council","http://opendatacommunities.org/id/metropolitan-district-council/wolverhampton","WOLVERHAMPTON TROPHY C","64.95","Head of Strategic Commissioning � People","5999","Equipment - Purchase","29/01/2018"
"Wolverhampton City Council","http://opendatacommunities.org/id/metropolitan-district-council/wolverhampton","WIX.COM","279.39","Technical Support","5968","Subscriptions","29/01/2018"
"Wolverhampton City Council","http://opendatacommunities.org/id/metropolitan-district-council/wolverhampton","PAYPAL  123REGLIMIT","19.98","Technical Support","4816","Computing - Purchase of Software","29/01/2018"
"Wolverhampton City Council","http://opendatacommunities.org/id/metropolitan-district-council/wolverhampton","AMAZON SVCS EU-UK AMAZ","29.95","Global Budgets","5942","Equipment - Purchase","29/01/2018"
"Wolverhampton City Council","http://opendatacommunities.org/id/metropolitan-district-council/wolverhampton","ASDA HOME SHOPPING","-1.90","Ernest Bold Court","5411","Provisions (Not for resale)","29/01/2018"
"Wolverhampton City Council","http://opendatacommunities.org/id/metropolitan-district-council/wolverhampton","ASDA HOME SHOPPING","64.13","Ernest Bold Court","5411","Provisions (Not for resale)","29/01/2018"
"Wolverhampton City Council","http://opendatacommunities.org/id/metropolitan-district-council/wolverhampton","NOVOTEL WOLVERHAMPTON","16.67","Global Budgets","7011","Accommodation Costs","29/01/2018"
"Wolverhampton City Council","http://opendatacommunities.org/id/metropolitan-district-council/wolverhampton","HOTELS.COM144890753014","43.33","Global Budgets","4722","Accommodation Costs","29/01/2018"
"Wolverhampton City Council","http://opendatacommunities.org/id/metropolitan-district-council/wolverhampton","Amazon EU","12.32","Ernest Bold Court","5969","Equipment - Purchase","29/01/2018"
"Wolverhampton City Council","http://opendatacommunities.org/id/metropolitan-district-council/wolverhampton","PAYPAL  BARNARDOS","90.00","Workforce Development","8999","Training Expenses","29/01/2018"
"Wolverhampton City Council","http://opendatacommunities.org/id/metropolitan-district-council/wolverhampton","TRAININGSELFHARMCOU","45.00","Workforce Development","8398","Training Expenses","29/01/2018"
"Wolverhampton City Council","http://opendatacommunities.org/id/metropolitan-district-council/wolverhampton","AMAZON SVCS EU-UK AMAZ","62.93","SEN Early Years Team","5942","Equipment - Purchase","29/01/2018"
"Wolverhampton City Council","http://opendatacommunities.org/id/metropolitan-district-council/wolverhampton","SurveyMonkey","336.00","SEN Early Years Team","7372","Equipment - Purchase","29/01/2018"
"Wolverhampton City Council","http://opendatacommunities.org/id/metropolitan-district-council/wolverhampton","Amazon UK Marketplace","89.94","School Improvement","5942","Books","29/01/2018"
"Wolverhampton City Council","http://opendatacommunities.org/id/metropolitan-district-council/wolverhampton","Amazon UK Marketplace","6.89","School Improvement","5942","Books","29/01/2018"
"Wolverhampton City Council","http://opendatacommunities.org/id/metropolitan-district-council/wolverhampton","APPLE ONLINE STORE GBP","65.83","Music Support Team","5732","Equipment - Purchase","29/01/2018"
"Wolverhampton City Council","http://opendatacommunities.org/id/metropolitan-district-council/wolverhampton","EB  THE ART OF FUNDRAI","105.00","Music Support Team","7399","Services - Professional Fees","29/01/2018"
"Wolverhampton City Council","http://opendatacommunities.org/id/metropolitan-district-council/wolverhampton","HOME BARGAINS WOLVERHA","5.90","EIP Locality 5","5251","Provisions (Not for resale)","29/01/2018"
"Wolverhampton City Council","http://opendatacommunities.org/id/metropolitan-district-council/wolverhampton","HOME BARGAINS WOLVERHA","10.76","EIP Locality 5","5251","Equipment - Purchase","29/01/2018"
"Wolverhampton City Council","http://opendatacommunities.org/id/metropolitan-district-council/wolverhampton","FACEBK XB6BCFJAR2","344.79","Communications & Marketing - General","7311","Marketing \ Non-staff advertising","29/01/2018"
"Wolverhampton City Council","http://opendatacommunities.org/id/metropolitan-district-council/wolverhampton","Amazon UK Marketplace","7.83","Headstart Phase 3","5942","Materials","29/01/2018"
"Wolverhampton City Council","http://opendatacommunities.org/id/metropolitan-district-council/wolverhampton","Amazon UK Marketplace","5.99","Headstart Phase 3","5942","Subsistence","29/01/2018"
"Wolverhampton City Council","http://opendatacommunities.org/id/metropolitan-district-council/wolverhampton","Amazon UK Marketplace","21.44","Headstart Phase 3","5942","Equipment - Purchase","29/01/2018"
"Wolverhampton City Council","http://opendatacommunities.org/id/metropolitan-district-council/wolverhampton","Amazon UK Marketplace","12.99","Headstart Phase 3","5942","Subsistence","29/01/2018"
"Wolverhampton City Council","http://opendatacommunities.org/id/metropolitan-district-council/wolverhampton","Amazon UK Marketplace","24.99","Headstart Phase 3","5942","Equipment - Purchase","29/01/2018"
"Wolverhampton City Council","http://opendatacommunities.org/id/metropolitan-district-council/wolverhampton","123 REG R/T","31.98","City Direct","5968","Subscriptions","29/01/2018"
"Wolverhampton City Council","http://opendatacommunities.org/id/metropolitan-district-council/wolverhampton","ASDA SUPERSTORE","191.47","LAC Transitions Team","5411","Client Allowances","29/01/2018"
"Wolverhampton City Council","http://opendatacommunities.org/id/metropolitan-district-council/wolverhampton","ARGOS LTD","11.99","LAC Transitions Team","5310","Client Allowances","29/01/2018"
"Wolverhampton City Council","http://opendatacommunities.org/id/metropolitan-district-council/wolverhampton","ARGOS LTD","215.96","LAC Transitions Team","5310","Client Allowances","29/01/2018"
"Wolverhampton City Council","http://opendatacommunities.org/id/metropolitan-district-council/wolverhampton","ARGOS LTD","129.95","LAC Transitions Team","5310","Client Allowances","29/01/2018"
"Wolverhampton City Council","http://opendatacommunities.org/id/metropolitan-district-council/wolverhampton","TVLICENSING.CO.UK","147.00","LAC Transitions Team","7392","Client Allowances","29/01/2018"
"Wolverhampton City Council","http://opendatacommunities.org/id/metropolitan-district-council/wolverhampton","E H SMITH - SHIRLEY (3","335.26","The Clangers & TV Puppets","5211","Materials","29/01/2018"
"Wolverhampton City Council","http://opendatacommunities.org/id/metropolitan-district-council/wolverhampton","PENGUIN RANDOM HOUSE","146.09","Literature Festival","5942","Books","29/01/2018"
"Wolverhampton City Council","http://opendatacommunities.org/id/metropolitan-district-council/wolverhampton","ENTERPRISE RENT-A-CAR","393.70","Adoption and Residence Team & Allowances","3405","Hire of Vehicles","29/01/2018"
"Wolverhampton City Council","http://opendatacommunities.org/id/metropolitan-district-council/wolverhampton","4 SEASONS BEER TENT CO","833.32","Aldersley Leisure Village","5021","Furniture","29/01/2018"
"Wolverhampton City Council","http://opendatacommunities.org/id/metropolitan-district-council/wolverhampton","FACEBK ZB6BCFJAR2","155.21","Communications & Marketing - General","7311","Marketing \ Non-staff advertising","29/01/2018"
"Wolverhampton City Council","http://opendatacommunities.org/id/metropolitan-district-council/wolverhampton","ASDA STORE 4376","156.40","LAC Transitions Team","5411","Client Allowances","26/01/2018"
"Wolverhampton City Council","http://opendatacommunities.org/id/metropolitan-district-council/wolverhampton","REDWINGS LODGE","44.95","EIP Locality 2","7011","Accommodation Costs","26/01/2018"
"Wolverhampton City Council","http://opendatacommunities.org/id/metropolitan-district-council/wolverhampton","Amazon UK Marketplace","59.90","Strategic ICTS (ICT Serv Budget)","5942","Books","26/01/2018"
"Wolverhampton City Council","http://opendatacommunities.org/id/metropolitan-district-council/wolverhampton","WWW.ARGOS.CO.UK","13.94","LAC Transitions Team","5310","Equipment - Purchase","26/01/2018"
"Wolverhampton City Council","http://opendatacommunities.org/id/metropolitan-district-council/wolverhampton","WWW.WMCA.CO.UK","652.00","Delivery & OCE Development","4112","Public Transport","26/01/2018"
"Wolverhampton City Council","http://opendatacommunities.org/id/metropolitan-district-council/wolverhampton","Virgin Trains","64.70","Corporate Procurement Unit","4112","Public Transport","26/01/2018"
"Wolverhampton City Council","http://opendatacommunities.org/id/metropolitan-district-council/wolverhampton","GO CARZ","3.40","MASH","4121","Section 17","26/01/2018"
"Wolverhampton City Council","http://opendatacommunities.org/id/metropolitan-district-council/wolverhampton","WOLVERHAMPTON CC","3.33","Headstart Phase 3","7523","Parking Fees","26/01/2018"
"Wolverhampton City Council","http://opendatacommunities.org/id/metropolitan-district-council/wolverhampton","Trainline","151.45","Archives","4112","Public Transport","26/01/2018"
"Wolverhampton City Council","http://opendatacommunities.org/id/metropolitan-district-council/wolverhampton","WEST COAST TRAINS","6.50","Telecare","4112","Conference Expenses","26/01/2018"
"Wolverhampton City Council","http://opendatacommunities.org/id/metropolitan-district-council/wolverhampton","E01510300000000","200.00","MASH","6011","Financial Assistance In Exceptional Circ","26/01/2018"
"Wolverhampton City Council","http://opendatacommunities.org/id/metropolitan-district-council/wolverhampton","ROYAL CARPETS","150.00","LAC Transitions Team","5713","Client Allowances","26/01/2018"
"Wolverhampton City Council","http://opendatacommunities.org/id/metropolitan-district-council/wolverhampton","THE RANGE","41.52","Duke Street Bungalows","5311","Equipment - Purchase","26/01/2018"
"Wolverhampton City Council","http://opendatacommunities.org/id/metropolitan-district-council/wolverhampton","ARGOS WALSALL CROW","21.99","Duke Street Bungalows","5310","Equipment - Purchase","26/01/2018"
"Wolverhampton City Council","http://opendatacommunities.org/id/metropolitan-district-council/wolverhampton","Virgin Trains","38.40","LAC Team","4112","Public Transport","26/01/2018"
"Wolverhampton City Council","http://opendatacommunities.org/id/metropolitan-district-council/wolverhampton","Cross Country Trains","192.20","Head of Strategic Commissioning � People","4112","Public Transport","26/01/2018"
"Wolverhampton City Council","http://opendatacommunities.org/id/metropolitan-district-council/wolverhampton","Cross Country Trains","192.20","Head of Strategic Commissioning � People","4112","Public Transport","26/01/2018"
"Wolverhampton City Council","http://opendatacommunities.org/id/metropolitan-district-council/wolverhampton","Cross Country Trains","9.10","Head of Strategic Commissioning � People","4112","Public Transport","26/01/2018"
"Wolverhampton City Council","http://opendatacommunities.org/id/metropolitan-district-council/wolverhampton","STAFFORD INDUSTRIAL SU","130.00","Play General","5085","Equipment - Purchase","26/01/2018"
"Wolverhampton City Council","http://opendatacommunities.org/id/metropolitan-district-council/wolverhampton","THE POST OFFICE","2.08","CIN/CP Social Work Unit - Area 4","9402","Section 17","26/01/2018"
"Wolverhampton City Council","http://opendatacommunities.org/id/metropolitan-district-council/wolverhampton","Amazon UK Marketplace","20.89","Legal Services","5942","Stationery","26/01/2018"
"Wolverhampton City Council","http://opendatacommunities.org/id/metropolitan-district-council/wolverhampton","AMAZON SVCS EU-UK AMAZ","72.23","SEN Early Years Team","5942","Equipment - Purchase","26/01/2018"
"Wolverhampton City Council","http://opendatacommunities.org/id/metropolitan-district-council/wolverhampton","AMAZON SVCS EU-UK AMAZ","37.00","SEN Early Years Team","5942","Equipment - Purchase","26/01/2018"
"Wolverhampton City Council","http://opendatacommunities.org/id/metropolitan-district-council/wolverhampton","POST OFFICE COUNTER","1.75","Inclusion Support","9402","Comms - Postage","26/01/2018"
"Wolverhampton City Council","http://opendatacommunities.org/id/metropolitan-district-council/wolverhampton","CUMMINGS BROTHERS LOCK","20.00","EIP Locality 4","7399","Equipment - Purchase","26/01/2018"
"Wolverhampton City Council","http://opendatacommunities.org/id/metropolitan-district-council/wolverhampton","AMAZON SVCS EU-UK AMAZ","60.71","Headstart Hubs","5942","Materials","26/01/2018"
"Wolverhampton City Council","http://opendatacommunities.org/id/metropolitan-district-council/wolverhampton","Amazon UK Marketplace","42.74","Headstart - Young People Engagement","5942","Materials","26/01/2018"
"Wolverhampton City Council","http://opendatacommunities.org/id/metropolitan-district-council/wolverhampton","Amazon UK Marketplace","8.28","Headstart - Young People Engagement","5942","Materials","26/01/2018"
"Wolverhampton City Council","http://opendatacommunities.org/id/metropolitan-district-council/wolverhampton","Amazon UK Marketplace","113.22","Headstart - Young People Engagement","5942","Materials","26/01/2018"
"Wolverhampton City Council","http://opendatacommunities.org/id/metropolitan-district-council/wolverhampton","Amazon UK Marketplace","22.55","Headstart - Young People Engagement","5942","Stationery","26/01/2018"
"Wolverhampton City Council","http://opendatacommunities.org/id/metropolitan-district-council/wolverhampton","WOLVERHAMPTON CC","6.50","IMPACT","7523","Car Allowances","26/01/2018"
"Wolverhampton City Council","http://opendatacommunities.org/id/metropolitan-district-council/wolverhampton","NOVOTEL WOLVERHAMPTON","83.33","Register Office","7011","Services - Supplies & Services to users","26/01/2018"
"Wolverhampton City Council","http://opendatacommunities.org/id/metropolitan-district-council/wolverhampton","POST OFFICE COUNTER","7.25","Register Office","9402","Comms - Postage","26/01/2018"
"Wolverhampton City Council","http://opendatacommunities.org/id/metropolitan-district-council/wolverhampton","LOVE2SHOP.CO.UK","20.00","Education Business Partnership","8641","Educ Trips, Holidays, Outings, Activity","26/01/2018"
"Wolverhampton City Council","http://opendatacommunities.org/id/metropolitan-district-council/wolverhampton","avangate.com","16.69","Admin & Support","5734","Computing - Purchase of Software","26/01/2018"
"Wolverhampton City Council","http://opendatacommunities.org/id/metropolitan-district-council/wolverhampton","ASDA STORE 4376","28.33","LAC Transitions Team","5411","Client Allowances","26/01/2018"
"Wolverhampton City Council","http://opendatacommunities.org/id/metropolitan-district-council/wolverhampton","ALBRIGHTON FEEDS LIMIT","112.40","Parks - Ranger Service","5995","Equipment - Purchase","26/01/2018"
"Wolverhampton City Council","http://opendatacommunities.org/id/metropolitan-district-council/wolverhampton","WILKO RETAIL LIMIT","20.08","Duke Street Bungalows","5722","Equipment - R & M","26/01/2018"
"Wolverhampton City Council","http://opendatacommunities.org/id/metropolitan-district-council/wolverhampton","WILKO RETAIL LIMIT","12.54","Duke Street Bungalows","5722","Equipment - R & M","26/01/2018"
"Wolverhampton City Council","http://opendatacommunities.org/id/metropolitan-district-council/wolverhampton","LOYD QUEEN SQUARE","150.00","Duke Street Bungalows","6011","Provisions (Not for resale)","26/01/2018"
"Wolverhampton City Council","http://opendatacommunities.org/id/metropolitan-district-council/wolverhampton","Amazon UK Marketplace","41.65","Venice Daspara - ACE NPO WAG","5942","Equipment - Purchase","26/01/2018"
"Wolverhampton City Council","http://opendatacommunities.org/id/metropolitan-district-council/wolverhampton","ARGOS RETAIL GROUP","16.98","EIP Locality 3","5310","Equipment - Purchase","26/01/2018"
"Wolverhampton City Council","http://opendatacommunities.org/id/metropolitan-district-council/wolverhampton","LOYD WEDNESFIELD WOLVE","200.00","EIP Locality 8","6011","Grant Payments","26/01/2018"
"Wolverhampton City Council","http://opendatacommunities.org/id/metropolitan-district-council/wolverhampton","PAYPAL  BARNARDOS","45.00","EIP Locality 2","8999","Services - Professional Fees","26/01/2018"
"Wolverhampton City Council","http://opendatacommunities.org/id/metropolitan-district-council/wolverhampton","PENGUIN RANDOM HOUSE","370.30","Literature Festival","5942","Books","26/01/2018"
"Wolverhampton City Council","http://opendatacommunities.org/id/metropolitan-district-council/wolverhampton","REGISTRARS OFFICE","60.00","Adoption and Residence Team & Allowances","8299","Services - Fees and Charges","26/01/2018"
"Wolverhampton City Council","http://opendatacommunities.org/id/metropolitan-district-council/wolverhampton","TESCO STORES 5194","47.40","Towers Outdoor Education Centre","5411","Provisions (Not for resale)","26/01/2018"
"Wolverhampton City Council","http://opendatacommunities.org/id/metropolitan-district-council/wolverhampton","Amazon UK Marketplace","8.99","Towers Outdoor Education Centre","5942","Equipment - Purchase","26/01/2018"
"Wolverhampton City Council","http://opendatacommunities.org/id/metropolitan-district-council/wolverhampton","WWW.GRIPPLEGARDEN.","223.00","Venice Daspara - ACE NPO WAG","5251","Equipment - Purchase","25/01/2018"
"Wolverhampton City Council","http://opendatacommunities.org/id/metropolitan-district-council/wolverhampton","WWW JCCAMPBELLELECTRIC","137.49","Music Support Team","5722","Equipment - Purchase","25/01/2018"
"Wolverhampton City Council","http://opendatacommunities.org/id/metropolitan-district-council/wolverhampton","PAYPAL  MES LTD","170.00","Music Support Team","8211","Services - Professional Fees","25/01/2018"
"Wolverhampton City Council","http://opendatacommunities.org/id/metropolitan-district-council/wolverhampton","Trainline","147.45","Music Support Team","4112","Services - Professional Fees","25/01/2018"
"Wolverhampton City Council","http://opendatacommunities.org/id/metropolitan-district-council/wolverhampton","WEST PARK NEWS","2.00","EIP Locality 5","5411","Provisions (Not for resale)","25/01/2018"
"Wolverhampton City Council","http://opendatacommunities.org/id/metropolitan-district-council/wolverhampton","E00674100000000","50.00","Hospital Team","6011","Financial Assistance In Exceptional Circ","25/01/2018"
"Wolverhampton City Council","http://opendatacommunities.org/id/metropolitan-district-council/wolverhampton","Amazon UK Marketplace","7.91","Headstart Phase 3","5942","Subsistence","25/01/2018"
"Wolverhampton City Council","http://opendatacommunities.org/id/metropolitan-district-council/wolverhampton","WWW.ARGOS.CO.UK","20.44","LAC Transitions Team","5310","Client Allowances","25/01/2018"
"Wolverhampton City Council","http://opendatacommunities.org/id/metropolitan-district-council/wolverhampton","000002200500000","10.00","Ernest Bold Court","6011","Provisions (Not for resale)","25/01/2018"
"Wolverhampton City Council","http://opendatacommunities.org/id/metropolitan-district-council/wolverhampton","SCREWFIX DIRECT LT","30.80","Culwell Street Depot","5211","R&M - Departmental planned (external)","25/01/2018"
"Wolverhampton City Council","http://opendatacommunities.org/id/metropolitan-district-council/wolverhampton","TOOLSTATION LTD","9.37","Culwell Street Depot","5251","Equipment - Purchase","25/01/2018"
"Wolverhampton City Council","http://opendatacommunities.org/id/metropolitan-district-council/wolverhampton","DRAIN CENTER JV","29.24","Education Catering - General Overheads","1711","Equipment - Purchase","25/01/2018"
"Wolverhampton City Council","http://opendatacommunities.org/id/metropolitan-district-council/wolverhampton","Amazon UK Marketplace","11.20","Learning Disabilities Management","5942","Stationery","25/01/2018"
"Wolverhampton City Council","http://opendatacommunities.org/id/metropolitan-district-council/wolverhampton","E01577600000000","40.00","EIP Locality 3","6011","Grant Payments","25/01/2018"
"Wolverhampton City Council","http://opendatacommunities.org/id/metropolitan-district-council/wolverhampton","WAITROSE 696","9.00","EIP Locality 3","5411","Grant Payments","25/01/2018"
"Wolverhampton City Council","http://opendatacommunities.org/id/metropolitan-district-council/wolverhampton","ASDA HOME SHOPPING","5.00","Ernest Bold Court","5411","Provisions (Not for resale)","25/01/2018"
"Wolverhampton City Council","http://opendatacommunities.org/id/metropolitan-district-council/wolverhampton","AMAZON SVCS EU-UK AMAZ","5.79","SEN Early Years Team","5942","Equipment - Purchase","25/01/2018"
"Wolverhampton City Council","http://opendatacommunities.org/id/metropolitan-district-council/wolverhampton","Amazon UK Marketplace","8.28","Headstart - Young People Engagement","5942","Materials","25/01/2018"
"Wolverhampton City Council","http://opendatacommunities.org/id/metropolitan-district-council/wolverhampton","Amazon UK Marketplace","25.47","Headstart - Young People Engagement","5942","Equipment - Purchase","25/01/2018"
"Wolverhampton City Council","http://opendatacommunities.org/id/metropolitan-district-council/wolverhampton","Amazon UK Marketplace","25.47","Headstart - Young People Engagement","5942","Equipment - Purchase","25/01/2018"
"Wolverhampton City Council","http://opendatacommunities.org/id/metropolitan-district-council/wolverhampton","Amazon UK Marketplace","25.47","Headstart - Young People Engagement","5942","Equipment - Purchase","25/01/2018"
"Wolverhampton City Council","http://opendatacommunities.org/id/metropolitan-district-council/wolverhampton","Amazon UK Marketplace","25.48","Headstart - Young People Engagement","5942","Equipment - Purchase","25/01/2018"
"Wolverhampton City Council","http://opendatacommunities.org/id/metropolitan-district-council/wolverhampton","ADOBE SYSTEMS SOFTWARE","606.72","Document Centre - General","5734","Equipment - R & M","25/01/2018"
"Wolverhampton City Council","http://opendatacommunities.org/id/metropolitan-district-council/wolverhampton","ASDA HOME SHOPPING","166.63","Upper Pendeford Farm Childrens Home","5411","Provisions (Not for resale)","25/01/2018"
"Wolverhampton City Council","http://opendatacommunities.org/id/metropolitan-district-council/wolverhampton","Virgin Trains","104.00","LAC Team","4112","Financial Assistance In Exceptional Circ","25/01/2018"
"Wolverhampton City Council","http://opendatacommunities.org/id/metropolitan-district-council/wolverhampton","Virgin Trains","75.10","LAC Team","4112","Public Transport","25/01/2018"
"Wolverhampton City Council","http://opendatacommunities.org/id/metropolitan-district-council/wolverhampton","AMAZON EU AMAZON.CO.UK","55.00","Foundation Studies","5999","Equipment - Purchase","25/01/2018"
"Wolverhampton City Council","http://opendatacommunities.org/id/metropolitan-district-council/wolverhampton","AMAZON EU AMAZON.CO.UK","55.00","Foundation Studies","5999","Equipment - Purchase","25/01/2018"
"Wolverhampton City Council","http://opendatacommunities.org/id/metropolitan-district-council/wolverhampton","AMAZON EU AMAZON.CO.UK","55.00","Foundation Studies","5999","Equipment - Purchase","25/01/2018"
"Wolverhampton City Council","http://opendatacommunities.org/id/metropolitan-district-council/wolverhampton","AMAZON EU AMAZON.CO.UK","55.00","Foundation Studies","5999","Equipment - Purchase","25/01/2018"
"Wolverhampton City Council","http://opendatacommunities.org/id/metropolitan-district-council/wolverhampton","AMAZON EU AMAZON.CO.UK","55.00","Foundation Studies","5999","Equipment - Purchase","25/01/2018"
"Wolverhampton City Council","http://opendatacommunities.org/id/metropolitan-district-council/wolverhampton","AMAZON SVCS EU-UK AMAZ","111.00","SEN Early Years Team","5942","Equipment - Purchase","25/01/2018"
"Wolverhampton City Council","http://opendatacommunities.org/id/metropolitan-district-council/wolverhampton","AMAZON SVCS EU-UK AMAZ","57.80","SEN Early Years Team","5942","Equipment - Purchase","25/01/2018"
"Wolverhampton City Council","http://opendatacommunities.org/id/metropolitan-district-council/wolverhampton","CITY PAGES","500.00","Arts Publicity","7311","Marketing \ Non-staff advertising","25/01/2018"
"Wolverhampton City Council","http://opendatacommunities.org/id/metropolitan-district-council/wolverhampton","LONDIS","4.12","Towers Outdoor Education Centre","5921","Provisions (Not for resale)","25/01/2018"
"Wolverhampton City Council","http://opendatacommunities.org/id/metropolitan-district-council/wolverhampton","SPAR SIOP TANDDERWEN","4.00","Towers Outdoor Education Centre","5411","Provisions (Not for resale)","25/01/2018"
"Wolverhampton City Council","http://opendatacommunities.org/id/metropolitan-district-council/wolverhampton","000002200500000","250.00","CIN/CP Social Work Unit - Area 6","6011","Financial Assistance In Exceptional Circ","25/01/2018"
"Wolverhampton City Council","http://opendatacommunities.org/id/metropolitan-district-council/wolverhampton","RYANAIR","63.38","GEN Y City Transnational","3246","Public Transport","25/01/2018"
"Wolverhampton City Council","http://opendatacommunities.org/id/metropolitan-district-council/wolverhampton","ARGOS RETAIL GROUP","339.00","Communications & Marketing - General","5310","Equipment - Purchase","25/01/2018"
"Wolverhampton City Council","http://opendatacommunities.org/id/metropolitan-district-council/wolverhampton","Amazon UK Marketplace","12.42","Headstart Phase 3","5942","Subsistence","25/01/2018"
"Wolverhampton City Council","http://opendatacommunities.org/id/metropolitan-district-council/wolverhampton","Amazon UK Marketplace","11.66","Headstart Phase 3","5942","Subsistence","25/01/2018"
"Wolverhampton City Council","http://opendatacommunities.org/id/metropolitan-district-council/wolverhampton","AMAZON EU AMAZON.CO.UK","55.00","Foundation Studies","5999","Equipment - Purchase","25/01/2018"
"Wolverhampton City Council","http://opendatacommunities.org/id/metropolitan-district-council/wolverhampton","Amazon UK Marketplace","25.99","Creative Studies Delivery Area","5942","Equipment - Purchase","25/01/2018"
"Wolverhampton City Council","http://opendatacommunities.org/id/metropolitan-district-council/wolverhampton","WWW.ARGOS.CO.UK","43.94","LAC Transitions Team","5310","Client Allowances","25/01/2018"
"Wolverhampton City Council","http://opendatacommunities.org/id/metropolitan-district-council/wolverhampton","Amazon UK Marketplace","22.47","Headstart Phase 3","5942","Subsistence","25/01/2018"
"Wolverhampton City Council","http://opendatacommunities.org/id/metropolitan-district-council/wolverhampton","Amazon UK Marketplace","25.48","Headstart - Young People Engagement","5942","Equipment - Purchase","25/01/2018"
"Wolverhampton City Council","http://opendatacommunities.org/id/metropolitan-district-council/wolverhampton","Amazon UK Marketplace","21.01","Headstart - Young People Engagement","5942","Materials","25/01/2018"
"Wolverhampton City Council","http://opendatacommunities.org/id/metropolitan-district-council/wolverhampton","Amazon UK Marketplace","35.87","Headstart - Young People Engagement","5942","Materials","25/01/2018"
"Wolverhampton City Council","http://opendatacommunities.org/id/metropolitan-district-council/wolverhampton","ASDA SUPERSTORE","10.46","Mayoral Expenses","5411","Provisions (Not for resale)","25/01/2018"
"Wolverhampton City Council","http://opendatacommunities.org/id/metropolitan-district-council/wolverhampton","BLOOMS MENSWEAR","100.00","Mayoral Expenses","5611","Clothing / Uniforms","25/01/2018"
"Wolverhampton City Council","http://opendatacommunities.org/id/metropolitan-district-council/wolverhampton","STICKYTHINGS LTD","202.50","Strategic ICTS (ICT Serv Budget)","2741","Computing - Consumables","25/01/2018"
"Wolverhampton City Council","http://opendatacommunities.org/id/metropolitan-district-council/wolverhampton","AMAZON SVCS EU-UK AMAZ","12.89","Technical Material","5942","Equipment - Purchase","24/01/2018"
"Wolverhampton City Council","http://opendatacommunities.org/id/metropolitan-district-council/wolverhampton","AMAZON SVCS EU-UK AMAZ","94.67","Technical Material","5942","Equipment - Purchase","24/01/2018"
"Wolverhampton City Council","http://opendatacommunities.org/id/metropolitan-district-council/wolverhampton","PARCEL2GO.COM LTD","33.03","Pop Gallery Space","4215","Comms - Postage","24/01/2018"
"Wolverhampton City Council","http://opendatacommunities.org/id/metropolitan-district-council/wolverhampton","AMAZON EU AMAZON.CO.UK","25.20","EIP Locality 2","5999","Equipment - Purchase","24/01/2018"
"Wolverhampton City Council","http://opendatacommunities.org/id/metropolitan-district-council/wolverhampton","PENGUIN RANDOM HOUSE","308.59","Literature Festival","5942","Books","24/01/2018"
"Wolverhampton City Council","http://opendatacommunities.org/id/metropolitan-district-council/wolverhampton","Virgin Trains","54.30","Adoption and Residence Team & Allowances","4112","Public Transport","24/01/2018"
"Wolverhampton City Council","http://opendatacommunities.org/id/metropolitan-district-council/wolverhampton","WWW.NISBETS.COM","29.97","Towers Outdoor Education Centre","5964","Fixtures and Fittings - Purchases","24/01/2018"
"Wolverhampton City Council","http://opendatacommunities.org/id/metropolitan-district-council/wolverhampton","WEST COAST TRAINS","7.80","Economic Development","4112","Public Transport","24/01/2018"
"Wolverhampton City Council","http://opendatacommunities.org/id/metropolitan-district-council/wolverhampton","TRAINLINE","-47.00","Mental Health Assessment & Care Mgmt","4112","Public Transport","24/01/2018"
"Wolverhampton City Council","http://opendatacommunities.org/id/metropolitan-district-council/wolverhampton","Amazon UK Marketplace","4.99","Headstart - Young People Engagement","5942","Materials","24/01/2018"
"Wolverhampton City Council","http://opendatacommunities.org/id/metropolitan-district-council/wolverhampton","Amazon UK Marketplace","41.58","Headstart - Young People Engagement","5942","Materials","24/01/2018"
"Wolverhampton City Council","http://opendatacommunities.org/id/metropolitan-district-council/wolverhampton","TESCO STORES 5397","5.19","EIP Locality 1","5411","Grant Payments","24/01/2018"
"Wolverhampton City Council","http://opendatacommunities.org/id/metropolitan-district-council/wolverhampton","MEDISAVE","67.18","EIP Locality 1","5047","Equipment - Purchase","24/01/2018"
"Wolverhampton City Council","http://opendatacommunities.org/id/metropolitan-district-council/wolverhampton","HOME BARGAINS WOLVERHA","55.44","Duke Street Bungalows","5251","Equipment - Purchase","24/01/2018"
"Wolverhampton City Council","http://opendatacommunities.org/id/metropolitan-district-council/wolverhampton","ARGOS LTD","26.47","Duke Street Bungalows","5310","Equipment - Purchase","24/01/2018"
"Wolverhampton City Council","http://opendatacommunities.org/id/metropolitan-district-council/wolverhampton","WEST MID TRAVEL","358.85","Employment Programmes","4131","Public Transport","24/01/2018"
"Wolverhampton City Council","http://opendatacommunities.org/id/metropolitan-district-council/wolverhampton","Amazon UK Marketplace","34.28","Global Budgets","5942","Equipment - Purchase","24/01/2018"
"Wolverhampton City Council","http://opendatacommunities.org/id/metropolitan-district-council/wolverhampton","Amazon UK Marketplace","34.29","Global Budgets","5942","Equipment - Purchase","24/01/2018"
"Wolverhampton City Council","http://opendatacommunities.org/id/metropolitan-district-council/wolverhampton","Amazon UK Marketplace","34.28","Global Budgets","5942","Equipment - Purchase","24/01/2018"
"Wolverhampton City Council","http://opendatacommunities.org/id/metropolitan-district-council/wolverhampton","B & Q 1243","48.00","Play General","5211","Materials","24/01/2018"
"Wolverhampton City Council","http://opendatacommunities.org/id/metropolitan-district-council/wolverhampton","SAINSBURYS","250.00","Duke Street Bungalows","6011","Provisions (Not for resale)","24/01/2018"
"Wolverhampton City Council","http://opendatacommunities.org/id/metropolitan-district-council/wolverhampton","R.I.C.S. -(DRS)","125.00","Central Training","8699","Training Expenses","24/01/2018"
"Wolverhampton City Council","http://opendatacommunities.org/id/metropolitan-district-council/wolverhampton","CARD FACTORY","2.48","Road Safety","5947","Equipment - Purchase","24/01/2018"
"Wolverhampton City Council","http://opendatacommunities.org/id/metropolitan-district-council/wolverhampton","CARD FACTORY","20.80","Road Safety","5947","Equipment - Purchase","24/01/2018"
"Wolverhampton City Council","http://opendatacommunities.org/id/metropolitan-district-council/wolverhampton","Trainline","55.80","Legal Services","4112","Public Transport","24/01/2018"
"Wolverhampton City Council","http://opendatacommunities.org/id/metropolitan-district-council/wolverhampton","J VAN VLIET BIRMINGHAM","12.20","Creative Studies Delivery Area","5399","Materials for resale","24/01/2018"
"Wolverhampton City Council","http://opendatacommunities.org/id/metropolitan-district-council/wolverhampton","J VAN VLIET BIRMINGHAM","81.50","Creative Studies Delivery Area","5399","Materials for resale","24/01/2018"
"Wolverhampton City Council","http://opendatacommunities.org/id/metropolitan-district-council/wolverhampton","J VAN VLIET BIRMINGHAM","134.95","Creative Studies Delivery Area","5399","Materials","24/01/2018"
"Wolverhampton City Council","http://opendatacommunities.org/id/metropolitan-district-council/wolverhampton","PAYPAL  PLATINUM","25.50","Technical Material","5169","Materials","24/01/2018"
"Wolverhampton City Council","http://opendatacommunities.org/id/metropolitan-district-council/wolverhampton","REGISTRARS OFFICE","-3.00","MASH","8299","Training Expenses","24/01/2018"
"Wolverhampton City Council","http://opendatacommunities.org/id/metropolitan-district-council/wolverhampton","REGISTRARS OFFICE","30.00","MASH","8299","Training Expenses","24/01/2018"
"Wolverhampton City Council","http://opendatacommunities.org/id/metropolitan-district-council/wolverhampton","GO CARZ","5.80","CIN/CP Social Work Unit - Area 5","4121","Section 17","24/01/2018"
"Wolverhampton City Council","http://opendatacommunities.org/id/metropolitan-district-council/wolverhampton","NOVOTEL WOLVERHAMPTON","208.33","Register Office","7011","Services - Supplies & Services to users","24/01/2018"
"Wolverhampton City Council","http://opendatacommunities.org/id/metropolitan-district-council/wolverhampton","WWW.DOUBLETWO.CO.UK","122.47","Mayoral Expenses","5691","Clothing / Uniforms","24/01/2018"
"Wolverhampton City Council","http://opendatacommunities.org/id/metropolitan-district-council/wolverhampton","SAINSBURYS PFS (1340)","1.67","Mayoral Expenses","5541","Vehicle Maintenance - Repairs","24/01/2018"
"Wolverhampton City Council","http://opendatacommunities.org/id/metropolitan-district-council/wolverhampton","X BRAND STOCK SOLUTION","228.33","LAC Transitions Team","4225","Client Allowances","24/01/2018"
"Wolverhampton City Council","http://opendatacommunities.org/id/metropolitan-district-council/wolverhampton","ARGOS WOLVERHAMPTO","19.99","LAC Transitions Team","5310","Client Allowances","24/01/2018"
"Wolverhampton City Council","http://opendatacommunities.org/id/metropolitan-district-council/wolverhampton","SAINSBURYS (2340)","92.08","LAC Transitions Team","5411","Client Allowances","24/01/2018"
"Wolverhampton City Council","http://opendatacommunities.org/id/metropolitan-district-council/wolverhampton","TRADE SIGNZ","368.58","Document Centre - General","5943","Equipment - Purchase","24/01/2018"
"Wolverhampton City Council","http://opendatacommunities.org/id/metropolitan-district-council/wolverhampton","W M MORRISONS.COM","83.35","Discretionary Fund","5411","Materials","24/01/2018"
"Wolverhampton City Council","http://opendatacommunities.org/id/metropolitan-district-council/wolverhampton","IKEA ONLINE","133.00","EIP Locality 5","5719","Grant Payments","24/01/2018"
"Wolverhampton City Council","http://opendatacommunities.org/id/metropolitan-district-council/wolverhampton","WWW.ARGOS.CO.UK","107.44","EIP Locality 5","5310","Grant Payments","24/01/2018"
"Wolverhampton City Council","http://opendatacommunities.org/id/metropolitan-district-council/wolverhampton","SCREWFIX DIRECT","37.47","Central Costs","5211","Equipment - Purchase","24/01/2018"
"Wolverhampton City Council","http://opendatacommunities.org/id/metropolitan-district-council/wolverhampton","GEORGE WEIL & SONS","62.87","Foundation Studies","5970","Equipment - Purchase","24/01/2018"
"Wolverhampton City Council","http://opendatacommunities.org/id/metropolitan-district-council/wolverhampton","AMAZON SVCS EU-UK AMAZ","1.32","Technical Material","5942","Equipment - Purchase","23/01/2018"
"Wolverhampton City Council","http://opendatacommunities.org/id/metropolitan-district-council/wolverhampton","IVOJO MULTIMEDIA LIMIT","126.00","Venice Daspara - ACE NPO WAG","5046","Equipment - Purchase","23/01/2018"
"Wolverhampton City Council","http://opendatacommunities.org/id/metropolitan-district-council/wolverhampton","AMAZON EU AMAZON.CO.UK","80.67","EIP Locality 2","5999","Equipment - Purchase","23/01/2018"
"Wolverhampton City Council","http://opendatacommunities.org/id/metropolitan-district-council/wolverhampton","Amazon UK Marketplace","7.47","EIP Locality 2","5942","Stationery","23/01/2018"
"Wolverhampton City Council","http://opendatacommunities.org/id/metropolitan-district-council/wolverhampton","TESCO STORES 5194","194.54","Towers Outdoor Education Centre","5411","Provisions (Not for resale)","23/01/2018"
"Wolverhampton City Council","http://opendatacommunities.org/id/metropolitan-district-council/wolverhampton","Virgin Trains","229.20","Delivery & OCE Development","4112","Public Transport","23/01/2018"
"Wolverhampton City Council","http://opendatacommunities.org/id/metropolitan-district-council/wolverhampton","Amazon EU","106.00","Technical Support","5969","Equipment - Purchase","23/01/2018"
"Wolverhampton City Council","http://opendatacommunities.org/id/metropolitan-district-council/wolverhampton","Hotel on Booking.com","180.22","GEN Y City Transnational","7011","Services - Supplies & Services to users","23/01/2018"
"Wolverhampton City Council","http://opendatacommunities.org/id/metropolitan-district-council/wolverhampton","AMAZON EU AMAZON.CO.UK","19.55","LAC Transitions Team","5999","Client Allowances","23/01/2018"
"Wolverhampton City Council","http://opendatacommunities.org/id/metropolitan-district-council/wolverhampton","Trainline","50.70","Youth Offending Team","4112","Public Transport","23/01/2018"
"Wolverhampton City Council","http://opendatacommunities.org/id/metropolitan-district-council/wolverhampton","Trainline","50.30","CIN/CP Social Work Unit - Area 2","4112","Public Transport","23/01/2018"
"Wolverhampton City Council","http://opendatacommunities.org/id/metropolitan-district-council/wolverhampton","OXLEY STATIONERS &","18.75","Community Pathways","5943","Stationery","23/01/2018"
"Wolverhampton City Council","http://opendatacommunities.org/id/metropolitan-district-council/wolverhampton","WWW.LEWIS-PLAST.CO.UK","-23.21","Duke Street Bungalows","5047","Equipment - Purchase","23/01/2018"
"Wolverhampton City Council","http://opendatacommunities.org/id/metropolitan-district-council/wolverhampton","Trainline","29.85","Technical Support","4112","Public Transport","23/01/2018"
"Wolverhampton City Council","http://opendatacommunities.org/id/metropolitan-district-council/wolverhampton","Amazon Prime","7.99","Technical Support","5968","Subscriptions","23/01/2018"
"Wolverhampton City Council","http://opendatacommunities.org/id/metropolitan-district-council/wolverhampton","Amazon UK Marketplace","141.07","EIP Locality 3","5942","Grant Payments","23/01/2018"
"Wolverhampton City Council","http://opendatacommunities.org/id/metropolitan-district-council/wolverhampton","B & Q 1243","17.40","Ernest Bold Court","5211","Equipment - R & M","23/01/2018"
"Wolverhampton City Council","http://opendatacommunities.org/id/metropolitan-district-council/wolverhampton","ASDA HOME SHOPPING","58.28","Ernest Bold Court","5411","Provisions (Not for resale)","23/01/2018"
"Wolverhampton City Council","http://opendatacommunities.org/id/metropolitan-district-council/wolverhampton","Trainline","73.50","Head of Service - LAC","4112","Public Transport","23/01/2018"
"Wolverhampton City Council","http://opendatacommunities.org/id/metropolitan-district-council/wolverhampton","Amazon UK Marketplace","9.45","Specialist Support Service - North","5942","Services - Supplies & Services to users","23/01/2018"
"Wolverhampton City Council","http://opendatacommunities.org/id/metropolitan-district-council/wolverhampton","T K MAXX","26.67","Duke Street Bungalows","5331","Equipment - R & M","23/01/2018"
"Wolverhampton City Council","http://opendatacommunities.org/id/metropolitan-district-council/wolverhampton","HOME BARGAINS","1.65","Duke Street Bungalows","5251","Equipment - R & M","23/01/2018"
"Wolverhampton City Council","http://opendatacommunities.org/id/metropolitan-district-council/wolverhampton","REGISTRARS OFFICE","40.00","Head of Service - CINCP","8299","Services - Professional Fees","23/01/2018"
"Wolverhampton City Council","http://opendatacommunities.org/id/metropolitan-district-council/wolverhampton","REGISTRARS OFFICE","40.00","Head of Service - CINCP","8299","Services - Professional Fees","23/01/2018"
"Wolverhampton City Council","http://opendatacommunities.org/id/metropolitan-district-council/wolverhampton","TFM FARM & COUNTRY SUP","57.22","Northicote Farm","5399","Materials","23/01/2018"
"Wolverhampton City Council","http://opendatacommunities.org/id/metropolitan-district-council/wolverhampton","POST OFFICE COUNTER","3.05","Head of Service - CINCP","9402","Comms - Postage","22/01/2018"
"Wolverhampton City Council","http://opendatacommunities.org/id/metropolitan-district-council/wolverhampton","AMAZON EU AMAZON.CO.UK","5.41","Environmental Health - Pub Prot - Gen","5999","Equipment - Purchase","22/01/2018"
"Wolverhampton City Council","http://opendatacommunities.org/id/metropolitan-district-council/wolverhampton","PAYPAL  RM EXPRESS","7.96","Environmental Health - Pub Prot - Gen","5732","Equipment - Purchase","22/01/2018"
"Wolverhampton City Council","http://opendatacommunities.org/id/metropolitan-district-council/wolverhampton","PAYPAL  BLUEACETRAD","15.60","Environmental Health - Pub Prot - Gen","5331","Equipment - Purchase","22/01/2018"
"Wolverhampton City Council","http://opendatacommunities.org/id/metropolitan-district-council/wolverhampton","FORBIDDEN PLANET","98.95","Global Budgets","5942","Books","22/01/2018"
"Wolverhampton City Council","http://opendatacommunities.org/id/metropolitan-district-council/wolverhampton","FORBIDDEN PLANET","44.99","Global Budgets","5942","Books","22/01/2018"
"Wolverhampton City Council","http://opendatacommunities.org/id/metropolitan-district-council/wolverhampton","Amazon UK Marketplace","16.49","Specialist Support Service - North","5942","Services - Supplies & Services to users","22/01/2018"
"Wolverhampton City Council","http://opendatacommunities.org/id/metropolitan-district-council/wolverhampton","Amazon UK Marketplace","12.43","Specialist Support Service - North","5942","Services - Supplies & Services to users","22/01/2018"
"Wolverhampton City Council","http://opendatacommunities.org/id/metropolitan-district-council/wolverhampton","SCREWFIX DIRECT LT","14.46","Car Parks Operational Staff","5211","Equipment - Purchase","22/01/2018"
"Wolverhampton City Council","http://opendatacommunities.org/id/metropolitan-district-council/wolverhampton","SAINSBURYS SACAT (2340","36.43","Mayoral Expenses","5411","Provisions (Not for resale)","22/01/2018"
"Wolverhampton City Council","http://opendatacommunities.org/id/metropolitan-district-council/wolverhampton","WWW.COFFEESUPPLIESDIRE","94.15","Archives","5331","Materials for resale","22/01/2018"
"Wolverhampton City Council","http://opendatacommunities.org/id/metropolitan-district-council/wolverhampton","RYMAN","19.99","Wolverhampton Indoor and Open Market","5943","Stationery","22/01/2018"
"Wolverhampton City Council","http://opendatacommunities.org/id/metropolitan-district-council/wolverhampton","CUMMINGS BROTHERS LOCK","10.00","Caretakers Community Centre","7399","R&M - Departmental planned (external)","22/01/2018"
"Wolverhampton City Council","http://opendatacommunities.org/id/metropolitan-district-council/wolverhampton","CUMMINGS BROTHERS LOCK","24.00","Priory Green","7399","R&M - Departmental planned (external)","22/01/2018"
"Wolverhampton City Council","http://opendatacommunities.org/id/metropolitan-district-council/wolverhampton","CUMMINGS BROTHERS LOCK","41.67","Hickman Avenue Depot","7399","R&M - Departmental planned (external)","22/01/2018"
"Wolverhampton City Council","http://opendatacommunities.org/id/metropolitan-district-council/wolverhampton","ARGOS RETAIL GROUP","33.32","LAC Transitions Team","5310","Client Allowances","22/01/2018"
"Wolverhampton City Council","http://opendatacommunities.org/id/metropolitan-district-council/wolverhampton","WWW.LEWIS-PLAST.CO.UK","42.00","Duke Street Bungalows","5047","Equipment - Purchase","22/01/2018"
"Wolverhampton City Council","http://opendatacommunities.org/id/metropolitan-district-council/wolverhampton","SCREWFIX DIRECT LT","12.07","Community Recreation","5211","Equipment - Purchase","22/01/2018"
"Wolverhampton City Council","http://opendatacommunities.org/id/metropolitan-district-council/wolverhampton","Wix.com","93.13","Technical Support","5817","Computing - Purchase of Software","22/01/2018"
"Wolverhampton City Council","http://opendatacommunities.org/id/metropolitan-district-council/wolverhampton","AMAZON EU AMAZON.CO.UK","12.99","Global Budgets","5999","Books","22/01/2018"
"Wolverhampton City Council","http://opendatacommunities.org/id/metropolitan-district-council/wolverhampton","Amazon UK Marketplace","7.99","Global Budgets","5942","Books","22/01/2018"
"Wolverhampton City Council","http://opendatacommunities.org/id/metropolitan-district-council/wolverhampton","Trainline","151.45","Archives","4112","Public Transport","22/01/2018"
"Wolverhampton City Council","http://opendatacommunities.org/id/metropolitan-district-council/wolverhampton","Trainline","89.50","Admin & Support","4112","Public Transport","22/01/2018"
"Wolverhampton City Council","http://opendatacommunities.org/id/metropolitan-district-council/wolverhampton","TRAINLINE","-184.30","Business Manager - Place","4112","Public Transport","22/01/2018"
"Wolverhampton City Council","http://opendatacommunities.org/id/metropolitan-district-council/wolverhampton","AMAZON SVCS EU-UK AMAZ","17.97","Strategic ICTS (ICT Serv Budget)","5942","Computing - Purchase of Hardware","22/01/2018"
"Wolverhampton City Council","http://opendatacommunities.org/id/metropolitan-district-council/wolverhampton","AMAZON SVCS EU-UK AMAZ","366.63","Strategic ICTS (ICT Serv Budget)","5942","Computing - Purchase of Hardware","22/01/2018"
"Wolverhampton City Council","http://opendatacommunities.org/id/metropolitan-district-council/wolverhampton","WWW.WMCA.CO.UK","34.80","Strategic ICTS (ICT Serv Budget)","9399","Public Transport","22/01/2018"
"Wolverhampton City Council","http://opendatacommunities.org/id/metropolitan-district-council/wolverhampton","AMAZON SVCS EU-UK AMAZ","19.49","Strategic ICTS (ICT Serv Budget)","5942","Computing - Purchase of Hardware","22/01/2018"
"Wolverhampton City Council","http://opendatacommunities.org/id/metropolitan-district-council/wolverhampton","AMAZON SVCS EU-UK AMAZ","91.58","Strategic ICTS (ICT Serv Budget)","5942","Computing - Purchase of Hardware","22/01/2018"
"Wolverhampton City Council","http://opendatacommunities.org/id/metropolitan-district-council/wolverhampton","AMZ Amazon US","-3.63","Intensive Family Support Team","5999","Equipment - Purchase","22/01/2018"
"Wolverhampton City Council","http://opendatacommunities.org/id/metropolitan-district-council/wolverhampton","ASDA HOME SHOPPING","-17.40","Upper Pendeford Farm Childrens Home","5411","Provisions (Not for resale)","22/01/2018"
"Wolverhampton City Council","http://opendatacommunities.org/id/metropolitan-district-council/wolverhampton","WM MORRISONS","11.71","Headstart Phase 3","5411","Provisions (Not for resale)","22/01/2018"
"Wolverhampton City Council","http://opendatacommunities.org/id/metropolitan-district-council/wolverhampton","WOLVERHAMPTON RACECOUR","5.42","Headstart Phase 3","7999","Subsistence","22/01/2018"
"Wolverhampton City Council","http://opendatacommunities.org/id/metropolitan-district-council/wolverhampton","Trainline","151.45","Archives","4112","Public Transport","22/01/2018"
"Wolverhampton City Council","http://opendatacommunities.org/id/metropolitan-district-council/wolverhampton","Amazon UK Marketplace","9.20","Car Parks Operational Staff","5942","Equipment - Purchase","22/01/2018"
"Wolverhampton City Council","http://opendatacommunities.org/id/metropolitan-district-council/wolverhampton","UNTOUCHABLES","18.50","Education Catering - General Overheads","5231","Materials","22/01/2018"
"Wolverhampton City Council","http://opendatacommunities.org/id/metropolitan-district-council/wolverhampton","CHARTERED INSTITUTE OF","100.00","Central Training","8931","Training Expenses","22/01/2018"
"Wolverhampton City Council","http://opendatacommunities.org/id/metropolitan-district-council/wolverhampton","Amazon UK Marketplace","42.65","School Improvement","5942","Books","22/01/2018"
"Wolverhampton City Council","http://opendatacommunities.org/id/metropolitan-district-council/wolverhampton","Trainline","78.00","CIN/CP Social Work Unit - Area 4","4112","Section 17","22/01/2018"
"Wolverhampton City Council","http://opendatacommunities.org/id/metropolitan-district-council/wolverhampton","Trainline","86.50","CIN/CP Social Work Unit - Area 4","4112","Section 17","22/01/2018"
"Wolverhampton City Council","http://opendatacommunities.org/id/metropolitan-district-council/wolverhampton","Hotel on Booking.com","59.42","Music Support Team","7011","Equipment - Purchase","22/01/2018"
"Wolverhampton City Council","http://opendatacommunities.org/id/metropolitan-district-council/wolverhampton","Trainline","18.25","CIN/CP Social Work Unit - Area 8","4112","Public Transport","22/01/2018"
"Wolverhampton City Council","http://opendatacommunities.org/id/metropolitan-district-council/wolverhampton","Trainline","35.75","CIN/CP Social Work Unit - Area 8","4112","Public Transport","22/01/2018"
"Wolverhampton City Council","http://opendatacommunities.org/id/metropolitan-district-council/wolverhampton","PREMIER INN","87.48","Members Expenses","3811","Subsistence","22/01/2018"
"Wolverhampton City Council","http://opendatacommunities.org/id/metropolitan-district-council/wolverhampton","Virgin Trains","115.50","Members Expenses","4112","Public Transport","22/01/2018"
"Wolverhampton City Council","http://opendatacommunities.org/id/metropolitan-district-council/wolverhampton","WICKES","102.14","Northicote Farm","5211","Equipment - R & M","22/01/2018"
"Wolverhampton City Council","http://opendatacommunities.org/id/metropolitan-district-council/wolverhampton","Amazon UK Marketplace","22.19","Education And Access","5942","Materials","22/01/2018"
"Wolverhampton City Council","http://opendatacommunities.org/id/metropolitan-district-council/wolverhampton","Amazon UK Marketplace","4.50","Education And Access","5942","Materials","22/01/2018"
"Wolverhampton City Council","http://opendatacommunities.org/id/metropolitan-district-council/wolverhampton","ASDA HOME SHOPPING","101.34","EIP Locality 4","5411","Grant Payments","22/01/2018"
"Wolverhampton City Council","http://opendatacommunities.org/id/metropolitan-district-council/wolverhampton","AMAZON EU AMAZON.CO.UK","27.71","Headstart - Learning Technologies Team","5999","Equipment - Purchase","22/01/2018"
"Wolverhampton City Council","http://opendatacommunities.org/id/metropolitan-district-council/wolverhampton","EE TOP UP VESTA","20.00","Headstart - Learning Technologies Team","4814","Comms - Telephone Call charges","22/01/2018"
"Wolverhampton City Council","http://opendatacommunities.org/id/metropolitan-district-council/wolverhampton","EE TOP UP VESTA","20.00","Headstart - Learning Technologies Team","4814","Comms - Telephone Call charges","22/01/2018"
"Wolverhampton City Council","http://opendatacommunities.org/id/metropolitan-district-council/wolverhampton","AMAZON SVCS EU-UK AMAZ","141.67","Headstart Phase 3","5942","Furniture","22/01/2018"
"Wolverhampton City Council","http://opendatacommunities.org/id/metropolitan-district-council/wolverhampton","HOME BARGAINS","73.23","Headstart Phase 3","5251","Equipment - Purchase","22/01/2018"
"Wolverhampton City Council","http://opendatacommunities.org/id/metropolitan-district-council/wolverhampton","SAINSBURYS (2340)","15.00","Headstart - Young People Engagement","5411","Equipment - Purchase","22/01/2018"
"Wolverhampton City Council","http://opendatacommunities.org/id/metropolitan-district-council/wolverhampton","WWWRLSSORGUK","43.00","Bert Williams Leisure Centre","5734","Computing - Purchase of Software","22/01/2018"
"Wolverhampton City Council","http://opendatacommunities.org/id/metropolitan-district-council/wolverhampton","SHELL & WAITROSE","2.50","Mayoral Expenses","5541","Vehicle Maintenance - Repairs","22/01/2018"
"Wolverhampton City Council","http://opendatacommunities.org/id/metropolitan-district-council/wolverhampton","THE NEW BRIDGE GUEST H","100.00","EIP Locality 3","7011","Grant Payments","22/01/2018"
"Wolverhampton City Council","http://opendatacommunities.org/id/metropolitan-district-council/wolverhampton","Amazon UK Marketplace","12.27","EIP Locality 3","5942","Grant Payments","22/01/2018"
"Wolverhampton City Council","http://opendatacommunities.org/id/metropolitan-district-council/wolverhampton","ASDA HOME SHOPPING","61.89","Ernest Bold Court","5411","Provisions (Not for resale)","22/01/2018"
"Wolverhampton City Council","http://opendatacommunities.org/id/metropolitan-district-council/wolverhampton","AMAZON SVCS EU-UK AMAZ","20.25","Technician","5942","Books","22/01/2018"
"Wolverhampton City Council","http://opendatacommunities.org/id/metropolitan-district-council/wolverhampton","WAITROSE 696","7.01","EIP Locality 3","5411","Grant Payments","22/01/2018"
"Wolverhampton City Council","http://opendatacommunities.org/id/metropolitan-district-council/wolverhampton","ARGOS RETAIL GROUP","27.56","EIP Locality 2","5310","Equipment - Purchase","22/01/2018"
"Wolverhampton City Council","http://opendatacommunities.org/id/metropolitan-district-council/wolverhampton","MACMILLAN DISTRIBUTION","167.84","Literature Festival","2741","Publications","22/01/2018"
"Wolverhampton City Council","http://opendatacommunities.org/id/metropolitan-district-council/wolverhampton","WYNNSTAY ARGICULTURAL","23.05","Towers Outdoor Education Centre","5311","Fixtures and Fittings - Purchases","22/01/2018"
"Wolverhampton City Council","http://opendatacommunities.org/id/metropolitan-district-council/wolverhampton","THE POST OFFICE","9.40","Towers Outdoor Education Centre","9402","Comms - Postage","22/01/2018"
"Wolverhampton City Council","http://opendatacommunities.org/id/metropolitan-district-council/wolverhampton","Amazon UK Marketplace","109.51","WMMD PROJECT (SchoolWork)","5942","Materials","22/01/2018"
"Wolverhampton City Council","http://opendatacommunities.org/id/metropolitan-district-council/wolverhampton","Amazon UK Marketplace","24.07","Education And Access","5942","Materials","22/01/2018"
"Wolverhampton City Council","http://opendatacommunities.org/id/metropolitan-district-council/wolverhampton","Amazon UK Marketplace","13.70","Education And Access","5942","Materials","22/01/2018"
"Wolverhampton City Council","http://opendatacommunities.org/id/metropolitan-district-council/wolverhampton","Amazon UK Marketplace","10.13","Education And Access","5942","Materials","22/01/2018"
"Wolverhampton City Council","http://opendatacommunities.org/id/metropolitan-district-council/wolverhampton","Amazon UK Marketplace","10.96","Education And Access","5942","Materials","22/01/2018"
"Wolverhampton City Council","http://opendatacommunities.org/id/metropolitan-district-council/wolverhampton","Amazon UK Marketplace","12.66","Education And Access","5942","Materials","22/01/2018"
"Wolverhampton City Council","http://opendatacommunities.org/id/metropolitan-district-council/wolverhampton","AMAZON SVCS EU-UK AMAZ","7.68","Technical Material","5942","Equipment - Purchase","22/01/2018"
"Wolverhampton City Council","http://opendatacommunities.org/id/metropolitan-district-council/wolverhampton","HOME BARGAINS WOLVERHA","16.62","Duke Street Bungalows","5251","Equipment - Purchase","19/01/2018"
"Wolverhampton City Council","http://opendatacommunities.org/id/metropolitan-district-council/wolverhampton","HOME BARGAINS WOLVERHA","21.63","Duke Street Bungalows","5251","Equipment - Purchase","19/01/2018"
"Wolverhampton City Council","http://opendatacommunities.org/id/metropolitan-district-council/wolverhampton","ROYAL BK OF SCOTLAND","50.00","Duke Street Bungalows","6011","Provisions (Not for resale)","19/01/2018"
"Wolverhampton City Council","http://opendatacommunities.org/id/metropolitan-district-council/wolverhampton","CUMMINGS BROTHERS LOCK","9.17","Adult Services - East","7399","Equipment - Purchase","19/01/2018"
"Wolverhampton City Council","http://opendatacommunities.org/id/metropolitan-district-council/wolverhampton","BE EVENT HIRE","-839.60","Wolverhampton Indoor and Open Market","7394","Equipment - Hire","19/01/2018"
"Wolverhampton City Council","http://opendatacommunities.org/id/metropolitan-district-council/wolverhampton","OFSTED MOTO","220.00","EIP Locality 8","9399","Services - Professional Fees","19/01/2018"
"Wolverhampton City Council","http://opendatacommunities.org/id/metropolitan-district-council/wolverhampton","AUDIENCE.UK.COM","75.00","Audience Development","8699","Subscriptions","19/01/2018"
"Wolverhampton City Council","http://opendatacommunities.org/id/metropolitan-district-council/wolverhampton","IKEA ONLINE","117.50","EIP Locality 4","5719","Equipment - Purchase","19/01/2018"
"Wolverhampton City Council","http://opendatacommunities.org/id/metropolitan-district-council/wolverhampton","CORAM ACADEMY LTD","21.33","Fostering Team & Allowances","8398","Services - Supplies & Services to users","19/01/2018"
"Wolverhampton City Council","http://opendatacommunities.org/id/metropolitan-district-council/wolverhampton","CURRYS ONLINE","20.82","Communications & Marketing - General","5732","Equipment - Purchase","19/01/2018"
"Wolverhampton City Council","http://opendatacommunities.org/id/metropolitan-district-council/wolverhampton","WOLVERHAMPTON CC","12.50","IMPACT","7523","Car Allowances","19/01/2018"
"Wolverhampton City Council","http://opendatacommunities.org/id/metropolitan-district-council/wolverhampton","SAINSBURYS SACAT (2340","21.00","IMPACT","5411","Provisions (Not for resale)","19/01/2018"
"Wolverhampton City Council","http://opendatacommunities.org/id/metropolitan-district-council/wolverhampton","SAINSBURYS PFS (1340)","1.67","Mayoral Expenses","5541","Vehicle Maintenance - Repairs","19/01/2018"
"Wolverhampton City Council","http://opendatacommunities.org/id/metropolitan-district-council/wolverhampton","WISEPOPS","36.53","City Direct","7372","Computing - Purchase of Software","19/01/2018"
"Wolverhampton City Council","http://opendatacommunities.org/id/metropolitan-district-council/wolverhampton","AMZ Hengweili","-49.63","LAC Education Team (LACE)","5999","Equipment - Purchase","19/01/2018"
"Wolverhampton City Council","http://opendatacommunities.org/id/metropolitan-district-council/wolverhampton","UNTOUCHABLES","19.37","Cemeteries","5231","Materials","19/01/2018"
"Wolverhampton City Council","http://opendatacommunities.org/id/metropolitan-district-council/wolverhampton","Amazon UK Marketplace","304.16","Digital Transformation Programme","5942","Computing - Purchase of Hardware","19/01/2018"
"Wolverhampton City Council","http://opendatacommunities.org/id/metropolitan-district-council/wolverhampton","EBUYER (UK) LTD","92.64","Strategic ICTS (ICT Serv Budget)","5722","Equipment - Purchase","19/01/2018"
"Wolverhampton City Council","http://opendatacommunities.org/id/metropolitan-district-council/wolverhampton","PREMIER INN","-76.99","LAC Team","3811","Services - Supplies & Services to users","19/01/2018"
"Wolverhampton City Council","http://opendatacommunities.org/id/metropolitan-district-council/wolverhampton","EB  NATIONAL AMHP LEAD","50.00","Mental Health Assessment & Care Mgmt","7399","Equipment - Purchase","19/01/2018"
"Wolverhampton City Council","http://opendatacommunities.org/id/metropolitan-district-council/wolverhampton","EB  NATIONAL AMHP LEAD","50.00","Mental Health Assessment & Care Mgmt","7399","Equipment - Purchase","19/01/2018"
"Wolverhampton City Council","http://opendatacommunities.org/id/metropolitan-district-council/wolverhampton","Trainline","44.70","Research & Development","4112","Public Transport","19/01/2018"
"Wolverhampton City Council","http://opendatacommunities.org/id/metropolitan-district-council/wolverhampton","B&M RETAIL LTD","4.16","LAC Transitions Team","5310","Client Allowances","19/01/2018"
"Wolverhampton City Council","http://opendatacommunities.org/id/metropolitan-district-council/wolverhampton","AMAZON SVCS EU-UK AMAZ","17.81","Archives","5942","Books","19/01/2018"
"Wolverhampton City Council","http://opendatacommunities.org/id/metropolitan-district-council/wolverhampton","WATERSTONES","100.00","Wolverhampton Indoor and Open Market","5942","Books","19/01/2018"
"Wolverhampton City Council","http://opendatacommunities.org/id/metropolitan-district-council/wolverhampton","LIDDELL ELECTRICAL DIS","48.95","Culwell Street Depot","5065","R&M - Departmental planned (external)","19/01/2018"
"Wolverhampton City Council","http://opendatacommunities.org/id/metropolitan-district-council/wolverhampton","JOHNSTONES DEC CENTRE","46.57","Culwell Street Depot","5231","R&M - Departmental planned (external)","19/01/2018"
"Wolverhampton City Council","http://opendatacommunities.org/id/metropolitan-district-council/wolverhampton","Trainline","34.35","SEN Special Education Admin","4112","Public Transport","19/01/2018"
"Wolverhampton City Council","http://opendatacommunities.org/id/metropolitan-district-council/wolverhampton","WWW.WMCA.CO.UK","326.00","Employment Programmes","4112","Public Transport","19/01/2018"
"Wolverhampton City Council","http://opendatacommunities.org/id/metropolitan-district-council/wolverhampton","WWW.WMCA.CO.UK","326.00","Employment Programmes","4112","Public Transport","19/01/2018"
"Wolverhampton City Council","http://opendatacommunities.org/id/metropolitan-district-council/wolverhampton","Amazon UK Marketplace","31.80","Civic Centre","5942","Equipment - Purchase","19/01/2018"
"Wolverhampton City Council","http://opendatacommunities.org/id/metropolitan-district-council/wolverhampton","Virgin Trains","1057.00","Technical Support","4112","Public Transport","19/01/2018"
"Wolverhampton City Council","http://opendatacommunities.org/id/metropolitan-district-council/wolverhampton","E01577600000000","20.00","EIP Locality 3","6011","Grant Payments","19/01/2018"
"Wolverhampton City Council","http://opendatacommunities.org/id/metropolitan-district-council/wolverhampton","NOVOTEL HOTELS","45.83","Global Budgets","3642","Accommodation Costs","19/01/2018"
"Wolverhampton City Council","http://opendatacommunities.org/id/metropolitan-district-council/wolverhampton","NOVOTEL HOTELS","91.67","Global Budgets","3642","Accommodation Costs","19/01/2018"
"Wolverhampton City Council","http://opendatacommunities.org/id/metropolitan-district-council/wolverhampton","THE POST OFFICE","2.08","CIN/CP Social Work Unit - Area 4","9402","Section 17","19/01/2018"
"Wolverhampton City Council","http://opendatacommunities.org/id/metropolitan-district-council/wolverhampton","PREMIER INN","170.50","Business Manager - Place","3811","Services - Supplies & Services to users","19/01/2018"
"Wolverhampton City Council","http://opendatacommunities.org/id/metropolitan-district-council/wolverhampton","TVLICENSING.CO.UK","147.00","Blakenhall Resource Centre","7392","Services - General Licences","19/01/2018"
"Wolverhampton City Council","http://opendatacommunities.org/id/metropolitan-district-council/wolverhampton","TRAINLINE","-172.00","Equalities","4112","Public Transport","19/01/2018"
"Wolverhampton City Council","http://opendatacommunities.org/id/metropolitan-district-council/wolverhampton","WWW.HARPERCOLLINS.CO.U","50.00","School Improvement","5942","Books","19/01/2018"
"Wolverhampton City Council","http://opendatacommunities.org/id/metropolitan-district-council/wolverhampton","WWW.AANDCAUDIO.CO.UK","171.48","Maintenance of Exhibits","5735","Materials","19/01/2018"
"Wolverhampton City Council","http://opendatacommunities.org/id/metropolitan-district-council/wolverhampton","HSBC CASH MACHINE","40.00","Strategic Director Place","6011","Financial Assistance In Exceptional Circ","18/01/2018"
"Wolverhampton City Council","http://opendatacommunities.org/id/metropolitan-district-council/wolverhampton","AMAZON EU AMAZON.CO.UK","-115.40","Strategic ICTS (ICT Serv Budget)","5999","Equipment - Purchase","18/01/2018"
"Wolverhampton City Council","http://opendatacommunities.org/id/metropolitan-district-council/wolverhampton","WWW.ARGOS.CO.UK","53.28","Central Baths","5310","Equipment - Purchase","18/01/2018"
"Wolverhampton City Council","http://opendatacommunities.org/id/metropolitan-district-council/wolverhampton","WWW.ARGOS.CO.UK","141.66","Central Baths","5310","Equipment - Purchase","18/01/2018"
"Wolverhampton City Council","http://opendatacommunities.org/id/metropolitan-district-council/wolverhampton","Amazon EU","63.83","Central Baths","5969","Equipment - Purchase","18/01/2018"
"Wolverhampton City Council","http://opendatacommunities.org/id/metropolitan-district-council/wolverhampton","Amazon UK Marketplace","9.34","Central Baths","5942","Equipment - Purchase","18/01/2018"
"Wolverhampton City Council","http://opendatacommunities.org/id/metropolitan-district-council/wolverhampton","ASDA SUPERSTORE","3.00","Upper Pendeford Farm Childrens Home","5411","Provisions (Not for resale)","18/01/2018"
"Wolverhampton City Council","http://opendatacommunities.org/id/metropolitan-district-council/wolverhampton","ASDA SUPERSTORE","246.51","Upper Pendeford Farm Childrens Home","5411","Provisions (Not for resale)","18/01/2018"
"Wolverhampton City Council","http://opendatacommunities.org/id/metropolitan-district-council/wolverhampton","WWW.IAB.ORG.UK","55.00","Work Related Studies","8699","Books","18/01/2018"
"Wolverhampton City Council","http://opendatacommunities.org/id/metropolitan-district-council/wolverhampton","ITUNES.COM/BILL","16.66","Foundation Studies","5735","Computing - Purchase of Software","18/01/2018"
"Wolverhampton City Council","http://opendatacommunities.org/id/metropolitan-district-council/wolverhampton","ITUNES.COM/BILL","62.49","Foundation Studies","5735","Computing - Purchase of Software","18/01/2018"
"Wolverhampton City Council","http://opendatacommunities.org/id/metropolitan-district-council/wolverhampton","B&M RETAIL LTD","15.84","LAC Transitions Team","5310","Client Allowances","18/01/2018"
"Wolverhampton City Council","http://opendatacommunities.org/id/metropolitan-district-council/wolverhampton","ALDI 94 772","37.07","EIP Locality 3","5411","Grant Payments","18/01/2018"
"Wolverhampton City Council","http://opendatacommunities.org/id/metropolitan-district-council/wolverhampton","NOTEMACHINE","250.00","CIN/CP Social Work Unit - Area 6","6011","Financial Assistance In Exceptional Circ","18/01/2018"
"Wolverhampton City Council","http://opendatacommunities.org/id/metropolitan-district-council/wolverhampton","AMAZON SVCS EU-UK AMAZ","5.77","Towers Outdoor Education Centre","5942","Fixtures and Fittings - Purchases","18/01/2018"
"Wolverhampton City Council","http://opendatacommunities.org/id/metropolitan-district-council/wolverhampton","Amazon UK Marketplace","39.09","WMMD PROJECT (SchoolWork)","5942","Materials","18/01/2018"
"Wolverhampton City Council","http://opendatacommunities.org/id/metropolitan-district-council/wolverhampton","Amazon UK Marketplace","60.67","WMMD PROJECT (SchoolWork)","5942","Materials","18/01/2018"
"Wolverhampton City Council","http://opendatacommunities.org/id/metropolitan-district-council/wolverhampton","SUK RETAIL LTD","6.66","Fostering Team & Allowances","5943","Stationery","18/01/2018"
"Wolverhampton City Council","http://opendatacommunities.org/id/metropolitan-district-council/wolverhampton","WOLVERHAMPTON CC","5.50","IMPACT","7523","Car Allowances","18/01/2018"
"Wolverhampton City Council","http://opendatacommunities.org/id/metropolitan-district-council/wolverhampton","AMAZON EU AMAZON.CO.UK","24.35","Education Business Partnership","5999","Equipment - Purchase","18/01/2018"
"Wolverhampton City Council","http://opendatacommunities.org/id/metropolitan-district-council/wolverhampton","ICELAND","0.66","City Direct","5411","Provisions (Not for resale)","18/01/2018"
"Wolverhampton City Council","http://opendatacommunities.org/id/metropolitan-district-council/wolverhampton","POUNDWORLD RETAIL","3.75","City Direct","5310","Equipment - Purchase","18/01/2018"
"Wolverhampton City Council","http://opendatacommunities.org/id/metropolitan-district-council/wolverhampton","POUNDLAND LTD 1463","0.83","City Direct","5310","Equipment - Purchase","18/01/2018"
"Wolverhampton City Council","http://opendatacommunities.org/id/metropolitan-district-council/wolverhampton","LUL TICKET MACHINE","4.90","Strategic Director Place","4112","Public Transport","18/01/2018"
"Wolverhampton City Council","http://opendatacommunities.org/id/metropolitan-district-council/wolverhampton","Trainline","142.50","Director of Education","4112","Public Transport","18/01/2018"
"Wolverhampton City Council","http://opendatacommunities.org/id/metropolitan-district-council/wolverhampton","AMAZON SVCS EU-UK AMAZ","3.32","Members Expenses","5942","Equipment - Purchase","18/01/2018"
"Wolverhampton City Council","http://opendatacommunities.org/id/metropolitan-district-council/wolverhampton","AMAZON SVCS EU-UK AMAZ","15.98","Members Expenses","5942","Equipment - Purchase","18/01/2018"
"Wolverhampton City Council","http://opendatacommunities.org/id/metropolitan-district-council/wolverhampton","AMAZON SVCS EU-UK AMAZ","9.12","Members Expenses","5942","Equipment - Purchase","18/01/2018"
"Wolverhampton City Council","http://opendatacommunities.org/id/metropolitan-district-council/wolverhampton","TFM FARM & COUNTRY SUP","43.62","Northicote Farm","5399","Materials","18/01/2018"
"Wolverhampton City Council","http://opendatacommunities.org/id/metropolitan-district-council/wolverhampton","THE POPPY APPEAL","222.00","","8398","Services - Supplies & Services to users","18/01/2018"
"Wolverhampton City Council","http://opendatacommunities.org/id/metropolitan-district-council/wolverhampton","NATWEST BANK","20.00","Ernest Bold Court","6011","Services - Supplies & Services to users","18/01/2018"
"Wolverhampton City Council","http://opendatacommunities.org/id/metropolitan-district-council/wolverhampton","TESCO-Seller_IST_1_240","149.98","Learning Disabilities Management","5999","Equipment - Purchase","18/01/2018"
"Wolverhampton City Council","http://opendatacommunities.org/id/metropolitan-district-council/wolverhampton","TESCO DIRECT","68.33","Learning Disabilities Management","5999","Equipment - Purchase","18/01/2018"
"Wolverhampton City Council","http://opendatacommunities.org/id/metropolitan-district-council/wolverhampton","TESCO - SDY LTD","66.66","Learning Disabilities Management","5999","Equipment - Purchase","18/01/2018"
"Wolverhampton City Council","http://opendatacommunities.org/id/metropolitan-district-council/wolverhampton","TIMPSON LTD","9.00","Craftplay","7251","Materials","18/01/2018"
"Wolverhampton City Council","http://opendatacommunities.org/id/metropolitan-district-council/wolverhampton","Amazon UK Marketplace","113.95","Technical Support","5942","Books","18/01/2018"
"Wolverhampton City Council","http://opendatacommunities.org/id/metropolitan-district-council/wolverhampton","ALDI 94 772","17.81","EIP Locality 3","5411","Cleaning Supplies and Materials","18/01/2018"
"Wolverhampton City Council","http://opendatacommunities.org/id/metropolitan-district-council/wolverhampton","Amazon UK Marketplace","30.67","EIP Locality 3","5942","Grant Payments","18/01/2018"
"Wolverhampton City Council","http://opendatacommunities.org/id/metropolitan-district-council/wolverhampton","SEVERN TRENT WATER","115.29","LAC Team","4900","Financial Assistance In Exceptional Circ","18/01/2018"
"Wolverhampton City Council","http://opendatacommunities.org/id/metropolitan-district-council/wolverhampton","CURRYS ONLINE","163.94","LAC Transitions Team","5732","Client Allowances","18/01/2018"
"Wolverhampton City Council","http://opendatacommunities.org/id/metropolitan-district-council/wolverhampton","WWW.ARGOS.CO.UK","136.61","LAC Transitions Team","5310","Client Allowances","18/01/2018"
"Wolverhampton City Council","http://opendatacommunities.org/id/metropolitan-district-council/wolverhampton","Virgin Trains","98.20","Environmental Health - Pub Prot - Gen","4112","Services - Fees and Charges","18/01/2018"
"Wolverhampton City Council","http://opendatacommunities.org/id/metropolitan-district-council/wolverhampton","PREMIER WOLVERHAMP","120.00","CIN/CP Social Work Unit - Area 5","5921","Section 17","18/01/2018"
"Wolverhampton City Council","http://opendatacommunities.org/id/metropolitan-district-council/wolverhampton","PREMIER INN","112.48","Global Budgets","3811","Accommodation Costs","18/01/2018"
"Wolverhampton City Council","http://opendatacommunities.org/id/metropolitan-district-council/wolverhampton","WWW.WMCA.CO.UK","1304.00","Travel Scratch Cards & Rail Warrants","4112","Public Transport","18/01/2018"
"Wolverhampton City Council","http://opendatacommunities.org/id/metropolitan-district-council/wolverhampton","EB  A DISORDER FOR EVE","79.98","Mental Health Assessment & Care Mgmt","7399","Conference Expenses","18/01/2018"
"Wolverhampton City Council","http://opendatacommunities.org/id/metropolitan-district-council/wolverhampton","J VAN VLIET BIRMINGHAM","99.50","Creative Studies Delivery Area","5399","Materials for resale","18/01/2018"
"Wolverhampton City Council","http://opendatacommunities.org/id/metropolitan-district-council/wolverhampton","J VAN VLIET BIRMINGHAM","93.49","Discretionary Fund","5399","Materials","18/01/2018"
"Wolverhampton City Council","http://opendatacommunities.org/id/metropolitan-district-council/wolverhampton","GO CARZ","5.70","CIN/CP Social Work Unit - Area 5","4121","Section 17","18/01/2018"
"Wolverhampton City Council","http://opendatacommunities.org/id/metropolitan-district-council/wolverhampton","GO CARZ","5.70","CIN/CP Social Work Unit - Area 5","4121","Section 17","18/01/2018"
"Wolverhampton City Council","http://opendatacommunities.org/id/metropolitan-district-council/wolverhampton","GO CARZ","6.00","CIN/CP Social Work Unit - Area 5","4121","Section 17","18/01/2018"
"Wolverhampton City Council","http://opendatacommunities.org/id/metropolitan-district-council/wolverhampton","GO CARZ","5.40","CIN/CP Social Work Unit - Area 5","4121","Section 17","18/01/2018"
"Wolverhampton City Council","http://opendatacommunities.org/id/metropolitan-district-council/wolverhampton","GO CARZ","5.40","CIN/CP Social Work Unit - Area 5","4121","Section 17","18/01/2018"
"Wolverhampton City Council","http://opendatacommunities.org/id/metropolitan-district-council/wolverhampton","Virgin Trains","84.00","Music Support Team","4112","Equipment - Purchase","18/01/2018"
"Wolverhampton City Council","http://opendatacommunities.org/id/metropolitan-district-council/wolverhampton","EXPEDIA 7322874073091","90.00","Fostering Team & Allowances","4722","Accommodation Costs","17/01/2018"
"Wolverhampton City Council","http://opendatacommunities.org/id/metropolitan-district-council/wolverhampton","TESCO STORES 5194","128.08","Towers Outdoor Education Centre","5411","Provisions (Not for resale)","17/01/2018"
"Wolverhampton City Council","http://opendatacommunities.org/id/metropolitan-district-council/wolverhampton","WWW.BLASARFWYD.COM","176.76","Towers Outdoor Education Centre","5499","Provisions (Not for resale)","17/01/2018"
"Wolverhampton City Council","http://opendatacommunities.org/id/metropolitan-district-council/wolverhampton","CHEMSOL CYMRU LTD","51.18","Towers Outdoor Education Centre","5199","Fixtures and Fittings - Purchases","17/01/2018"
"Wolverhampton City Council","http://opendatacommunities.org/id/metropolitan-district-council/wolverhampton","Trainline","117.10","Electoral Registration","4112","Public Transport","17/01/2018"
"Wolverhampton City Council","http://opendatacommunities.org/id/metropolitan-district-council/wolverhampton","Amazon UK Marketplace","12.88","WMMD PROJECT (SchoolWork)","5942","Materials","17/01/2018"
"Wolverhampton City Council","http://opendatacommunities.org/id/metropolitan-district-council/wolverhampton","WWW.STA.CO.UK","39.17","Aldersley Leisure Village","7999","Training Expenses","17/01/2018"
"Wolverhampton City Council","http://opendatacommunities.org/id/metropolitan-district-council/wolverhampton","E01510300000000","100.00","Childrens with Disabilities Team","6011","Financial Assistance In Exceptional Circ","17/01/2018"
"Wolverhampton City Council","http://opendatacommunities.org/id/metropolitan-district-council/wolverhampton","E01510300000000","250.00","Childrens with Disabilities Team","6011","No Recourse to Public Funds","17/01/2018"
"Wolverhampton City Council","http://opendatacommunities.org/id/metropolitan-district-council/wolverhampton","FACEBK Q9R5KDNC22","1.30","Admin & Support","7311","Marketing \ Non-staff advertising","17/01/2018"
"Wolverhampton City Council","http://opendatacommunities.org/id/metropolitan-district-council/wolverhampton","FACEBK N9R5KDNC22","140.34","Admin & Support","7311","Marketing \ Non-staff advertising","17/01/2018"
"Wolverhampton City Council","http://opendatacommunities.org/id/metropolitan-district-council/wolverhampton","Trainline","64.00","Head of Corporate Landlord","4112","Public Transport","17/01/2018"
"Wolverhampton City Council","http://opendatacommunities.org/id/metropolitan-district-council/wolverhampton","AMZ DURONIC","-20.61","Strategic ICTS (ICT Serv Budget)","5999","Computing - Purchase of Hardware","17/01/2018"
"Wolverhampton City Council","http://opendatacommunities.org/id/metropolitan-district-council/wolverhampton","WEST COAST TRAINS","23.60","Strategic ICTS (ICT Serv Budget)","4112","Public Transport","17/01/2018"
"Wolverhampton City Council","http://opendatacommunities.org/id/metropolitan-district-council/wolverhampton","EBUYER (UK) LTD","113.76","Strategic ICTS (ICT Serv Budget)","5722","Equipment - Purchase","17/01/2018"
"Wolverhampton City Council","http://opendatacommunities.org/id/metropolitan-district-council/wolverhampton","Amazon UK Marketplace","9.95","WMMD PROJECT (SchoolWork)","5942","Materials","17/01/2018"
"Wolverhampton City Council","http://opendatacommunities.org/id/metropolitan-district-council/wolverhampton","Amazon UK Marketplace","38.98","WMMD PROJECT (SchoolWork)","5942","Books","17/01/2018"
"Wolverhampton City Council","http://opendatacommunities.org/id/metropolitan-district-council/wolverhampton","Amazon UK Marketplace","109.96","WMMD PROJECT (SchoolWork)","5942","Materials","17/01/2018"
"Wolverhampton City Council","http://opendatacommunities.org/id/metropolitan-district-council/wolverhampton","Amazon UK Marketplace","43.98","Education And Access","5942","Materials","17/01/2018"
"Wolverhampton City Council","http://opendatacommunities.org/id/metropolitan-district-council/wolverhampton","Amazon UK Marketplace","12.60","WMMD PROJECT (SchoolWork)","5942","Books","17/01/2018"
"Wolverhampton City Council","http://opendatacommunities.org/id/metropolitan-district-council/wolverhampton","KREATIVE BUNTING LTD","185.50","Headstart Hubs","5947","Marketing \ Non-staff advertising","17/01/2018"
"Wolverhampton City Council","http://opendatacommunities.org/id/metropolitan-district-council/wolverhampton","SCREWFIX DIRECT","185.69","Caretakers Community Centre","5211","Materials","17/01/2018"
"Wolverhampton City Council","http://opendatacommunities.org/id/metropolitan-district-council/wolverhampton","Virgintrains.co.uk","-81.00","Strategic Financial Services","4112","Public Transport","17/01/2018"
"Wolverhampton City Council","http://opendatacommunities.org/id/metropolitan-district-council/wolverhampton","ASDA SUPERSTORE","100.00","CIN/CP Social Work Unit - Area 3","5411","No Recourse to Public Funds","17/01/2018"
"Wolverhampton City Council","http://opendatacommunities.org/id/metropolitan-district-council/wolverhampton","PRESERVATION EQUIP","-91.90","Technical Material","4225","Materials","17/01/2018"
"Wolverhampton City Council","http://opendatacommunities.org/id/metropolitan-district-council/wolverhampton","PRESERVATION EQUIP","378.46","Technical Material","4225","Materials","17/01/2018"
"Wolverhampton City Council","http://opendatacommunities.org/id/metropolitan-district-council/wolverhampton","YMLP.COM","105.00","Audience Development","7372","Computing - Purchase of Software","17/01/2018"
"Wolverhampton City Council","http://opendatacommunities.org/id/metropolitan-district-council/wolverhampton","Amazon UK Marketplace","12.48","EIP Locality 3","5942","Grant Payments","17/01/2018"
"Wolverhampton City Council","http://opendatacommunities.org/id/metropolitan-district-council/wolverhampton","WWW PROJECTORSHOP24 CO","157.48","Education And Access","5732","Equipment - Purchase","17/01/2018"
"Wolverhampton City Council","http://opendatacommunities.org/id/metropolitan-district-council/wolverhampton","TRAVELODGE","98.33","CIN/CP Social Work Unit - Area 5","3615","Section 17","17/01/2018"
"Wolverhampton City Council","http://opendatacommunities.org/id/metropolitan-district-council/wolverhampton","Amazon EU","41.43","Ernest Bold Court","5969","Stationery","17/01/2018"
"Wolverhampton City Council","http://opendatacommunities.org/id/metropolitan-district-council/wolverhampton","HMCOURTS-SERVICE.G","75.00","Mental Health Assessment & Care Mgmt","9222","Services - Fees and Charges","17/01/2018"
"Wolverhampton City Council","http://opendatacommunities.org/id/metropolitan-district-council/wolverhampton","Amazon UK Marketplace","15.56","School Improvement","5942","Books","17/01/2018"
"Wolverhampton City Council","http://opendatacommunities.org/id/metropolitan-district-council/wolverhampton","ASDA GEORGE COM LEEDS","24.00","CIN/CP Social Work Unit - Area 5","5411","Section 17","17/01/2018"
"Wolverhampton City Council","http://opendatacommunities.org/id/metropolitan-district-council/wolverhampton","ASDA GEORGE COM LEEDS","40.00","CIN/CP Social Work Unit - Area 5","5411","Section 17","17/01/2018"
"Wolverhampton City Council","http://opendatacommunities.org/id/metropolitan-district-council/wolverhampton","ASDA HOME SHOPPING","-8.20","Upper Pendeford Farm Childrens Home","5411","Provisions (Not for resale)","17/01/2018"
"Wolverhampton City Council","http://opendatacommunities.org/id/metropolitan-district-council/wolverhampton","ASDA HOME SHOPPING","25.60","Upper Pendeford Farm Childrens Home","5411","Provisions (Not for resale)","17/01/2018"
"Wolverhampton City Council","http://opendatacommunities.org/id/metropolitan-district-council/wolverhampton","B&M RETAIL","13.32","LAC Transitions Team","5310","Client Allowances","17/01/2018"
"Wolverhampton City Council","http://opendatacommunities.org/id/metropolitan-district-council/wolverhampton","Trainline","-84.50","Director of Education","4112","Public Transport","17/01/2018"
"Wolverhampton City Council","http://opendatacommunities.org/id/metropolitan-district-council/wolverhampton","Virgin Trains","8.30","Children & Young People Support Costs","4112","Public Transport","17/01/2018"
"Wolverhampton City Council","http://opendatacommunities.org/id/metropolitan-district-council/wolverhampton","Amazon UK Marketplace","2.05","Civic Centre","5942","Equipment - Purchase","17/01/2018"
"Wolverhampton City Council","http://opendatacommunities.org/id/metropolitan-district-council/wolverhampton","WWW.HIGHFIELD.CO.UK","358.00","School Meals Statutory Standards","2741","Training Expenses","17/01/2018"
"Wolverhampton City Council","http://opendatacommunities.org/id/metropolitan-district-council/wolverhampton","W M MORRISONS.COM","82.69","Discretionary Fund","5411","Materials","17/01/2018"
"Wolverhampton City Council","http://opendatacommunities.org/id/metropolitan-district-council/wolverhampton","Amazon UK Marketplace","15.00","Global Budgets","5942","Books","17/01/2018"
"Wolverhampton City Council","http://opendatacommunities.org/id/metropolitan-district-council/wolverhampton","ARGOS RETAIL GROUP","37.49","EIP Locality 3","5310","Grant Payments","17/01/2018"
"Wolverhampton City Council","http://opendatacommunities.org/id/metropolitan-district-council/wolverhampton","HUGHES","278.33","EIP Locality 3","5732","Grant Payments","17/01/2018"
"Wolverhampton City Council","http://opendatacommunities.org/id/metropolitan-district-council/wolverhampton","Amazon UK Marketplace","5.40","EIP Locality 3","5942","Grant Payments","17/01/2018"
"Wolverhampton City Council","http://opendatacommunities.org/id/metropolitan-district-council/wolverhampton","Trainline","81.50","CIN/CP Social Work Unit - Area 5","4112","Section 17","17/01/2018"
"Wolverhampton City Council","http://opendatacommunities.org/id/metropolitan-district-council/wolverhampton","POST OFFICE COUNTER","6.72","Ground Maintenance Overheads","9402","Comms - Postage","17/01/2018"
"Wolverhampton City Council","http://opendatacommunities.org/id/metropolitan-district-council/wolverhampton","Amazon EU","218.50","Licensing - General","5969","Books","17/01/2018"
"Wolverhampton City Council","http://opendatacommunities.org/id/metropolitan-district-council/wolverhampton","AARDVARK ART SERVICES","87.84","Another Mountain","4215","Comms - Postage","16/01/2018"
"Wolverhampton City Council","http://opendatacommunities.org/id/metropolitan-district-council/wolverhampton","Cross Country Trains","71.17","LAC Transitions Team","4112","Client Allowances","16/01/2018"
"Wolverhampton City Council","http://opendatacommunities.org/id/metropolitan-district-council/wolverhampton","TESCO STORES 5194","14.75","Towers Outdoor Education Centre","5411","Provisions (Not for resale)","16/01/2018"
"Wolverhampton City Council","http://opendatacommunities.org/id/metropolitan-district-council/wolverhampton","Trainline","65.30","CIN/CP Social Work Unit - Area 6","4112","Public Transport","16/01/2018"
"Wolverhampton City Council","http://opendatacommunities.org/id/metropolitan-district-council/wolverhampton","Amazon UK Marketplace","37.98","WMMD PROJECT (SchoolWork)","5942","Materials","16/01/2018"
"Wolverhampton City Council","http://opendatacommunities.org/id/metropolitan-district-council/wolverhampton","Virgin Trains","60.60","Fostering Team & Allowances","4112","Public Transport","16/01/2018"
"Wolverhampton City Council","http://opendatacommunities.org/id/metropolitan-district-council/wolverhampton","ASDA SUPERSTORE","3.99","Headstart - Young People Engagement","5411","Subsistence","16/01/2018"
"Wolverhampton City Council","http://opendatacommunities.org/id/metropolitan-district-council/wolverhampton","Amazon UK Marketplace","19.18","Education Business Partnership","5942","Stationery","16/01/2018"
"Wolverhampton City Council","http://opendatacommunities.org/id/metropolitan-district-council/wolverhampton","NAMESCO","2.99","City Direct","4816","Computing - Purchase of Software","16/01/2018"
"Wolverhampton City Council","http://opendatacommunities.org/id/metropolitan-district-council/wolverhampton","Trainline","52.00","Youth Offending Team","4112","Public Transport","16/01/2018"
"Wolverhampton City Council","http://opendatacommunities.org/id/metropolitan-district-council/wolverhampton","JOHNSONS","9.60","Cemeteries","7210","Equipment - R & M","16/01/2018"
"Wolverhampton City Council","http://opendatacommunities.org/id/metropolitan-district-council/wolverhampton","REGISTRARS OFFICE","10.00","Adoption and Residence Team & Allowances","8299","Services - Fees and Charges","16/01/2018"
"Wolverhampton City Council","http://opendatacommunities.org/id/metropolitan-district-council/wolverhampton","Virgin Trains","172.70","Digital Transformation Programme","4112","Public Transport","16/01/2018"
"Wolverhampton City Council","http://opendatacommunities.org/id/metropolitan-district-council/wolverhampton","JACHS LTD","500.00","CIN/CP Social Work Unit - Area 3","5712","Section 17","16/01/2018"
"Wolverhampton City Council","http://opendatacommunities.org/id/metropolitan-district-council/wolverhampton","ASDA SUPERSTORE","1.09","EIP Locality 5","5411","Provisions (Not for resale)","16/01/2018"
"Wolverhampton City Council","http://opendatacommunities.org/id/metropolitan-district-council/wolverhampton","ARRIVA TRAINS WALE","70.30","Research & Development","4112","Public Transport","16/01/2018"
"Wolverhampton City Council","http://opendatacommunities.org/id/metropolitan-district-council/wolverhampton","Trainline","204.00","Director of Education","4112","Public Transport","16/01/2018"
"Wolverhampton City Council","http://opendatacommunities.org/id/metropolitan-district-council/wolverhampton","AMAZON EU AMAZON.CO.UK","17.98","Archives","5999","Books","16/01/2018"
"Wolverhampton City Council","http://opendatacommunities.org/id/metropolitan-district-council/wolverhampton","WWW.WMCA.CO.UK","56.50","IMPACT","9399","Client Transport","16/01/2018"
"Wolverhampton City Council","http://opendatacommunities.org/id/metropolitan-district-council/wolverhampton","WWW.WMCA.CO.UK","56.50","IMPACT","9399","Client Transport","16/01/2018"
"Wolverhampton City Council","http://opendatacommunities.org/id/metropolitan-district-council/wolverhampton","TIPPERS WOLVERHAMPTON","8.79","Culwell Street Depot","5072","Equipment - Purchase","16/01/2018"
"Wolverhampton City Council","http://opendatacommunities.org/id/metropolitan-district-council/wolverhampton","WEST COAST TRAINS","11.85","Transportation General","4112","Public Transport","16/01/2018"
"Wolverhampton City Council","http://opendatacommunities.org/id/metropolitan-district-council/wolverhampton","ALDI 48 772","22.27","Employment Programmes","5411","Provisions (Not for resale)","16/01/2018"
"Wolverhampton City Council","http://opendatacommunities.org/id/metropolitan-district-council/wolverhampton","POUNDWORLD RETAIL","6.00","Employment Programmes","5310","Equipment - Purchase","16/01/2018"
"Wolverhampton City Council","http://opendatacommunities.org/id/metropolitan-district-council/wolverhampton","ARGOS RETAIL GROUP","14.99","Head of Strategic Commissioning � People","5310","Equipment - Purchase","16/01/2018"
"Wolverhampton City Council","http://opendatacommunities.org/id/metropolitan-district-council/wolverhampton","IDC WRISTBANDS","88.50","Technical Support","5699","Equipment - Purchase","16/01/2018"
"Wolverhampton City Council","http://opendatacommunities.org/id/metropolitan-district-council/wolverhampton","PAYPAL  123REGLIMIT","19.98","Technical Support","4816","Computing - Purchase of Software","16/01/2018"
"Wolverhampton City Council","http://opendatacommunities.org/id/metropolitan-district-council/wolverhampton","Amazon UK Marketplace","10.60","EIP Locality 3","5942","Grant Payments","16/01/2018"
"Wolverhampton City Council","http://opendatacommunities.org/id/metropolitan-district-council/wolverhampton","Amazon UK Marketplace","2.49","EIP Locality 3","5942","Grant Payments","16/01/2018"
"Wolverhampton City Council","http://opendatacommunities.org/id/metropolitan-district-council/wolverhampton","ASDA HOME SHOPPING","59.92","Ernest Bold Court","5411","Provisions (Not for resale)","16/01/2018"
"Wolverhampton City Council","http://opendatacommunities.org/id/metropolitan-district-council/wolverhampton","Amazon UK Marketplace","3.57","Environmental Health - Pub Prot - Gen","5942","Equipment - Purchase","16/01/2018"
"Wolverhampton City Council","http://opendatacommunities.org/id/metropolitan-district-council/wolverhampton","B&M RETAIL LTD","55.60","LAC Transitions Team","5310","Client Allowances","16/01/2018"
"Wolverhampton City Council","http://opendatacommunities.org/id/metropolitan-district-council/wolverhampton","ARGOS LTD","54.13","LAC Transitions Team","5310","Client Allowances","16/01/2018"
"Wolverhampton City Council","http://opendatacommunities.org/id/metropolitan-district-council/wolverhampton","CARPET ELITE","203.33","LAC Transitions Team","5713","Client Allowances","16/01/2018"
"Wolverhampton City Council","http://opendatacommunities.org/id/metropolitan-district-council/wolverhampton","Trainline","-174.90","CIN/CP Social Work Unit - Area 4","4112","Public Transport","16/01/2018"
"Wolverhampton City Council","http://opendatacommunities.org/id/metropolitan-district-council/wolverhampton","SAINSBURYS 2040","34.75","Inclusion Support","5411","Provisions (Not for resale)","16/01/2018"
"Wolverhampton City Council","http://opendatacommunities.org/id/metropolitan-district-council/wolverhampton","ASDA SUPERSTORE","7.58","CIN/CP Social Work Unit - Area 5","5411","No Recourse to Public Funds","16/01/2018"
"Wolverhampton City Council","http://opendatacommunities.org/id/metropolitan-district-council/wolverhampton","ASDA SUPERSTORE","13.11","CIN/CP Social Work Unit - Area 5","5411","No Recourse to Public Funds","16/01/2018"
"Wolverhampton City Council","http://opendatacommunities.org/id/metropolitan-district-council/wolverhampton","ASDA SUPERSTORE","20.61","CIN/CP Social Work Unit - Area 5","5411","No Recourse to Public Funds","16/01/2018"
"Wolverhampton City Council","http://opendatacommunities.org/id/metropolitan-district-council/wolverhampton","Amazon UK Marketplace","1.34","Parks - Ranger Service","5942","Equipment - Purchase","16/01/2018"
"Wolverhampton City Council","http://opendatacommunities.org/id/metropolitan-district-council/wolverhampton","Virgin Trains","42.00","Hospital Team","4112","Public Transport","16/01/2018"
"Wolverhampton City Council","http://opendatacommunities.org/id/metropolitan-district-council/wolverhampton","ASDA STORE","12.50","Wolverhampton Indoor and Open Market","5411","Provisions (Not for resale)","15/01/2018"
"Wolverhampton City Council","http://opendatacommunities.org/id/metropolitan-district-council/wolverhampton","CARVER/WOLVERHAMPTON/L","24.56","Culwell Street Depot","5211","R&M - Departmental planned (external)","15/01/2018"
"Wolverhampton City Council","http://opendatacommunities.org/id/metropolitan-district-council/wolverhampton","AMAZON EU AMAZON.CO.UK","15.07","Head of Strategic Commissioning � People","5999","Equipment - Purchase","15/01/2018"
"Wolverhampton City Council","http://opendatacommunities.org/id/metropolitan-district-council/wolverhampton","WWW.RADIO-SOLUTION.CO.","31.49","Community Recreation","5732","Equipment - Purchase","15/01/2018"
"Wolverhampton City Council","http://opendatacommunities.org/id/metropolitan-district-council/wolverhampton","WWW.IRONMONGERYDIRECT.","55.00","Community Recreation","5231","Equipment - Purchase","15/01/2018"
"Wolverhampton City Council","http://opendatacommunities.org/id/metropolitan-district-council/wolverhampton","Amazon UK Marketplace","28.02","Global Budgets","5942","Books","15/01/2018"
"Wolverhampton City Council","http://opendatacommunities.org/id/metropolitan-district-council/wolverhampton","Amazon Svcs Europe,SAR","12.62","Global Budgets","5942","Books","15/01/2018"
"Wolverhampton City Council","http://opendatacommunities.org/id/metropolitan-district-council/wolverhampton","Amazon UK Marketplace","15.98","Global Budgets","5942","Books","15/01/2018"
"Wolverhampton City Council","http://opendatacommunities.org/id/metropolitan-district-council/wolverhampton","Amazon UK Marketplace","3.32","Global Budgets","5942","Books","15/01/2018"
"Wolverhampton City Council","http://opendatacommunities.org/id/metropolitan-district-council/wolverhampton","HUGHES","156.67","EIP Locality 3","5732","Grant Payments","15/01/2018"
"Wolverhampton City Council","http://opendatacommunities.org/id/metropolitan-district-council/wolverhampton","ROYAL NRTHRN COL OF M","376.00","Music Support Team","7922","Services - Professional Fees","15/01/2018"
"Wolverhampton City Council","http://opendatacommunities.org/id/metropolitan-district-council/wolverhampton","Amazon UK Marketplace","4.99","Parks - Ranger Service","5942","Equipment - Purchase","15/01/2018"
"Wolverhampton City Council","http://opendatacommunities.org/id/metropolitan-district-council/wolverhampton","Amazon UK Marketplace","4.58","Landscape","5942","Equipment - Purchase","15/01/2018"
"Wolverhampton City Council","http://opendatacommunities.org/id/metropolitan-district-council/wolverhampton","AMAZON EU AMAZON.CO.UK","10.44","Parks - Ranger Service","5999","Equipment - Purchase","15/01/2018"
"Wolverhampton City Council","http://opendatacommunities.org/id/metropolitan-district-council/wolverhampton","GRO HM PASSPORT OFFICE","7.71","LAC Transitions Team","9399","Client Allowances","15/01/2018"
"Wolverhampton City Council","http://opendatacommunities.org/id/metropolitan-district-council/wolverhampton","NCE COMPUTER GROUP","157.50","Strategic ICTS (ICT Serv Budget)","7372","Computing - Purchase of Software","15/01/2018"
"Wolverhampton City Council","http://opendatacommunities.org/id/metropolitan-district-council/wolverhampton","BOB GUTTERIDGE LIM","500.00","CIN/CP Social Work Unit - Area 3","6513","Accommodation Costs","15/01/2018"
"Wolverhampton City Council","http://opendatacommunities.org/id/metropolitan-district-council/wolverhampton","BOB GUTTERIDGE LIM","500.00","CIN/CP Social Work Unit - Area 3","6513","Accommodation Costs","15/01/2018"
"Wolverhampton City Council","http://opendatacommunities.org/id/metropolitan-district-council/wolverhampton","BOB GUTTERIDGE LIM","474.05","CIN/CP Social Work Unit - Area 3","6513","Accommodation Costs","15/01/2018"
"Wolverhampton City Council","http://opendatacommunities.org/id/metropolitan-district-council/wolverhampton","SEVERN TRENT WATER","82.00","CIN/CP Social Work Unit - Area 3","4900","Water Charges","15/01/2018"
"Wolverhampton City Council","http://opendatacommunities.org/id/metropolitan-district-council/wolverhampton","Amazon Prime","7.99","Education And Access","5968","Subscriptions","15/01/2018"
"Wolverhampton City Council","http://opendatacommunities.org/id/metropolitan-district-council/wolverhampton","ASDA HOME SHOPPING","69.49","Ernest Bold Court","5411","Provisions (Not for resale)","15/01/2018"
"Wolverhampton City Council","http://opendatacommunities.org/id/metropolitan-district-council/wolverhampton","WWW.ICO.GOV.UK","35.00","Members Expenses","9399","Subscriptions","15/01/2018"
"Wolverhampton City Council","http://opendatacommunities.org/id/metropolitan-district-council/wolverhampton","HOBBY CRAFT LTD","20.00","Play General","5970","Materials","15/01/2018"
"Wolverhampton City Council","http://opendatacommunities.org/id/metropolitan-district-council/wolverhampton","TRAVELODGE","111.67","CIN/CP Social Work Unit - Area 5","3615","Section 17","15/01/2018"
"Wolverhampton City Council","http://opendatacommunities.org/id/metropolitan-district-council/wolverhampton","CUMMINGS BROTHERS LOCK","29.17","Learning Disabilities Management","7399","Equipment - R & M","15/01/2018"
"Wolverhampton City Council","http://opendatacommunities.org/id/metropolitan-district-council/wolverhampton","WWW.ARGOS.CO.UK","120.82","CIN/CP Social Work Unit - Area 4","5310","Section 17","15/01/2018"
"Wolverhampton City Council","http://opendatacommunities.org/id/metropolitan-district-council/wolverhampton","AMAZON SVCS EU-UK AMAZ","69.62","Road Safety","5942","Equipment - Purchase","15/01/2018"
"Wolverhampton City Council","http://opendatacommunities.org/id/metropolitan-district-council/wolverhampton","WWW.CHILTERNRAILWAYS.C","55.00","Welfare Rights","4112","Public Transport","15/01/2018"
"Wolverhampton City Council","http://opendatacommunities.org/id/metropolitan-district-council/wolverhampton","WH SMITH","4.99","Children & Family Contact Services","5994","Books","15/01/2018"
"Wolverhampton City Council","http://opendatacommunities.org/id/metropolitan-district-council/wolverhampton","PP BEDS DIRECT","169.00","LAC Transitions Team","5511","Client Allowances","15/01/2018"
"Wolverhampton City Council","http://opendatacommunities.org/id/metropolitan-district-council/wolverhampton","LICENSING SERVICES","21.00","Literature Festival","9399","Services - Fees and Charges","15/01/2018"
"Wolverhampton City Council","http://opendatacommunities.org/id/metropolitan-district-council/wolverhampton","TV LICENSING","147.00","Civic Halls Non Direct Management A/C","7392","Services - General Licences","15/01/2018"
"Wolverhampton City Council","http://opendatacommunities.org/id/metropolitan-district-council/wolverhampton","000002200500000","250.00","CIN/CP Social Work Unit - Area 6","6011","Financial Assistance In Exceptional Circ","15/01/2018"
"Wolverhampton City Council","http://opendatacommunities.org/id/metropolitan-district-council/wolverhampton","MARKS&SPENCER PLC","29.00","Quality Assurance & Policies","5411","Provisions (Not for resale)","15/01/2018"
"Wolverhampton City Council","http://opendatacommunities.org/id/metropolitan-district-council/wolverhampton","AMAZON EU AMAZON.CO.UK","15.48","Headstart - Learning Technologies Team","5999","Books","15/01/2018"
"Wolverhampton City Council","http://opendatacommunities.org/id/metropolitan-district-council/wolverhampton","AMAZON EU AMAZON.CO.UK","17.82","Headstart - Learning Technologies Team","5999","Equipment - Purchase","15/01/2018"
"Wolverhampton City Council","http://opendatacommunities.org/id/metropolitan-district-council/wolverhampton","ITUNES.COM/BILL","8.17","Headstart - Learning Technologies Team","5735","Computing - Purchase of Software","15/01/2018"
"Wolverhampton City Council","http://opendatacommunities.org/id/metropolitan-district-council/wolverhampton","FACEBK NQRTXFAAR2","159.78","Communications & Marketing - General","7311","Marketing \ Non-staff advertising","15/01/2018"
"Wolverhampton City Council","http://opendatacommunities.org/id/metropolitan-district-council/wolverhampton","FACEBK KQRTXFAAR2","340.22","Communications & Marketing - General","7311","Marketing \ Non-staff advertising","15/01/2018"
"Wolverhampton City Council","http://opendatacommunities.org/id/metropolitan-district-council/wolverhampton","ROYAL BK OF SCOTLAND","100.00","Headstart Phase 3","6011","Financial Assistance In Exceptional Circ","15/01/2018"
"Wolverhampton City Council","http://opendatacommunities.org/id/metropolitan-district-council/wolverhampton","WOLVERHAMPTON CC","12.50","IMPACT","7523","Car Allowances","15/01/2018"
"Wolverhampton City Council","http://opendatacommunities.org/id/metropolitan-district-council/wolverhampton","Amazon UK Marketplace","3.07","Education Business Partnership","5942","Stationery","15/01/2018"
"Wolverhampton City Council","http://opendatacommunities.org/id/metropolitan-district-council/wolverhampton","Amazon UK Marketplace","18.49","Education Business Partnership","5942","Catering","15/01/2018"
"Wolverhampton City Council","http://opendatacommunities.org/id/metropolitan-district-council/wolverhampton","FACEBK G6MAGD2D22","494.62","Admin & Support","7311","Marketing \ Non-staff advertising","15/01/2018"
"Wolverhampton City Council","http://opendatacommunities.org/id/metropolitan-district-council/wolverhampton","LOOP11.COM","151.27","City Direct","7372","Computing - Purchase of Software","15/01/2018"
"Wolverhampton City Council","http://opendatacommunities.org/id/metropolitan-district-council/wolverhampton","ITUNES.COM/BILL","2.07","LAC Education Team (LACE)","5735","Computing - Purchase of Software","15/01/2018"
"Wolverhampton City Council","http://opendatacommunities.org/id/metropolitan-district-council/wolverhampton","ASDA GEORGE COM LEEDS","16.00","Youth Offending Team","5411","Provisions (Not for resale)","15/01/2018"
"Wolverhampton City Council","http://opendatacommunities.org/id/metropolitan-district-council/wolverhampton","ARGOS LTD","69.95","LAC Transitions Team","5310","Client Allowances","15/01/2018"
"Wolverhampton City Council","http://opendatacommunities.org/id/metropolitan-district-council/wolverhampton","Virgin Trains","223.00","Adoption and Residence Team & Allowances","4112","Public Transport","15/01/2018"
"Wolverhampton City Council","http://opendatacommunities.org/id/metropolitan-district-council/wolverhampton","HM PASSPORT OFFICE","98.00","Adoption and Residence Team & Allowances","9399","Services - Fees and Charges","15/01/2018"
"Wolverhampton City Council","http://opendatacommunities.org/id/metropolitan-district-council/wolverhampton","PLURALSIGHT","22.04","Strategic ICTS (ICT Serv Budget)","8299","Training Expenses","15/01/2018"
"Wolverhampton City Council","http://opendatacommunities.org/id/metropolitan-district-council/wolverhampton","AMAZON EU AMAZON.CO.UK","61.65","Strategic ICTS (ICT Serv Budget)","5999","Equipment - Purchase","15/01/2018"
"Wolverhampton City Council","http://opendatacommunities.org/id/metropolitan-district-council/wolverhampton","Amazon UK Marketplace","149.89","Strategic ICTS (ICT Serv Budget)","5942","Books","15/01/2018"
"Wolverhampton City Council","http://opendatacommunities.org/id/metropolitan-district-council/wolverhampton","Amazon UK Marketplace","99.99","Central Baths","5942","Equipment - Purchase","15/01/2018"
"Wolverhampton City Council","http://opendatacommunities.org/id/metropolitan-district-council/wolverhampton","Amazon UK Marketplace","19.97","Central Baths","5942","Books","15/01/2018"
"Wolverhampton City Council","http://opendatacommunities.org/id/metropolitan-district-council/wolverhampton","AMAZON SVCS EU-UK AMAZ","99.58","Central Baths","5942","Books","15/01/2018"
"Wolverhampton City Council","http://opendatacommunities.org/id/metropolitan-district-council/wolverhampton","Virgin Trains","62.20","LAC Team","4112","Public Transport","15/01/2018"
"Wolverhampton City Council","http://opendatacommunities.org/id/metropolitan-district-council/wolverhampton","ROYAL CARPETS","233.33","LAC Transitions Team","5713","Client Allowances","15/01/2018"
"Wolverhampton City Council","http://opendatacommunities.org/id/metropolitan-district-council/wolverhampton","WEST COAST TRAINS","30.00","Headstart Phase 3","7523","Parking Fees","15/01/2018"
"Wolverhampton City Council","http://opendatacommunities.org/id/metropolitan-district-council/wolverhampton","CMT (UK) LTD - GLASGOW","6.65","Headstart Phase 3","4121","Client Transport","15/01/2018"
"Wolverhampton City Council","http://opendatacommunities.org/id/metropolitan-district-council/wolverhampton","Amazon EU","22.98","Archives","5969","Books","15/01/2018"
"Wolverhampton City Council","http://opendatacommunities.org/id/metropolitan-district-council/wolverhampton","WWW.NISBETS.COM","104.98","Towers Outdoor Education Centre","5964","Equipment - Purchase","12/01/2018"
"Wolverhampton City Council","http://opendatacommunities.org/id/metropolitan-district-council/wolverhampton","UV UNITS & SPARES","230.00","Towers Outdoor Education Centre","5999","Equipment - Purchase","12/01/2018"
"Wolverhampton City Council","http://opendatacommunities.org/id/metropolitan-district-council/wolverhampton","000002200500000","250.00","CIN/CP Social Work Unit - Area 6","6011","Section 17","12/01/2018"
"Wolverhampton City Council","http://opendatacommunities.org/id/metropolitan-district-council/wolverhampton","Amazon UK Marketplace","54.45","Ground Maintenance East","5942","Books","12/01/2018"
"Wolverhampton City Council","http://opendatacommunities.org/id/metropolitan-district-council/wolverhampton","000002200500000","50.00","Headstart - Young People Engagement","6011","Financial Assistance In Exceptional Circ","12/01/2018"
"Wolverhampton City Council","http://opendatacommunities.org/id/metropolitan-district-council/wolverhampton","WOLVERHAMPTON CC","5.50","IMPACT","7523","Car Allowances","12/01/2018"
"Wolverhampton City Council","http://opendatacommunities.org/id/metropolitan-district-council/wolverhampton","Amazon UK Marketplace","22.48","Strategic ICTS (ICT Serv Budget)","5942","Computing - Purchase of Hardware","12/01/2018"
"Wolverhampton City Council","http://opendatacommunities.org/id/metropolitan-district-council/wolverhampton","PAYPAL  BARNARDOS","50.00","EIP Locality 8","8999","Training Expenses","12/01/2018"
"Wolverhampton City Council","http://opendatacommunities.org/id/metropolitan-district-council/wolverhampton","EE & T-MOBILE","400.29","Civic Halls Non Direct Management A/C","4814","Comms - Telephone Call charges","12/01/2018"
"Wolverhampton City Council","http://opendatacommunities.org/id/metropolitan-district-council/wolverhampton","BT PAY BY PHONE","213.30","Makers Dozen","4814","Comms - Telephone Call charges","12/01/2018"
"Wolverhampton City Council","http://opendatacommunities.org/id/metropolitan-district-council/wolverhampton","VIRGIN MEDIS PYMTS","69.00","Civic Halls Non Direct Management A/C","4814","Comms - Telephone Call charges","12/01/2018"
"Wolverhampton City Council","http://opendatacommunities.org/id/metropolitan-district-council/wolverhampton","VIRGIN MEDIS PYMTS","452.50","Civic Halls Non Direct Management A/C","4814","Comms - Telephone Call charges","12/01/2018"
"Wolverhampton City Council","http://opendatacommunities.org/id/metropolitan-district-council/wolverhampton","LONDIS","5.97","Towers Outdoor Education Centre","5921","Equipment - Purchase","12/01/2018"
"Wolverhampton City Council","http://opendatacommunities.org/id/metropolitan-district-council/wolverhampton","TESCO DELIVERY SAVER2","3.49","Towers Outdoor Education Centre","5968","Provisions (Not for resale)","12/01/2018"
"Wolverhampton City Council","http://opendatacommunities.org/id/metropolitan-district-council/wolverhampton","FTPE WEBTIS 1","144.00","HR Advice","4112","Public Transport","12/01/2018"
"Wolverhampton City Council","http://opendatacommunities.org/id/metropolitan-district-council/wolverhampton","BEATSABAR MUSIC PROJEC","60.00","Youth Offending Team","5733","Equipment - Purchase","12/01/2018"
"Wolverhampton City Council","http://opendatacommunities.org/id/metropolitan-district-council/wolverhampton","WWW.ELECTRONICWORLDTV.","249.98","LAC Transitions Team","5722","Client Allowances","12/01/2018"
"Wolverhampton City Council","http://opendatacommunities.org/id/metropolitan-district-council/wolverhampton","ABAKUS DIRECT LTD","249.17","LAC Transitions Team","5712","Client Allowances","12/01/2018"
"Wolverhampton City Council","http://opendatacommunities.org/id/metropolitan-district-council/wolverhampton","34SP.com Ltd","15.00","Early Years & Universal Service","4816","Computing - Purchase of Software","12/01/2018"
"Wolverhampton City Council","http://opendatacommunities.org/id/metropolitan-district-council/wolverhampton","Amazon UK Marketplace","20.61","Strategic ICTS (ICT Serv Budget)","5942","Computing - Purchase of Hardware","12/01/2018"
"Wolverhampton City Council","http://opendatacommunities.org/id/metropolitan-district-council/wolverhampton","Amazon UK Marketplace","129.00","Strategic ICTS (ICT Serv Budget)","5942","Computing - Purchase of Hardware","12/01/2018"
"Wolverhampton City Council","http://opendatacommunities.org/id/metropolitan-district-council/wolverhampton","Amazon UK Marketplace","2.93","Strategic ICTS (ICT Serv Budget)","5942","Computing - Purchase of Hardware","12/01/2018"
"Wolverhampton City Council","http://opendatacommunities.org/id/metropolitan-district-council/wolverhampton","AMAZON EU AMAZON.CO.UK","110.60","Strategic ICTS (ICT Serv Budget)","5999","Equipment - Purchase","12/01/2018"
"Wolverhampton City Council","http://opendatacommunities.org/id/metropolitan-district-council/wolverhampton","WEST COAST TRAINS","12.00","Managing Director","7523","Car Allowances","12/01/2018"
"Wolverhampton City Council","http://opendatacommunities.org/id/metropolitan-district-council/wolverhampton","WEST COAST TRAINS - EN","9.70","Managing Director","4112","Public Transport","12/01/2018"
"Wolverhampton City Council","http://opendatacommunities.org/id/metropolitan-district-council/wolverhampton","Virgin Trains","95.50","Strategic Financial Services","4112","Public Transport","12/01/2018"
"Wolverhampton City Council","http://opendatacommunities.org/id/metropolitan-district-council/wolverhampton","Virgin Trains","129.50","Corporate Procurement Unit","4112","Public Transport","12/01/2018"
"Wolverhampton City Council","http://opendatacommunities.org/id/metropolitan-district-council/wolverhampton","Amazon UK Marketplace","99.99","Central Baths","5942","Equipment - Purchase","12/01/2018"
"Wolverhampton City Council","http://opendatacommunities.org/id/metropolitan-district-council/wolverhampton","WWW.SAFETEC DIREC.CO.U","141.05","Central Baths","5251","Equipment - Purchase","12/01/2018"
"Wolverhampton City Council","http://opendatacommunities.org/id/metropolitan-district-council/wolverhampton","WWWRLSSORGUK","43.00","WV Active Business Support","5734","Services - Professional Fees","12/01/2018"
"Wolverhampton City Council","http://opendatacommunities.org/id/metropolitan-district-council/wolverhampton","IZ  London Taxi Receip","11.00","Headstart Phase 3","4121","Client Transport","12/01/2018"
"Wolverhampton City Council","http://opendatacommunities.org/id/metropolitan-district-council/wolverhampton","M&S SIMPLY FOOD - SSP","14.12","Headstart Phase 3","5499","Subsistence","12/01/2018"
"Wolverhampton City Council","http://opendatacommunities.org/id/metropolitan-district-council/wolverhampton","PREMIER INN","115.42","Headstart Phase 3","3811","Accommodation Costs","12/01/2018"
"Wolverhampton City Council","http://opendatacommunities.org/id/metropolitan-district-council/wolverhampton","PREMIER INN","142.02","Headstart Phase 3","3811","Subsistence","12/01/2018"
"Wolverhampton City Council","http://opendatacommunities.org/id/metropolitan-district-council/wolverhampton","SCREWFIX DIRECT LT","45.81","Culwell Street Depot","5211","R&M - Departmental planned (external)","12/01/2018"
"Wolverhampton City Council","http://opendatacommunities.org/id/metropolitan-district-council/wolverhampton","PAYPAL  123REGLIMIT","19.98","Technical Support","4816","Computing - Purchase of Software","12/01/2018"
"Wolverhampton City Council","http://opendatacommunities.org/id/metropolitan-district-council/wolverhampton","SCREWFIX WOLVERHAM","1.24","Duke Street Bungalows","5211","Equipment - R & M","12/01/2018"
"Wolverhampton City Council","http://opendatacommunities.org/id/metropolitan-district-council/wolverhampton","TRAVELODGE","70.83","CIN/CP Social Work Unit - Area 5","3615","Section 17","12/01/2018"
"Wolverhampton City Council","http://opendatacommunities.org/id/metropolitan-district-council/wolverhampton","WWW.ARGOS.CO.UK","31.99","CIN/CP Social Work Unit - Area 5","5310","Section 17","12/01/2018"
"Wolverhampton City Council","http://opendatacommunities.org/id/metropolitan-district-council/wolverhampton","THE QUEEN VICTORIA HOT","54.00","CIN/CP Social Work Unit - Area 5","7011","Section 17","12/01/2018"
"Wolverhampton City Council","http://opendatacommunities.org/id/metropolitan-district-council/wolverhampton","WWW.MOVERSANDSHAKERS.U","63.60","Strategic Director Place","8699","Conference Expenses","12/01/2018"
"Wolverhampton City Council","http://opendatacommunities.org/id/metropolitan-district-council/wolverhampton","Trainline","66.00","Strategic Director Place","4112","Public Transport","12/01/2018"
"Wolverhampton City Council","http://opendatacommunities.org/id/metropolitan-district-council/wolverhampton","THE COAL AUTHORITY","78.30","Property Services - Commissioning","9399","Services - Fees and Charges","12/01/2018"
"Wolverhampton City Council","http://opendatacommunities.org/id/metropolitan-district-council/wolverhampton","WWW.CII.CO.UK","222.00","Central Training","8699","Training Expenses","12/01/2018"
"Wolverhampton City Council","http://opendatacommunities.org/id/metropolitan-district-council/wolverhampton","Amazon UK Marketplace","72.12","School Improvement","5942","Books","12/01/2018"
"Wolverhampton City Council","http://opendatacommunities.org/id/metropolitan-district-council/wolverhampton","POST OFFICE COUNTER","19.50","Inclusion Support","9402","Comms - Postage","12/01/2018"
"Wolverhampton City Council","http://opendatacommunities.org/id/metropolitan-district-council/wolverhampton","AMAZON SVCS EU-UK AMAZ","150.82","Street Lighting Maintenance","5942","Books","12/01/2018"
"Wolverhampton City Council","http://opendatacommunities.org/id/metropolitan-district-council/wolverhampton","GRO HM PASSPORT OFFICE","7.71","LAC Transitions Team","9399","Client Allowances","12/01/2018"
"Wolverhampton City Council","http://opendatacommunities.org/id/metropolitan-district-council/wolverhampton","JACHS LTD","500.00","CIN/CP Social Work Unit - Area 3","5712","Section 17","11/01/2018"
"Wolverhampton City Council","http://opendatacommunities.org/id/metropolitan-district-council/wolverhampton","JACHS LTD","150.00","CIN/CP Social Work Unit - Area 3","5712","Section 17","11/01/2018"
"Wolverhampton City Council","http://opendatacommunities.org/id/metropolitan-district-council/wolverhampton","PRET A MANGER","9.98","Headstart Phase 3","5812","Subsistence","11/01/2018"
"Wolverhampton City Council","http://opendatacommunities.org/id/metropolitan-district-council/wolverhampton","Virgin Trains","115.90","Revenues","4112","Public Transport","11/01/2018"
"Wolverhampton City Council","http://opendatacommunities.org/id/metropolitan-district-council/wolverhampton","Virgin Trains","106.40","Revenues","4112","Public Transport","11/01/2018"
"Wolverhampton City Council","http://opendatacommunities.org/id/metropolitan-district-council/wolverhampton","SAINSBURYS","250.00","Duke Street Bungalows","6011","Provisions (Not for resale)","11/01/2018"
"Wolverhampton City Council","http://opendatacommunities.org/id/metropolitan-district-council/wolverhampton","FSPRG.UK","5.05","Technical Support","5818","Subscriptions","11/01/2018"
"Wolverhampton City Council","http://opendatacommunities.org/id/metropolitan-district-council/wolverhampton","ASDA SUPERSTORE","37.73","EIP Locality 3","5411","Grant Payments","11/01/2018"
"Wolverhampton City Council","http://opendatacommunities.org/id/metropolitan-district-council/wolverhampton","WWW.GRIPPLEGARDEN.","456.56","Venice Daspara - ACE NPO WAG","5251","Equipment - Purchase","11/01/2018"
"Wolverhampton City Council","http://opendatacommunities.org/id/metropolitan-district-council/wolverhampton","THE QUEEN VICTORIA HOT","54.00","CIN/CP Social Work Unit - Area 5","7011","Section 17","11/01/2018"
"Wolverhampton City Council","http://opendatacommunities.org/id/metropolitan-district-council/wolverhampton","AMAZON UK PRIME AMZN.C","7.99","Street Lighting Maintenance","5968","Subscriptions","11/01/2018"
"Wolverhampton City Council","http://opendatacommunities.org/id/metropolitan-district-council/wolverhampton","TRAVELODGE","206.67","Adoption and Residence Team & Allowances","3615","Accommodation Costs","11/01/2018"
"Wolverhampton City Council","http://opendatacommunities.org/id/metropolitan-district-council/wolverhampton","ASDA SUPERSTORE","44.56","EIP Locality 3","5411","Equipment - Purchase","11/01/2018"
"Wolverhampton City Council","http://opendatacommunities.org/id/metropolitan-district-council/wolverhampton","WWW.ICO.GOV.UK","35.00","Members Expenses","9399","Subscriptions","11/01/2018"
"Wolverhampton City Council","http://opendatacommunities.org/id/metropolitan-district-council/wolverhampton","E01510300000000","10.00","Legal Services","6011","Services - Professional Fees","11/01/2018"
"Wolverhampton City Council","http://opendatacommunities.org/id/metropolitan-district-council/wolverhampton","PAYPAL  TWINKL LTD","50.76","SEN Early Years Team","8699","Subscriptions","11/01/2018"
"Wolverhampton City Council","http://opendatacommunities.org/id/metropolitan-district-council/wolverhampton","PAYPAL  EQUALS","149.00","SEN Early Years Team","8211","Books","11/01/2018"
"Wolverhampton City Council","http://opendatacommunities.org/id/metropolitan-district-council/wolverhampton","AMAZON EU AMAZON.CO.UK","26.24","EIP Locality 3","5999","Grant Payments","11/01/2018"
"Wolverhampton City Council","http://opendatacommunities.org/id/metropolitan-district-council/wolverhampton","HI NEWCASTLE WASHI","262.41","Adoption and Residence Team & Allowances","7011","Accommodation Costs","11/01/2018"
"Wolverhampton City Council","http://opendatacommunities.org/id/metropolitan-district-council/wolverhampton","TESCO STORES 5194","5.00","Towers Outdoor Education Centre","5411","Provisions (Not for resale)","11/01/2018"
"Wolverhampton City Council","http://opendatacommunities.org/id/metropolitan-district-council/wolverhampton","WWW.NISBETS.COM","154.38","Towers Outdoor Education Centre","5964","Equipment - Purchase","11/01/2018"
"Wolverhampton City Council","http://opendatacommunities.org/id/metropolitan-district-council/wolverhampton","Trainline","88.00","Electoral Registration","4112","Public Transport","11/01/2018"
"Wolverhampton City Council","http://opendatacommunities.org/id/metropolitan-district-council/wolverhampton","SAINSBURYS SACAT (2340","5.93","Mayoral Expenses","5411","Provisions (Not for resale)","11/01/2018"
"Wolverhampton City Council","http://opendatacommunities.org/id/metropolitan-district-council/wolverhampton","POST OFFICE COUNTER","10.75","LAC Transitions Team","9402","Comms - Postage","11/01/2018"
"Wolverhampton City Council","http://opendatacommunities.org/id/metropolitan-district-council/wolverhampton","CUMMINGS BROTHERS LOCK","40.50","Public Conveniences","7399","Equipment - Purchase","11/01/2018"
"Wolverhampton City Council","http://opendatacommunities.org/id/metropolitan-district-council/wolverhampton","CUMMINGS BROTHERS LOCK","80.75","Caretakers Community Centre","7399","Fixtures and Fittings - R&M","11/01/2018"
"Wolverhampton City Council","http://opendatacommunities.org/id/metropolitan-district-council/wolverhampton","CUMMINGS BROTHERS LOCK","7.50","Caretakers Community Centre","7399","Fixtures and Fittings - R&M","11/01/2018"
"Wolverhampton City Council","http://opendatacommunities.org/id/metropolitan-district-council/wolverhampton","Amazon Prime","6.66","Central Baths","5968","Subscriptions","11/01/2018"
"Wolverhampton City Council","http://opendatacommunities.org/id/metropolitan-district-council/wolverhampton","Virgin Trains","119.67","LAC Transitions Team","4112","Client Allowances","10/01/2018"
"Wolverhampton City Council","http://opendatacommunities.org/id/metropolitan-district-council/wolverhampton","POST OFFICE COUNTER","293.00","Adoption and Residence Team & Allowances","9402","Comms - Postage","10/01/2018"
"Wolverhampton City Council","http://opendatacommunities.org/id/metropolitan-district-council/wolverhampton","TESCO STORES 5194","35.81","Towers Outdoor Education Centre","5411","Provisions (Not for resale)","10/01/2018"
"Wolverhampton City Council","http://opendatacommunities.org/id/metropolitan-district-council/wolverhampton","UV UNITS & SPARES","161.95","Towers Outdoor Education Centre","5999","Fixtures and Fittings - Purchases","10/01/2018"
"Wolverhampton City Council","http://opendatacommunities.org/id/metropolitan-district-council/wolverhampton","THE INSTITUTE FOR OUTD","158.00","Towers Outdoor Education Centre","8398","Equipment - Purchase","10/01/2018"
"Wolverhampton City Council","http://opendatacommunities.org/id/metropolitan-district-council/wolverhampton","FUEL CARD SERVICES LTD","25.58","Towers Outdoor Education Centre","7399","Equipment - Purchase","10/01/2018"
"Wolverhampton City Council","http://opendatacommunities.org/id/metropolitan-district-council/wolverhampton","FACEBK ZKVYPD6D22","5.38","Admin & Support","7311","Marketing \ Non-staff advertising","10/01/2018"
"Wolverhampton City Council","http://opendatacommunities.org/id/metropolitan-district-council/wolverhampton","VWO.com","44.96","City Direct","7399","Equipment - Purchase","10/01/2018"
"Wolverhampton City Council","http://opendatacommunities.org/id/metropolitan-district-council/wolverhampton","SALFORD PROFESSIONAL D","45.00","LAC Education Team (LACE)","8299","Training Expenses","10/01/2018"
"Wolverhampton City Council","http://opendatacommunities.org/id/metropolitan-district-council/wolverhampton","THE POST OFFICE","8.55","LAC Transitions Team","9402","Client Allowances","10/01/2018"
"Wolverhampton City Council","http://opendatacommunities.org/id/metropolitan-district-council/wolverhampton","B & Q 1243","48.46","Public Conveniences","5211","Materials","10/01/2018"
"Wolverhampton City Council","http://opendatacommunities.org/id/metropolitan-district-council/wolverhampton","Virgin Trains","68.20","Audit Services","4112","Public Transport","10/01/2018"
"Wolverhampton City Council","http://opendatacommunities.org/id/metropolitan-district-council/wolverhampton","ASDA HOME SHOPPING","35.55","Upper Pendeford Farm Childrens Home","5411","Provisions (Not for resale)","10/01/2018"
"Wolverhampton City Council","http://opendatacommunities.org/id/metropolitan-district-council/wolverhampton","W M MORRISONS.COM","92.26","Discretionary Fund","5411","Materials","10/01/2018"
"Wolverhampton City Council","http://opendatacommunities.org/id/metropolitan-district-council/wolverhampton","SCREWFIX DIRECT","31.80","Beckminster","5211","Equipment - Purchase","10/01/2018"
"Wolverhampton City Council","http://opendatacommunities.org/id/metropolitan-district-council/wolverhampton","Amazon UK Marketplace","22.49","Headstart Phase 3","5942","Equipment - Purchase","10/01/2018"
"Wolverhampton City Council","http://opendatacommunities.org/id/metropolitan-district-council/wolverhampton","Amazon EU","12.18","Education And Access","5969","Books","10/01/2018"
"Wolverhampton City Council","http://opendatacommunities.org/id/metropolitan-district-council/wolverhampton","Amazon EU","24.95","Education And Access","5969","Books","10/01/2018"
"Wolverhampton City Council","http://opendatacommunities.org/id/metropolitan-district-council/wolverhampton","Amazon EU","53.94","Education And Access","5969","Books","10/01/2018"
"Wolverhampton City Council","http://opendatacommunities.org/id/metropolitan-district-council/wolverhampton","Trainline","-184.00","CIN/CP Social Work Unit - Area 4","4112","Public Transport","10/01/2018"
"Wolverhampton City Council","http://opendatacommunities.org/id/metropolitan-district-council/wolverhampton","Trainline","190.13","CIN/CP Social Work Unit - Area 4","4112","Public Transport","10/01/2018"
"Wolverhampton City Council","http://opendatacommunities.org/id/metropolitan-district-council/wolverhampton","Trainline","199.41","CIN/CP Social Work Unit - Area 4","4112","Section 17","10/01/2018"
"Wolverhampton City Council","http://opendatacommunities.org/id/metropolitan-district-council/wolverhampton","UNTOUCHABLES","4.50","Education Catering - General Overheads","5231","Materials","10/01/2018"
"Wolverhampton City Council","http://opendatacommunities.org/id/metropolitan-district-council/wolverhampton","J VAN VLIET BIRMINGHAM","91.10","Creative Studies Delivery Area","5399","Materials for resale","10/01/2018"
"Wolverhampton City Council","http://opendatacommunities.org/id/metropolitan-district-council/wolverhampton","Amazon UK Marketplace","22.49","Headstart Phase 3","5942","Equipment - Purchase","10/01/2018"
"Wolverhampton City Council","http://opendatacommunities.org/id/metropolitan-district-council/wolverhampton","Amazon UK Marketplace","32.93","Headstart Phase 3","5942","Materials","10/01/2018"
"Wolverhampton City Council","http://opendatacommunities.org/id/metropolitan-district-council/wolverhampton","Trainline","134.23","Wolverhampton Indoor and Open Market","4112","Public Transport","10/01/2018"
"Wolverhampton City Council","http://opendatacommunities.org/id/metropolitan-district-council/wolverhampton","WWW.GOV.UK","20.00","Private Sector Housing","8999","Services - Professional Fees","10/01/2018"
"Wolverhampton City Council","http://opendatacommunities.org/id/metropolitan-district-council/wolverhampton","Virgin Trains","87.80","Private Sector Housing","4112","Public Transport","10/01/2018"
"Wolverhampton City Council","http://opendatacommunities.org/id/metropolitan-district-council/wolverhampton","TESCO STORES 5397","3.90","EIP Locality 1","5411","Comms - Postage","10/01/2018"
"Wolverhampton City Council","http://opendatacommunities.org/id/metropolitan-district-council/wolverhampton","TV LICENSING","147.00","EIP Locality 1","7392","Services - General Licences","10/01/2018"
"Wolverhampton City Council","http://opendatacommunities.org/id/metropolitan-district-council/wolverhampton","ARGOS RETAIL GROUP","33.32","Learning Disabilities Management","5310","Equipment - Purchase","10/01/2018"
"Wolverhampton City Council","http://opendatacommunities.org/id/metropolitan-district-council/wolverhampton","Virgin Trains","7.80","Children & Young People Support Costs","4112","Public Transport","10/01/2018"
"Wolverhampton City Council","http://opendatacommunities.org/id/metropolitan-district-council/wolverhampton","OFFICE STATIONERS","34.95","Civic Centre","5943","Stationery","10/01/2018"
"Wolverhampton City Council","http://opendatacommunities.org/id/metropolitan-district-council/wolverhampton","OFFICE STATIONERS","5.98","Civic Centre","5943","Stationery","10/01/2018"
"Wolverhampton City Council","http://opendatacommunities.org/id/metropolitan-district-council/wolverhampton","AIRSERVER","39.96","Technical Support","5045","Computing - Purchase of Hardware","10/01/2018"
"Wolverhampton City Council","http://opendatacommunities.org/id/metropolitan-district-council/wolverhampton","Amazon EU","44.68","Education And Access","5969","Books","10/01/2018"
"Wolverhampton City Council","http://opendatacommunities.org/id/metropolitan-district-council/wolverhampton","Amazon EU","16.50","Education And Access","5969","Books","10/01/2018"
"Wolverhampton City Council","http://opendatacommunities.org/id/metropolitan-district-council/wolverhampton","J VAN VLIET BIRMINGHAM","99.20","Discretionary Fund","5399","Materials","10/01/2018"
"Wolverhampton City Council","http://opendatacommunities.org/id/metropolitan-district-council/wolverhampton","GO CARZ","7.97","CIN/CP Social Work Unit - Area 5","4121","Section 17","10/01/2018"
"Wolverhampton City Council","http://opendatacommunities.org/id/metropolitan-district-council/wolverhampton","GO CARZ","8.18","CIN/CP Social Work Unit - Area 5","4121","Section 17","10/01/2018"
"Wolverhampton City Council","http://opendatacommunities.org/id/metropolitan-district-council/wolverhampton","THE QUEEN VICTORIA HOT","54.00","CIN/CP Social Work Unit - Area 5","7011","Section 17","10/01/2018"
"Wolverhampton City Council","http://opendatacommunities.org/id/metropolitan-district-council/wolverhampton","SPAR SIOP TANDDERWEN","324.76","Towers Outdoor Education Centre","5411","Provisions (Not for resale)","10/01/2018"
"Wolverhampton City Council","http://opendatacommunities.org/id/metropolitan-district-council/wolverhampton","Trainline","63.85","CIN/CP Social Work Unit - Area 6","4112","Section 17","10/01/2018"
"Wolverhampton City Council","http://opendatacommunities.org/id/metropolitan-district-council/wolverhampton","THE POST OFFICE","8.35","Contemporary Gallery","9402","Comms - Postage","10/01/2018"
"Wolverhampton City Council","http://opendatacommunities.org/id/metropolitan-district-council/wolverhampton","THE POST OFFICE","43.65","Art Gallery","9402","Comms - Postage","10/01/2018"
"Wolverhampton City Council","http://opendatacommunities.org/id/metropolitan-district-council/wolverhampton","BRITANNIA","36.50","Emergency Duty Team","7011","Services - Supplies & Services to users","10/01/2018"
"Wolverhampton City Council","http://opendatacommunities.org/id/metropolitan-district-council/wolverhampton","WM MORRISON 024","7.12","Fostering Team & Allowances","5411","Provisions (Not for resale)","10/01/2018"
"Wolverhampton City Council","http://opendatacommunities.org/id/metropolitan-district-council/wolverhampton","PARTRIDGE & PRINT","381.02","Fostering Team & Allowances","8299","Training Expenses","10/01/2018"
"Wolverhampton City Council","http://opendatacommunities.org/id/metropolitan-district-council/wolverhampton","THE POST OFFICE","130.00","Fostering Team & Allowances","9402","Comms - Postage","10/01/2018"
"Wolverhampton City Council","http://opendatacommunities.org/id/metropolitan-district-council/wolverhampton","Amazon EU","28.75","Headstart - Learning Technologies Team","5969","Equipment - Purchase","10/01/2018"
"Wolverhampton City Council","http://opendatacommunities.org/id/metropolitan-district-council/wolverhampton","THE KEYBOARD COMPANY U","55.00","Communications & Marketing - General","5999","Equipment - Purchase","10/01/2018"
"Wolverhampton City Council","http://opendatacommunities.org/id/metropolitan-district-council/wolverhampton","WWW.DOMINOS.CO.UK","64.90","B-Safe","5812","Catering","10/01/2018"
"Wolverhampton City Council","http://opendatacommunities.org/id/metropolitan-district-council/wolverhampton","E00856800000000","150.00","Headstart - Young People Engagement","6011","Financial Assistance In Exceptional Circ","10/01/2018"
"Wolverhampton City Council","http://opendatacommunities.org/id/metropolitan-district-council/wolverhampton","WWW.SAFETYFIRSTAID.CO.","11.40","Revenues","5085","First Aid Requisites","10/01/2018"
"Wolverhampton City Council","http://opendatacommunities.org/id/metropolitan-district-council/wolverhampton","BOOTS","8.56","Revenues","5912","First Aid Requisites","10/01/2018"
"Wolverhampton City Council","http://opendatacommunities.org/id/metropolitan-district-council/wolverhampton","ASDA HOME SHOPPING","54.64","Ernest Bold Court","5411","Provisions (Not for resale)","09/01/2018"
"Wolverhampton City Council","http://opendatacommunities.org/id/metropolitan-district-council/wolverhampton","B.COM HOTEL BELLEVUE C","1461.41","Invest Black Country","7011","Accommodation Costs","09/01/2018"
"Wolverhampton City Council","http://opendatacommunities.org/id/metropolitan-district-council/wolverhampton","AMAZON SVCS EU-UK AMAZ","5.98","Specialist Support Service - North","5942","Stationery","09/01/2018"
"Wolverhampton City Council","http://opendatacommunities.org/id/metropolitan-district-council/wolverhampton","CITY TRIMS LIMITED","4.51","Education Catering - General Overheads","5039","Materials","09/01/2018"
"Wolverhampton City Council","http://opendatacommunities.org/id/metropolitan-district-council/wolverhampton","TOOLSTATION LTD","25.60","Education Catering - General Overheads","5251","Materials","09/01/2018"
"Wolverhampton City Council","http://opendatacommunities.org/id/metropolitan-district-council/wolverhampton","LOYD WEDNESFIELD WOLVE","250.00","Duke Street Bungalows","6011","Provisions (Not for resale)","09/01/2018"
"Wolverhampton City Council","http://opendatacommunities.org/id/metropolitan-district-council/wolverhampton","LOYD WEDNESFIELD WOLVE","250.00","Duke Street Bungalows","6011","Provisions (Not for resale)","09/01/2018"
"Wolverhampton City Council","http://opendatacommunities.org/id/metropolitan-district-council/wolverhampton","PAYPAL  DARTINGTON","140.00","Workforce Development","8398","Training Expenses","09/01/2018"
"Wolverhampton City Council","http://opendatacommunities.org/id/metropolitan-district-council/wolverhampton","ASDA SUPERSTORE","280.80","Upper Pendeford Farm Childrens Home","5411","Provisions (Not for resale)","09/01/2018"
"Wolverhampton City Council","http://opendatacommunities.org/id/metropolitan-district-council/wolverhampton","THE QUEEN VICTORIA HOT","54.00","CIN/CP Social Work Unit - Area 5","7011","Section 17","09/01/2018"
"Wolverhampton City Council","http://opendatacommunities.org/id/metropolitan-district-council/wolverhampton","WWW.ARGOS.CO.UK","224.00","EIP Locality 7","5310","Grant Payments","09/01/2018"
"Wolverhampton City Council","http://opendatacommunities.org/id/metropolitan-district-council/wolverhampton","Virgin Trains","115.20","Planning","4112","Public Transport","09/01/2018"
"Wolverhampton City Council","http://opendatacommunities.org/id/metropolitan-district-council/wolverhampton","Virgin Trains","40.20","Business Transformation","4112","Public Transport","09/01/2018"
"Wolverhampton City Council","http://opendatacommunities.org/id/metropolitan-district-council/wolverhampton","Virgin Trains","31.50","Business Transformation","4112","Public Transport","09/01/2018"
"Wolverhampton City Council","http://opendatacommunities.org/id/metropolitan-district-council/wolverhampton","BARCLAYS BANK PLC","250.00","CIN/CP Social Work Unit - Area 6","6011","Financial Assistance In Exceptional Circ","09/01/2018"
"Wolverhampton City Council","http://opendatacommunities.org/id/metropolitan-district-council/wolverhampton","Virgin Trains","203.15","Head of Strategic Commissioning � People","4112","Public Transport","09/01/2018"
"Wolverhampton City Council","http://opendatacommunities.org/id/metropolitan-district-council/wolverhampton","ASDA HOME SHOPPING","144.15","EIP Locality 4","5411","Grant Payments","09/01/2018"
"Wolverhampton City Council","http://opendatacommunities.org/id/metropolitan-district-council/wolverhampton","WCC - CIVIC CENTRE CAT","2.42","Headstart - Young People Engagement","9399","Subsistence","09/01/2018"
"Wolverhampton City Council","http://opendatacommunities.org/id/metropolitan-district-council/wolverhampton","Trainline","34.37","LAC Transitions Team","4112","Client Allowances","09/01/2018"
"Wolverhampton City Council","http://opendatacommunities.org/id/metropolitan-district-council/wolverhampton","Virgin Trains","83.60","Global Budgets","4112","Public Transport","09/01/2018"
"Wolverhampton City Council","http://opendatacommunities.org/id/metropolitan-district-council/wolverhampton","MAYFLEX UK LTD","222.52","R4350P1006 LGPS Central Ltd","5085","Equipment - Purchase","09/01/2018"
"Wolverhampton City Council","http://opendatacommunities.org/id/metropolitan-district-council/wolverhampton","BILASH","144.30","Managing Director","5085","Subsistence","09/01/2018"
"Wolverhampton City Council","http://opendatacommunities.org/id/metropolitan-district-council/wolverhampton","THE MET F AND B","97.00","Service Director Disab & Mental Health","7011","Services - Supplies & Services to users","09/01/2018"
"Wolverhampton City Council","http://opendatacommunities.org/id/metropolitan-district-council/wolverhampton","Virgin Trains","200.10","Service Director Disab & Mental Health","4112","Public Transport","09/01/2018"
"Wolverhampton City Council","http://opendatacommunities.org/id/metropolitan-district-council/wolverhampton","WOLVERHAMPTON CC","8.33","Headstart Phase 3","7523","Parking Fees","09/01/2018"
"Wolverhampton City Council","http://opendatacommunities.org/id/metropolitan-district-council/wolverhampton","POST OFFICE COUNTER","195.00","Vulnerable Young Persons Team","9402","Comms - Postage","09/01/2018"
"Wolverhampton City Council","http://opendatacommunities.org/id/metropolitan-district-council/wolverhampton","Trainline","19.84","SEN Special Education Admin","4112","Public Transport","09/01/2018"
"Wolverhampton City Council","http://opendatacommunities.org/id/metropolitan-district-council/wolverhampton","B & Q 1243","3.70","Ernest Bold Court","5211","Equipment - R & M","09/01/2018"
"Wolverhampton City Council","http://opendatacommunities.org/id/metropolitan-district-council/wolverhampton","AMAZON SVCS EU-UK AMAZ","27.51","EIP Locality 8","5942","Equipment - Hire","08/01/2018"
"Wolverhampton City Council","http://opendatacommunities.org/id/metropolitan-district-council/wolverhampton","Trainline","-51.10","CIN/CP Social Work Unit - Area 6","4112","Section 17","08/01/2018"
"Wolverhampton City Council","http://opendatacommunities.org/id/metropolitan-district-council/wolverhampton","Trainline","136.17","The Clangers & TV Puppets","4112","Public Transport","08/01/2018"
"Wolverhampton City Council","http://opendatacommunities.org/id/metropolitan-district-council/wolverhampton","AMAZON EU AMAZON.CO.UK","21.62","Headstart - Learning Technologies Team","5999","Equipment - Purchase","08/01/2018"
"Wolverhampton City Council","http://opendatacommunities.org/id/metropolitan-district-council/wolverhampton","APEX CITY OF LONDON HO","414.33","Headstart - Learning Technologies Team","7011","Accommodation Costs","08/01/2018"
"Wolverhampton City Council","http://opendatacommunities.org/id/metropolitan-district-council/wolverhampton","LOVE2SHOP.CO.UK","455.37","IMPACT","8641","Educ Trips, Holidays, Outings, Activity","08/01/2018"
"Wolverhampton City Council","http://opendatacommunities.org/id/metropolitan-district-council/wolverhampton","DUNELM (SOFT FURNISHIN","16.65","Aldersley Leisure Village","5714","Equipment - Purchase","08/01/2018"
"Wolverhampton City Council","http://opendatacommunities.org/id/metropolitan-district-council/wolverhampton","AMAZON SVCS EU-UK AMAZ","11.65","Bert Williams Leisure Centre","5942","Equipment - Purchase","08/01/2018"
"Wolverhampton City Council","http://opendatacommunities.org/id/metropolitan-district-council/wolverhampton","Amazon UK Marketplace","44.94","Community Enablement","5942","Books","08/01/2018"
"Wolverhampton City Council","http://opendatacommunities.org/id/metropolitan-district-council/wolverhampton","Amazon UK Marketplace","28.71","LAC Education Team (LACE)","5942","Books","08/01/2018"
"Wolverhampton City Council","http://opendatacommunities.org/id/metropolitan-district-council/wolverhampton","AMAZON EU AMAZON.CO.UK","7.46","Central Baths","5999","Equipment - Purchase","08/01/2018"
"Wolverhampton City Council","http://opendatacommunities.org/id/metropolitan-district-council/wolverhampton","AMAZON SVCS EU-UK AMAZ","10.98","Central Baths","5942","Books","08/01/2018"
"Wolverhampton City Council","http://opendatacommunities.org/id/metropolitan-district-council/wolverhampton","CURRYS S/S","29.16","EIP Locality 1","5732","Equipment - Purchase","08/01/2018"
"Wolverhampton City Council","http://opendatacommunities.org/id/metropolitan-district-council/wolverhampton","DUNELM (SOFT FURNISHIN","23.05","EIP Locality 1","5714","Equipment - Purchase","08/01/2018"
"Wolverhampton City Council","http://opendatacommunities.org/id/metropolitan-district-council/wolverhampton","E00783400000000","50.00","EIP Locality 1","6011","Equipment - Purchase","08/01/2018"
"Wolverhampton City Council","http://opendatacommunities.org/id/metropolitan-district-council/wolverhampton","MOTHERCARE DIRECT-E-CO","24.12","EIP Locality 3","5311","Grant Payments","08/01/2018"
"Wolverhampton City Council","http://opendatacommunities.org/id/metropolitan-district-council/wolverhampton","ASDA HOME SHOPPING","67.36","Ernest Bold Court","5411","Provisions (Not for resale)","08/01/2018"
"Wolverhampton City Council","http://opendatacommunities.org/id/metropolitan-district-council/wolverhampton","ASDA HOME SHOPPING","0.20","Ernest Bold Court","5411","Provisions (Not for resale)","08/01/2018"
"Wolverhampton City Council","http://opendatacommunities.org/id/metropolitan-district-council/wolverhampton","AMAZON EU AMAZON.CO.UK","27.80","Ernest Bold Court","5999","Stationery","08/01/2018"
"Wolverhampton City Council","http://opendatacommunities.org/id/metropolitan-district-council/wolverhampton","TVLICENSING.CO.UK","147.00","Civic Centre","7392","Services - Consultants","08/01/2018"
"Wolverhampton City Council","http://opendatacommunities.org/id/metropolitan-district-council/wolverhampton","CLINTONS 45","2.92","School Crossing Patrol","5947","Equipment - Purchase","08/01/2018"
"Wolverhampton City Council","http://opendatacommunities.org/id/metropolitan-district-council/wolverhampton","REGISTRARS OFFICE","60.00","Head of Service - CINCP","8299","Services - Professional Fees","08/01/2018"
"Wolverhampton City Council","http://opendatacommunities.org/id/metropolitan-district-council/wolverhampton","MUSIC EXCHANGE","392.05","Music Support Team","5733","Equipment - R & M","08/01/2018"
"Wolverhampton City Council","http://opendatacommunities.org/id/metropolitan-district-council/wolverhampton","Amazon UK Marketplace","19.58","Music Support Team","5942","Equipment - R & M","08/01/2018"
"Wolverhampton City Council","http://opendatacommunities.org/id/metropolitan-district-council/wolverhampton","BE EVENT HIRE","839.60","Wolverhampton Indoor and Open Market","7394","Equipment - Hire","08/01/2018"
"Wolverhampton City Council","http://opendatacommunities.org/id/metropolitan-district-council/wolverhampton","Amazon UK Marketplace","59.56","LAC Education Team (LACE)","5942","Books","08/01/2018"
"Wolverhampton City Council","http://opendatacommunities.org/id/metropolitan-district-council/wolverhampton","AMAZON SVCS EU-UK AMAZ","16.41","EIP Locality 8","5942","Equipment - Hire","05/01/2018"
"Wolverhampton City Council","http://opendatacommunities.org/id/metropolitan-district-council/wolverhampton","LOYD WEDNESFIELD WOLVE","300.00","EIP Locality 8","6011","Grant Payments","05/01/2018"
"Wolverhampton City Council","http://opendatacommunities.org/id/metropolitan-district-council/wolverhampton","DUNELM (SOFT FURNISHIN","34.16","LAC Transitions Team","5714","Client Allowances","05/01/2018"
"Wolverhampton City Council","http://opendatacommunities.org/id/metropolitan-district-council/wolverhampton","CAPITAL APPLIANCE CTR","182.50","LAC Transitions Team","5722","Client Allowances","05/01/2018"
"Wolverhampton City Council","http://opendatacommunities.org/id/metropolitan-district-council/wolverhampton","SAINSBURYS (2340)","30.00","LAC Transitions Team","5411","Client Allowances","05/01/2018"
"Wolverhampton City Council","http://opendatacommunities.org/id/metropolitan-district-council/wolverhampton","TESCO STORES 5194","-5.62","Towers Outdoor Education Centre","5411","Provisions (Not for resale)","05/01/2018"
"Wolverhampton City Council","http://opendatacommunities.org/id/metropolitan-district-council/wolverhampton","Amazon UK Marketplace","199.23","Headstart Phase 3","5942","Stationery","05/01/2018"
"Wolverhampton City Council","http://opendatacommunities.org/id/metropolitan-district-council/wolverhampton","DUNELM ONLINE ORDER","410.00","EIP Locality 1","5714","Equipment - Purchase","05/01/2018"
"Wolverhampton City Council","http://opendatacommunities.org/id/metropolitan-district-council/wolverhampton","DUNELM (SOFT FURNISHIN","193.50","EIP Locality 1","5714","Equipment - Purchase","05/01/2018"
"Wolverhampton City Council","http://opendatacommunities.org/id/metropolitan-district-council/wolverhampton","TESCO STORES 5397","5.80","EIP Locality 1","5411","Provisions (Not for resale)","05/01/2018"
"Wolverhampton City Council","http://opendatacommunities.org/id/metropolitan-district-council/wolverhampton","TESCO STORES 5397","6.30","EIP Locality 1","5411","Provisions (Not for resale)","05/01/2018"
"Wolverhampton City Council","http://opendatacommunities.org/id/metropolitan-district-council/wolverhampton","WEST MID TRAVEL","446.85","Community Enablement","4131","Public Transport","05/01/2018"
"Wolverhampton City Council","http://opendatacommunities.org/id/metropolitan-district-council/wolverhampton","GO CARZ","6.19","MASH","4121","Section 17","05/01/2018"
"Wolverhampton City Council","http://opendatacommunities.org/id/metropolitan-district-council/wolverhampton","BOOKWHEN","9.00","Craftplay","7372","Computing - Purchase of Software","05/01/2018"
"Wolverhampton City Council","http://opendatacommunities.org/id/metropolitan-district-council/wolverhampton","WIX.COM","93.13","Technical Support","5968","Subscriptions","05/01/2018"
"Wolverhampton City Council","http://opendatacommunities.org/id/metropolitan-district-council/wolverhampton","Trainline","88.33","Public Service Reform","4112","Public Transport","05/01/2018"
"Wolverhampton City Council","http://opendatacommunities.org/id/metropolitan-district-council/wolverhampton","WWW.WMCA.CO.UK","56.50","CIN/CP Social Work Unit - Area 4","9399","Section 17","05/01/2018"
"Wolverhampton City Council","http://opendatacommunities.org/id/metropolitan-district-council/wolverhampton","WWW.WMCA.CO.UK","99.00","CIN/CP Social Work Unit - Area 4","9399","No Recourse to Public Funds","05/01/2018"
"Wolverhampton City Council","http://opendatacommunities.org/id/metropolitan-district-council/wolverhampton","Trainline","63.85","CIN/CP Social Work Unit - Area 6","4112","Section 17","05/01/2018"
"Wolverhampton City Council","http://opendatacommunities.org/id/metropolitan-district-council/wolverhampton","THE RANGE","4.98","Fostering Team & Allowances","5311","Equipment - Purchase","05/01/2018"
"Wolverhampton City Council","http://opendatacommunities.org/id/metropolitan-district-council/wolverhampton","Virgin Trains","173.10","Fostering Team & Allowances","4112","Public Transport","05/01/2018"
"Wolverhampton City Council","http://opendatacommunities.org/id/metropolitan-district-council/wolverhampton","Amazon UK Marketplace","15.79","Headstart Phase 3","5942","Books","05/01/2018"
"Wolverhampton City Council","http://opendatacommunities.org/id/metropolitan-district-council/wolverhampton","BRIT PSYCHOLOGICAL","206.00","IMPACT","8099","Services - Professional Fees","05/01/2018"
"Wolverhampton City Council","http://opendatacommunities.org/id/metropolitan-district-council/wolverhampton","AMAZON SVCS EU-UK AMAZ","4.57","PK10051-134 Integrated Transport","5942","Computing - Purchase of Hardware","05/01/2018"
"Wolverhampton City Council","http://opendatacommunities.org/id/metropolitan-district-council/wolverhampton","AMAZON SVCS EU-UK AMAZ","101.61","PK10051-134 Integrated Transport","5942","Computing - Purchase of Hardware","05/01/2018"
"Wolverhampton City Council","http://opendatacommunities.org/id/metropolitan-district-council/wolverhampton","CATCHBOX","698.12","Strategic ICTS (ICT Serv Budget)","5732","Equipment - Purchase","05/01/2018"
"Wolverhampton City Council","http://opendatacommunities.org/id/metropolitan-district-council/wolverhampton","Virgin Trains","169.30","Strategic Financial Services","4112","Public Transport","05/01/2018"
"Wolverhampton City Council","http://opendatacommunities.org/id/metropolitan-district-council/wolverhampton","PMC ELECTRICS LIMI","47.94","MASH","4812","Comms - Mobile Telephones","05/01/2018"
"Wolverhampton City Council","http://opendatacommunities.org/id/metropolitan-district-council/wolverhampton","AMAZON SVCS EU-UK AMAZ","60.03","Headstart Phase 3","5942","Equipment - Purchase","05/01/2018"
"Wolverhampton City Council","http://opendatacommunities.org/id/metropolitan-district-council/wolverhampton","AMAZON SVCS EU-UK AMAZ","35.08","Headstart Phase 3","5942","Equipment - Purchase","05/01/2018"
"Wolverhampton City Council","http://opendatacommunities.org/id/metropolitan-district-council/wolverhampton","WOLVERHAMPTON CC","2.50","Headstart Phase 3","7523","Parking Fees","05/01/2018"
"Wolverhampton City Council","http://opendatacommunities.org/id/metropolitan-district-council/wolverhampton","WOLVERHAMPTON CC","4.58","Headstart Phase 3","7523","Parking Fees","05/01/2018"
"Wolverhampton City Council","http://opendatacommunities.org/id/metropolitan-district-council/wolverhampton","CENTRAL CONSTRUCTION T","954.00","IMPACT","8299","Training Expenses","05/01/2018"
"Wolverhampton City Council","http://opendatacommunities.org/id/metropolitan-district-council/wolverhampton","MYPROTEIN.COM","43.12","WV Active Marketing","5399","Marketing \ Non-staff advertising","05/01/2018"
"Wolverhampton City Council","http://opendatacommunities.org/id/metropolitan-district-council/wolverhampton","NOTEMACHINE","100.00","Childrens with Disabilities Team","6011","No Recourse to Public Funds","05/01/2018"
"Wolverhampton City Council","http://opendatacommunities.org/id/metropolitan-district-council/wolverhampton","NOTEMACHINE","250.00","Childrens with Disabilities Team","6011","No Recourse to Public Funds","05/01/2018"
"Wolverhampton City Council","http://opendatacommunities.org/id/metropolitan-district-council/wolverhampton","Amazon UK Marketplace","14.95","LAC Team","5942","Stationery","05/01/2018"
"Wolverhampton City Council","http://opendatacommunities.org/id/metropolitan-district-council/wolverhampton","POST OFFICE COUNTER","7.25","Adoption and Residence Team & Allowances","9402","Comms - Postage","05/01/2018"
"Wolverhampton City Council","http://opendatacommunities.org/id/metropolitan-district-council/wolverhampton","SCREWFIX WOLVERHAM","12.80","Public Conveniences","5211","R&M - Departmental planned (external)","05/01/2018"
"Wolverhampton City Council","http://opendatacommunities.org/id/metropolitan-district-council/wolverhampton","UNTOUCHABLES","4.50","Education Catering - General Overheads","5231","Equipment - R & M","05/01/2018"
"Wolverhampton City Council","http://opendatacommunities.org/id/metropolitan-district-council/wolverhampton","FUTURE PUBLISHING","34.99","Music Support Team","7922","Equipment - R & M","05/01/2018"
"Wolverhampton City Council","http://opendatacommunities.org/id/metropolitan-district-council/wolverhampton","Amazon UK Marketplace","9.98","Music Support Team","5942","Equipment - R & M","05/01/2018"
"Wolverhampton City Council","http://opendatacommunities.org/id/metropolitan-district-council/wolverhampton","Amazon UK Marketplace","9.99","Music Support Team","5942","Equipment - R & M","05/01/2018"
"Wolverhampton City Council","http://opendatacommunities.org/id/metropolitan-district-council/wolverhampton","Amazon UK Marketplace","46.01","Headstart Phase 3","5942","Equipment - Purchase","05/01/2018"
"Wolverhampton City Council","http://opendatacommunities.org/id/metropolitan-district-council/wolverhampton","Trainline","158.61","Headstart Phase 3","4112","Public Transport","05/01/2018"
"Wolverhampton City Council","http://opendatacommunities.org/id/metropolitan-district-council/wolverhampton","Amazon UK Marketplace","90.83","Headstart Phase 3","5942","Materials","05/01/2018"
"Wolverhampton City Council","http://opendatacommunities.org/id/metropolitan-district-council/wolverhampton","AMAZON SVCS EU-UK AMAZ","15.95","Adoption and Residence Team & Allowances","5942","Stationery","05/01/2018"
"Wolverhampton City Council","http://opendatacommunities.org/id/metropolitan-district-council/wolverhampton","E.ON ENERGY SOLUTIONS","400.00","CIN/CP Social Work Unit - Area 3","4900","Electricity","05/01/2018"
"Wolverhampton City Council","http://opendatacommunities.org/id/metropolitan-district-council/wolverhampton","WWW.RYMAN.CO.UK","83.25","Delivery & OCE Development","5943","Stationery","04/01/2018"
"Wolverhampton City Council","http://opendatacommunities.org/id/metropolitan-district-council/wolverhampton","POST OFFICE COUNTER","186.00","Fostering Team & Allowances","9402","Comms - Postage","04/01/2018"
"Wolverhampton City Council","http://opendatacommunities.org/id/metropolitan-district-council/wolverhampton","Trainline","17.09","AES Staff Development","4112","Public Transport","04/01/2018"
"Wolverhampton City Council","http://opendatacommunities.org/id/metropolitan-district-council/wolverhampton","SAINSBURYS SACAT (2340","3.47","Mayoral Expenses","5411","Provisions (Not for resale)","04/01/2018"
"Wolverhampton City Council","http://opendatacommunities.org/id/metropolitan-district-council/wolverhampton","TIMPSON LTD","11.67","City Direct","7251","Fixtures and Fittings - R&M","04/01/2018"
"Wolverhampton City Council","http://opendatacommunities.org/id/metropolitan-district-council/wolverhampton","WM MORRISONS","36.22","EIP Locality 6","5411","Provisions (Not for resale)","04/01/2018"
"Wolverhampton City Council","http://opendatacommunities.org/id/metropolitan-district-council/wolverhampton","THE NEW BRIDGE GUEST H","115.00","CIN/CP Social Work Unit - Area 3","7011","Section 17","04/01/2018"
"Wolverhampton City Council","http://opendatacommunities.org/id/metropolitan-district-council/wolverhampton","THE NEW BRIDGE GUEST H","500.00","CIN/CP Social Work Unit - Area 3","7011","Section 17","04/01/2018"
"Wolverhampton City Council","http://opendatacommunities.org/id/metropolitan-district-council/wolverhampton","PREMIER INN","76.99","LAC Team","3811","Services - Supplies & Services to users","04/01/2018"
"Wolverhampton City Council","http://opendatacommunities.org/id/metropolitan-district-council/wolverhampton","Virgin Trains","75.10","LAC Team","4112","Public Transport","04/01/2018"
"Wolverhampton City Council","http://opendatacommunities.org/id/metropolitan-district-council/wolverhampton","E.ON ENERGY SOLUTIONS","322.78","LAC Team","4900","Electricity","04/01/2018"
"Wolverhampton City Council","http://opendatacommunities.org/id/metropolitan-district-council/wolverhampton","PREMIER INN","406.25","Headstart Phase 3","3811","Accommodation Costs","04/01/2018"
"Wolverhampton City Council","http://opendatacommunities.org/id/metropolitan-district-council/wolverhampton","PREMIER INN","122.08","Strategic Director Place","3811","Accommodation Costs","04/01/2018"
"Wolverhampton City Council","http://opendatacommunities.org/id/metropolitan-district-council/wolverhampton","WWW.ARGOS.CO.UK","112.49","CIN/CP Social Work Unit - Area 4","5310","No Recourse to Public Funds","04/01/2018"
"Wolverhampton City Council","http://opendatacommunities.org/id/metropolitan-district-council/wolverhampton","ARGOS RETAIL GROUP","-37.49","Duke Street Bungalows","5310","Equipment - Purchase","04/01/2018"
"Wolverhampton City Council","http://opendatacommunities.org/id/metropolitan-district-council/wolverhampton","COZENS & COLE LTD","244.06","Statutory Services (10RM)","5251","Equipment - Purchase","04/01/2018"
"Wolverhampton City Council","http://opendatacommunities.org/id/metropolitan-district-council/wolverhampton","PAYPAL  BARNARDOS","45.00","Workforce Development","8999","Training Expenses","04/01/2018"
"Wolverhampton City Council","http://opendatacommunities.org/id/metropolitan-district-council/wolverhampton","Trainline","59.67","Welfare Rights","4112","Public Transport","04/01/2018"
"Wolverhampton City Council","http://opendatacommunities.org/id/metropolitan-district-council/wolverhampton","Amazon UK Marketplace","13.35","Technical Material","5942","Materials","04/01/2018"
"Wolverhampton City Council","http://opendatacommunities.org/id/metropolitan-district-council/wolverhampton","WICKES BUILDING","188.60","Maintenance of Exhibits","5211","Materials","04/01/2018"
"Wolverhampton City Council","http://opendatacommunities.org/id/metropolitan-district-council/wolverhampton","WWW PROJECTORSHOP24 CO","357.58","Education And Access","5732","Equipment - Purchase","04/01/2018"
"Wolverhampton City Council","http://opendatacommunities.org/id/metropolitan-district-council/wolverhampton","WWW PROJECTORSHOP24 CO","357.58","Maintenance of Exhibits","5732","Equipment - Purchase","04/01/2018"
"Wolverhampton City Council","http://opendatacommunities.org/id/metropolitan-district-council/wolverhampton","PAYPAL  THINK D","55.52","Technical Material","5331","Materials","04/01/2018"
"Wolverhampton City Council","http://opendatacommunities.org/id/metropolitan-district-council/wolverhampton","Amazon UK Marketplace","16.17","Technical Material","5942","Equipment - Purchase","04/01/2018"
"Wolverhampton City Council","http://opendatacommunities.org/id/metropolitan-district-council/wolverhampton","Amazon UK Marketplace","33.92","Headstart Phase 3","5942","Equipment - Purchase","04/01/2018"
"Wolverhampton City Council","http://opendatacommunities.org/id/metropolitan-district-council/wolverhampton","Amazon UK Marketplace","59.67","Headstart Phase 3","5942","Equipment - Purchase","04/01/2018"
"Wolverhampton City Council","http://opendatacommunities.org/id/metropolitan-district-council/wolverhampton","Amazon UK Marketplace","15.83","Headstart Phase 3","5942","Stationery","04/01/2018"
"Wolverhampton City Council","http://opendatacommunities.org/id/metropolitan-district-council/wolverhampton","Amazon UK Marketplace","19.27","Headstart Phase 3","5942","Equipment - Purchase","04/01/2018"
"Wolverhampton City Council","http://opendatacommunities.org/id/metropolitan-district-council/wolverhampton","CARVER/WOLVERHAMPTON/L","13.27","Caretakers Community Centre","5211","R&M - Departmental planned (external)","04/01/2018"
"Wolverhampton City Council","http://opendatacommunities.org/id/metropolitan-district-council/wolverhampton","HOMECOLOURS.COM","40.00","EIP Locality 1","5722","Equipment - Purchase","04/01/2018"
"Wolverhampton City Council","http://opendatacommunities.org/id/metropolitan-district-council/wolverhampton","THE POST OFFICE","1.75","EIP Locality 1","9402","Comms - Postage","04/01/2018"
"Wolverhampton City Council","http://opendatacommunities.org/id/metropolitan-district-council/wolverhampton","GO CARZ","26.54","MASH","4121","Section 17","04/01/2018"
"Wolverhampton City Council","http://opendatacommunities.org/id/metropolitan-district-council/wolverhampton","POST OFFICE COUNTER","65.00","Education Catering - General Overheads","9402","Comms - Postage","04/01/2018"
"Wolverhampton City Council","http://opendatacommunities.org/id/metropolitan-district-council/wolverhampton","BOOKWHEN","180.00","Learning Technologies","7372","Subscriptions","04/01/2018"
"Wolverhampton City Council","http://opendatacommunities.org/id/metropolitan-district-council/wolverhampton","Virgin Trains","13.10","Environmental Health - Pub Prot - Gen","4112","Services - Fees and Charges","04/01/2018"
"Wolverhampton City Council","http://opendatacommunities.org/id/metropolitan-district-council/wolverhampton","NATIONAL EXPRESS LIMIT","23.00","MASH","4131","Public Transport","04/01/2018"
"Wolverhampton City Council","http://opendatacommunities.org/id/metropolitan-district-council/wolverhampton","GO CARZ","4.20","CIN/CP Social Work Unit - Area 5","4121","Section 17","04/01/2018"
"Wolverhampton City Council","http://opendatacommunities.org/id/metropolitan-district-council/wolverhampton","GO CARZ","3.88","CIN/CP Social Work Unit - Area 5","4121","Section 17","04/01/2018"
"Wolverhampton City Council","http://opendatacommunities.org/id/metropolitan-district-council/wolverhampton","WHITES MATERIAL HANDLI","32.23","Fleet Management","8911","Equipment - Purchase","04/01/2018"
"Wolverhampton City Council","http://opendatacommunities.org/id/metropolitan-district-council/wolverhampton","AMAZON SVCS EU-UK AMAZ","3.32","EIP Locality 8","5942","Stationery","04/01/2018"
"Wolverhampton City Council","http://opendatacommunities.org/id/metropolitan-district-council/wolverhampton","TESCO STORES 5194","339.84","Towers Outdoor Education Centre","5411","Provisions (Not for resale)","04/01/2018"
"Wolverhampton City Council","http://opendatacommunities.org/id/metropolitan-district-council/wolverhampton","WWW.JOHNLEWIS.COM","-21.50","Delivery & OCE Development","5311","Equipment - Purchase","04/01/2018"
"Wolverhampton City Council","http://opendatacommunities.org/id/metropolitan-district-council/wolverhampton","WHITES MATERIAL HANDLI","1994.00","Fleet Management","8911","Equipment - Purchase","04/01/2018"
"Wolverhampton City Council","http://opendatacommunities.org/id/metropolitan-district-council/wolverhampton","TRAINLINE","-184.00","CIN/CP Social Work Unit - Area 4","4112","Section 17","04/01/2018"
"Wolverhampton City Council","http://opendatacommunities.org/id/metropolitan-district-council/wolverhampton","CUMMINGS BROTHERS LOCK","10.00","Community Enablement","7399","Equipment - Purchase","04/01/2018"
"Wolverhampton City Council","http://opendatacommunities.org/id/metropolitan-district-council/wolverhampton","AMAZON EU AMAZON.CO.UK","66.66","EIP Locality 7","5999","Grant Payments","04/01/2018"
"Wolverhampton City Council","http://opendatacommunities.org/id/metropolitan-district-council/wolverhampton","ASDA SUPERSTORE","100.00","CIN/CP Social Work Unit - Area 3","5411","Provisions (Not for resale)","04/01/2018"
"Wolverhampton City Council","http://opendatacommunities.org/id/metropolitan-district-council/wolverhampton","ASDA SUPERSTORE","120.00","CIN/CP Social Work Unit - Area 3","5411","Provisions (Not for resale)","04/01/2018"
"Wolverhampton City Council","http://opendatacommunities.org/id/metropolitan-district-council/wolverhampton","Trainline","195.33","Headstart Phase 3","4112","Public Transport","04/01/2018"
"Wolverhampton City Council","http://opendatacommunities.org/id/metropolitan-district-council/wolverhampton","Amazon UK Marketplace","9.19","Headstart Phase 3","5942","Materials","03/01/2018"
"Wolverhampton City Council","http://opendatacommunities.org/id/metropolitan-district-council/wolverhampton","Amazon UK Marketplace","63.22","Headstart Phase 3","5942","Materials","03/01/2018"
"Wolverhampton City Council","http://opendatacommunities.org/id/metropolitan-district-council/wolverhampton","Amazon UK Marketplace","5.97","Headstart Phase 3","5942","Materials","03/01/2018"
"Wolverhampton City Council","http://opendatacommunities.org/id/metropolitan-district-council/wolverhampton","CARVER/WOLVERHAMPTON/L","26.74","Cleaning of Buildings - General","5211","Materials","03/01/2018"
"Wolverhampton City Council","http://opendatacommunities.org/id/metropolitan-district-council/wolverhampton","ASDA HOME SHOPPING","65.94","Ernest Bold Court","5411","Provisions (Not for resale)","03/01/2018"
"Wolverhampton City Council","http://opendatacommunities.org/id/metropolitan-district-council/wolverhampton","ARGOS RETAIL GROUP","64.99","Shopmobility","5310","Equipment - Purchase","03/01/2018"
"Wolverhampton City Council","http://opendatacommunities.org/id/metropolitan-district-council/wolverhampton","ARGOS RETAIL GROUP","-37.49","Duke Street Bungalows","5310","Equipment - Purchase","03/01/2018"
"Wolverhampton City Council","http://opendatacommunities.org/id/metropolitan-district-council/wolverhampton","ARGOS RETAIL GROUP","37.49","Duke Street Bungalows","5310","Equipment - Purchase","03/01/2018"
"Wolverhampton City Council","http://opendatacommunities.org/id/metropolitan-district-council/wolverhampton","ARGOS RETAIL GROUP","74.98","Duke Street Bungalows","5310","Equipment - Purchase","03/01/2018"
"Wolverhampton City Council","http://opendatacommunities.org/id/metropolitan-district-council/wolverhampton","ARGOS RETAIL GROUP","37.49","Duke Street Bungalows","5310","Equipment - Purchase","03/01/2018"
"Wolverhampton City Council","http://opendatacommunities.org/id/metropolitan-district-council/wolverhampton","Cross Country Trains","69.90","Central Training","4112","Public Transport","03/01/2018"
"Wolverhampton City Council","http://opendatacommunities.org/id/metropolitan-district-council/wolverhampton","WM MORRISON 024","156.83","Upper Pendeford Farm Childrens Home","5411","Provisions (Not for resale)","03/01/2018"
"Wolverhampton City Council","http://opendatacommunities.org/id/metropolitan-district-council/wolverhampton","Trainline","199.41","CIN/CP Social Work Unit - Area 4","4112","Section 17","03/01/2018"
"Wolverhampton City Council","http://opendatacommunities.org/id/metropolitan-district-council/wolverhampton","Amazon Prime","-7.99","Planning","5968","Subscriptions","03/01/2018"
"Wolverhampton City Council","http://opendatacommunities.org/id/metropolitan-district-council/wolverhampton","CHEMSOL CYMRU LTD","344.84","Towers Outdoor Education Centre","5199","Fixtures and Fittings - Purchases","03/01/2018"
"Wolverhampton City Council","http://opendatacommunities.org/id/metropolitan-district-council/wolverhampton","STERMAT CAR AND VA","1920.70","Towers Outdoor Education Centre","5541","Hire of Vehices - Fleet Management","03/01/2018"
"Wolverhampton City Council","http://opendatacommunities.org/id/metropolitan-district-council/wolverhampton","C L JONES HEAD OFFICE","52.23","Towers Outdoor Education Centre","5211","Fixtures and Fittings - Purchases","03/01/2018"
"Wolverhampton City Council","http://opendatacommunities.org/id/metropolitan-district-council/wolverhampton","CHARITY","163.58","Fostering Team & Allowances","8398","Services - Supplies & Services to users","03/01/2018"
"Wolverhampton City Council","http://opendatacommunities.org/id/metropolitan-district-council/wolverhampton","Virgin Trains","193.00","Fostering Team & Allowances","4112","Public Transport","03/01/2018"
"Wolverhampton City Council","http://opendatacommunities.org/id/metropolitan-district-council/wolverhampton","BOOKWHENCOM  BOOKING","190.00","Headstart - Learning Technologies Team","5734","Computing - Purchase of Software","03/01/2018"
"Wolverhampton City Council","http://opendatacommunities.org/id/metropolitan-district-council/wolverhampton","1&1 INTERNET LIMITED","10.98","Headstart - Learning Technologies Team","4816","Computing - Purchase of Software","03/01/2018"
"Wolverhampton City Council","http://opendatacommunities.org/id/metropolitan-district-council/wolverhampton","Amazon UK Marketplace","85.22","Ground Maintenance East","5942","Equipment - Purchase","03/01/2018"
"Wolverhampton City Council","http://opendatacommunities.org/id/metropolitan-district-council/wolverhampton","WWW.WMCA.CO.UK","56.50","IMPACT","9399","Services - Fees and Charges","03/01/2018"
"Wolverhampton City Council","http://opendatacommunities.org/id/metropolitan-district-council/wolverhampton","REGISTRARS OFFICE","9.17","LAC Transitions Team","8299","Client Allowances","03/01/2018"
"Wolverhampton City Council","http://opendatacommunities.org/id/metropolitan-district-council/wolverhampton","Virgintrains.co.uk","-48.50","Adoption and Residence Team & Allowances","4112","Public Transport","03/01/2018"
"Wolverhampton City Council","http://opendatacommunities.org/id/metropolitan-district-council/wolverhampton","Virgin Trains","90.40","LAC Team","4112","Public Transport","03/01/2018"
"Wolverhampton City Council","http://opendatacommunities.org/id/metropolitan-district-council/wolverhampton","IKEA ONLINE","183.00","EIP Locality 5","5719","Grant Payments","03/01/2018"
"Wolverhampton City Council","http://opendatacommunities.org/id/metropolitan-district-council/wolverhampton","SAINSBURYS SACAT (2340","3.45","EIP Locality 5","5411","Provisions (Not for resale)","03/01/2018"
"Wolverhampton City Council","http://opendatacommunities.org/id/metropolitan-district-council/wolverhampton","Amazon UK Marketplace","42.73","Headstart Phase 3","5942","Stationery","03/01/2018"
"Wolverhampton City Council","http://opendatacommunities.org/id/metropolitan-district-council/wolverhampton","Amazon UK Marketplace","7.93","Headstart Phase 3","5942","Materials","03/01/2018"
"Wolverhampton City Council","http://opendatacommunities.org/id/metropolitan-district-council/wolverhampton","Trainline","187.17","Headstart Phase 3","4112","Public Transport","03/01/2018"
"Wolverhampton City Council","http://opendatacommunities.org/id/metropolitan-district-council/wolverhampton","Trainline","452.88","Headstart Phase 3","4112","Public Transport","03/01/2018"
"Wolverhampton City Council","http://opendatacommunities.org/id/metropolitan-district-council/wolverhampton","PREMIER INN","146.46","Emergency Duty Team","3811","Services - Supplies & Services to users","02/01/2018"
"Wolverhampton City Council","http://opendatacommunities.org/id/metropolitan-district-council/wolverhampton","GOOGLE  SVCSAPPS_wolve","9.90","Civic Halls Non Direct Management A/C","5968","Subscriptions","02/01/2018"
"Wolverhampton City Council","http://opendatacommunities.org/id/metropolitan-district-council/wolverhampton","Virgintrains.co.uk","-17.00","Planning","4112","Public Transport","02/01/2018"
"Wolverhampton City Council","http://opendatacommunities.org/id/metropolitan-district-council/wolverhampton","THE QUALITY HOTEL WOLV","55.00","Emergency Duty Team","7011","Services - Supplies & Services to users","01/01/2018"
"Wolverhampton City Council","http://opendatacommunities.org/id/metropolitan-district-council/wolverhampton","FACEBK ZB5SPD6H52","23.76","Audience Development","7311","Marketing \ Non-staff advertising","01/01/2018"
"Wolverhampton City Council","http://opendatacommunities.org/id/metropolitan-district-council/wolverhampton","Amazon UK Marketplace","26.64","Telecare","5942","Computing - Purchase of Hardware","01/01/2018"
"Wolverhampton City Council","http://opendatacommunities.org/id/metropolitan-district-council/wolverhampton","WWW.1STLOCATE.COM","3.50","Art Gallery","7299","Services - Supplies & Services to users","01/01/2018"
"Wolverhampton City Council","http://opendatacommunities.org/id/metropolitan-district-council/wolverhampton","NOVOTEL HOTELS","91.67","The Clangers & TV Puppets","3642","Services - Professional Fees","01/01/2018"
"Wolverhampton City Council","http://opendatacommunities.org/id/metropolitan-district-council/wolverhampton","ASDA SUPERSTORE","50.00","Duke Street Bungalows","5411","Equipment - Purchase","01/01/2018"
"Wolverhampton City Council","http://opendatacommunities.org/id/metropolitan-district-council/wolverhampton","Santander","20.00","Duke Street Bungalows","6011","Provisions (Not for resale)","01/01/2018"
"Wolverhampton City Council","http://opendatacommunities.org/id/metropolitan-district-council/wolverhampton","AMAZON EU AMAZON.CO.UK","19.99","Technical Support","5999","Equipment - Purchase","01/01/2018"
"Wolverhampton City Council","http://opendatacommunities.org/id/metropolitan-district-council/wolverhampton","AMAZON EU AMAZON.CO.UK","19.99","Technical Support","5999","Equipment - Purchase","01/01/2018"
"Wolverhampton City Council","http://opendatacommunities.org/id/metropolitan-district-council/wolverhampton","AMAZON EU AMAZON.CO.UK","19.99","Technical Support","5999","Equipment - Purchase","01/01/2018"
"Wolverhampton City Council","http://opendatacommunities.org/id/metropolitan-district-council/wolverhampton","AMAZON EU AMAZON.CO.UK","19.99","Technical Support","5999","Equipment - Purchase","01/01/2018"
"Wolverhampton City Council","http://opendatacommunities.org/id/metropolitan-district-council/wolverhampton","PAYPAL  123REGLIMIT","19.98","Technical Support","4816","Computing - Purchase of Software","01/01/2018"
"Wolverhampton City Council","http://opendatacommunities.org/id/metropolitan-district-council/wolverhampton","CURRYS ONLINE","-338.99","LAC Team","5732","Financial Assistance In Exceptional Circ","01/01/2018"
"Wolverhampton City Council","http://opendatacommunities.org/id/metropolitan-district-council/wolverhampton","WWW.SEVERNTRENTSEARCHE","325.00","Disposal Costs","4900","Services - Professional Fees","01/01/2018"
"Wolverhampton City Council","http://opendatacommunities.org/id/metropolitan-district-council/wolverhampton","FACEBK RC5SPD6H52","76.25","Audience Development","7311","Marketing \ Non-staff advertising","01/01/2018"
"Wolverhampton City Council","http://opendatacommunities.org/id/metropolitan-district-council/wolverhampton","Amazon UK Marketplace","5.76","Headstart - Learning Technologies Team","5942","Materials","01/01/2018"
"Wolverhampton City Council","http://opendatacommunities.org/id/metropolitan-district-council/wolverhampton","Amazon UK Marketplace","9.22","Headstart - Learning Technologies Team","5942","Materials","01/01/2018"
"Wolverhampton City Council","http://opendatacommunities.org/id/metropolitan-district-council/wolverhampton","HUGHES","20.82","Ground Maintenance East","5732","Equipment - Purchase","01/01/2018"
"Wolverhampton City Council","http://opendatacommunities.org/id/metropolitan-district-council/wolverhampton","FACEBK HJ2F8DJA82","70.47","WV Active Marketing","7311","Marketing \ Non-staff advertising","01/01/2018"
"Wolverhampton City Council","http://opendatacommunities.org/id/metropolitan-district-council/wolverhampton","FACEBK EK2F8DJA82","8.94","WV Active Marketing","7311","Marketing \ Non-staff advertising","01/01/2018"
"Wolverhampton City Council","http://opendatacommunities.org/id/metropolitan-district-council/wolverhampton","FACEBK 25CNPEEAR2","224.74","Communications & Marketing - General","7311","Marketing \ Non-staff advertising","01/01/2018"
"Wolverhampton City Council","http://opendatacommunities.org/id/metropolitan-district-council/wolverhampton","FACEBK F5CNPEEAR2","72.64","Communications & Marketing - General","7311","Marketing \ Non-staff advertising","01/01/2018"
"Wolverhampton City Council","http://opendatacommunities.org/id/metropolitan-district-council/wolverhampton","FACEBK  QMY3BEAJC2","9.33","Headstart Phase 3","7311","Marketing \ Non-staff advertising","01/01/2018"
"Wolverhampton City Council","http://opendatacommunities.org/id/metropolitan-district-council/wolverhampton","PRODUCT SUPPORT AG","6.66","Headstart - Young People Engagement","5968","Computing - Maint Agreements","01/01/2018"
"Wolverhampton City Council","http://opendatacommunities.org/id/metropolitan-district-council/wolverhampton","PRODUCT SUPPORT AG","6.66","Headstart - Young People Engagement","5968","Computing - Maint Agreements","01/01/2018"
"Wolverhampton City Council","http://opendatacommunities.org/id/metropolitan-district-council/wolverhampton","AMAZON EU AMAZON.CO.UK","16.98","Archives","5999","Books","01/01/2018"
"Wolverhampton City Council","http://opendatacommunities.org/id/metropolitan-district-council/wolverhampton","WWW.SEVERNTRENTSEARCHE","325.00","Disposal Costs","4900","Services - Professional Fees","01/01/2018"
"Wolverhampton City Council","http://opendatacommunities.org/id/metropolitan-district-council/wolverhampton","THE COAL AUTHORITY","329.40","Legal Services","9399","Services - Fees and Charges","01/01/2018"
"Wolverhampton City Council","http://opendatacommunities.org/id/metropolitan-district-council/wolverhampton","WWW.SEVERNTRENTSEARCHE","455.00","Disposal Costs","4900","Services - Professional Fees","01/01/2018"
"Wolverhampton City Council","http://opendatacommunities.org/id/metropolitan-district-council/wolverhampton","TRADE 2 PLAY LIMITED","65.00","Upper Pendeford Farm Childrens Home","5945","Equipment - Purchase","01/01/2018"
"Wolverhampton City Council","http://opendatacommunities.org/id/metropolitan-district-council/wolverhampton","ASDA SUPERSTORE","114.64","Children & Young People Support Costs","5411","Provisions (Not for resale)","01/01/2018"
